Organisation Name,Organisation Code,Unique Ref No,Effective Date,Directorate where expenditure incurred,Supplier Name,Payment Date,Net Amount,Purpose of Spend,"Procurement Classification
(Higher Level)",Procurement Classification (Lower Level),CAPITAL / REVENUE
Walsall Council,http://opendatacommunities.org/id/metropolitan-district-council/walsall ,WC132-1,30.11.2021,"ECONOMY, ENVIRONMENT & COMMUNITIES",247 CARS (WILLENHALL) LIMITED,17/11/2021,899.91,6313-Grants to Other Orgs,SUPPLIES & SERVICES,GRANTS (EXP) & SUBSCRIPTIONS,REVENUE
Walsall Council,http://opendatacommunities.org/id/metropolitan-district-council/walsall ,WC132-2,30.11.2021,"ECONOMY, ENVIRONMENT & COMMUNITIES",247 CARS (WILLENHALL) LIMITED,17/11/2021,824.18,6313-Grants to Other Orgs,SUPPLIES & SERVICES,GRANTS (EXP) & SUBSCRIPTIONS,REVENUE
Walsall Council,http://opendatacommunities.org/id/metropolitan-district-council/walsall ,WC132-3,30.11.2021,"ECONOMY, ENVIRONMENT & COMMUNITIES",247 CARS (WILLENHALL) LIMITED,17/11/2021,752.40,6313-Grants to Other Orgs,SUPPLIES & SERVICES,GRANTS (EXP) & SUBSCRIPTIONS,REVENUE
Walsall Council,http://opendatacommunities.org/id/metropolitan-district-council/walsall ,WC132-4,30.11.2021,"ECONOMY, ENVIRONMENT & COMMUNITIES",247 CARS (WILLENHALL) LIMITED,17/11/2021,462.48,6313-Grants to Other Orgs,SUPPLIES & SERVICES,GRANTS (EXP) & SUBSCRIPTIONS,REVENUE
Walsall Council,http://opendatacommunities.org/id/metropolitan-district-council/walsall ,WC132-5,30.11.2021,"ECONOMY, ENVIRONMENT & COMMUNITIES",247 CARS (WILLENHALL) LIMITED,30/11/2021,877.80,6313-Grants to Other Orgs,SUPPLIES & SERVICES,GRANTS (EXP) & SUBSCRIPTIONS,REVENUE
Walsall Council,http://opendatacommunities.org/id/metropolitan-district-council/walsall ,WC132-6,30.11.2021,CHILDRENS,247 CARS (WILLENHALL) LIMITED,08/11/2021,"1,263.50",6241-Hire of Vehicle with Driver,TRANSPORT,DIRECT TRANSPORT COSTS,REVENUE
Walsall Council,http://opendatacommunities.org/id/metropolitan-district-council/walsall ,WC132-7,30.11.2021,CHILDRENS,247 CARS (WILLENHALL) LIMITED,08/11/2021,"2,526.43",6241-Hire of Vehicle with Driver,TRANSPORT,DIRECT TRANSPORT COSTS,REVENUE
Walsall Council,http://opendatacommunities.org/id/metropolitan-district-council/walsall ,WC132-8,30.11.2021,CHILDRENS,247 CARS (WILLENHALL) LIMITED,08/11/2021,269.00,6241-Hire of Vehicle with Driver,TRANSPORT,DIRECT TRANSPORT COSTS,REVENUE
Walsall Council,http://opendatacommunities.org/id/metropolitan-district-council/walsall ,WC132-9,30.11.2021,CHILDRENS,247 CARS (WILLENHALL) LIMITED,08/11/2021,"1,444.00",6241-Hire of Vehicle with Driver,TRANSPORT,DIRECT TRANSPORT COSTS,REVENUE
Walsall Council,http://opendatacommunities.org/id/metropolitan-district-council/walsall ,WC132-10,30.11.2021,CHILDRENS,247 CARS (WILLENHALL) LIMITED,08/11/2021,"1,805.00",6241-Hire of Vehicle with Driver,TRANSPORT,DIRECT TRANSPORT COSTS,REVENUE
Walsall Council,http://opendatacommunities.org/id/metropolitan-district-council/walsall ,WC132-11,30.11.2021,CHILDRENS,247 CARS (WILLENHALL) LIMITED,08/11/2021,"-1,014.00",6241-Hire of Vehicle with Driver,TRANSPORT,DIRECT TRANSPORT COSTS,REVENUE
Walsall Council,http://opendatacommunities.org/id/metropolitan-district-council/walsall ,WC132-12,30.11.2021,CHILDRENS,247 CARS (WILLENHALL) LIMITED,08/11/2021,"1,461.60",6241-Hire of Vehicle with Driver,TRANSPORT,DIRECT TRANSPORT COSTS,REVENUE
Walsall Council,http://opendatacommunities.org/id/metropolitan-district-council/walsall ,WC132-13,30.11.2021,CHILDRENS,247 CARS (WILLENHALL) LIMITED,08/11/2021,490.00,6241-Hire of Vehicle with Driver,TRANSPORT,DIRECT TRANSPORT COSTS,REVENUE
Walsall Council,http://opendatacommunities.org/id/metropolitan-district-council/walsall ,WC132-14,30.11.2021,RESOURCES AND TRANSFORMATION,4 SIGHT EYECARE CENTRE 002,17/11/2021,390.00,6625-Eye Tests,DIRECT EMPLOYEES,EMPLOYEE ALLOWANCES & EXPENSES,REVENUE
Walsall Council,http://opendatacommunities.org/id/metropolitan-district-council/walsall ,WC132-15,30.11.2021,ADULT SOCIAL CARE,5 CARE SERVICES LTD,09/11/2021,490.49,6541-Domiciliary Care,THIRD PARTY PAYMENTS,PRIVATE CONTRACTOR,REVENUE
Walsall Council,http://opendatacommunities.org/id/metropolitan-district-council/walsall ,WC132-16,30.11.2021,ADULT SOCIAL CARE,5 CARE SERVICES LTD,09/11/2021,591.66,6541-Domiciliary Care,THIRD PARTY PAYMENTS,PRIVATE CONTRACTOR,REVENUE
Walsall Council,http://opendatacommunities.org/id/metropolitan-district-council/walsall ,WC132-17,30.11.2021,ADULT SOCIAL CARE,5 CARE SERVICES LTD,09/11/2021,490.49,6541-Domiciliary Care,THIRD PARTY PAYMENTS,PRIVATE CONTRACTOR,REVENUE
Walsall Council,http://opendatacommunities.org/id/metropolitan-district-council/walsall ,WC132-18,30.11.2021,ADULT SOCIAL CARE,5 CARE SERVICES LTD,09/11/2021,654.01,6541-Domiciliary Care,THIRD PARTY PAYMENTS,PRIVATE CONTRACTOR,REVENUE
Walsall Council,http://opendatacommunities.org/id/metropolitan-district-council/walsall ,WC132-19,30.11.2021,ADULT SOCIAL CARE,5 CARE SERVICES LTD,09/11/2021,"1,198.89",6541-Domiciliary Care,THIRD PARTY PAYMENTS,PRIVATE CONTRACTOR,REVENUE
Walsall Council,http://opendatacommunities.org/id/metropolitan-district-council/walsall ,WC132-20,30.11.2021,ADULT SOCIAL CARE,5 CARE SERVICES LTD,09/11/2021,560.52,6541-Domiciliary Care,THIRD PARTY PAYMENTS,PRIVATE CONTRACTOR,REVENUE
Walsall Council,http://opendatacommunities.org/id/metropolitan-district-council/walsall ,WC132-21,30.11.2021,ADULT SOCIAL CARE,5 CARE SERVICES LTD,09/11/2021,537.36,6541-Domiciliary Care,THIRD PARTY PAYMENTS,PRIVATE CONTRACTOR,REVENUE
Walsall Council,http://opendatacommunities.org/id/metropolitan-district-council/walsall ,WC132-22,30.11.2021,ADULT SOCIAL CARE,5 CARE SERVICES LTD,09/11/2021,490.49,6541-Domiciliary Care,THIRD PARTY PAYMENTS,PRIVATE CONTRACTOR,REVENUE
Walsall Council,http://opendatacommunities.org/id/metropolitan-district-council/walsall ,WC132-23,30.11.2021,ADULT SOCIAL CARE,5 CARE SERVICES LTD,09/11/2021,544.95,6541-Domiciliary Care,THIRD PARTY PAYMENTS,PRIVATE CONTRACTOR,REVENUE
Walsall Council,http://opendatacommunities.org/id/metropolitan-district-council/walsall ,WC132-24,30.11.2021,ADULT SOCIAL CARE,5 CARE SERVICES LTD,09/11/2021,311.40,6541-Domiciliary Care,THIRD PARTY PAYMENTS,PRIVATE CONTRACTOR,REVENUE
Walsall Council,http://opendatacommunities.org/id/metropolitan-district-council/walsall ,WC132-25,30.11.2021,ADULT SOCIAL CARE,5 CARE SERVICES LTD,09/11/2021,326.97,6541-Domiciliary Care,THIRD PARTY PAYMENTS,PRIVATE CONTRACTOR,REVENUE
Walsall Council,http://opendatacommunities.org/id/metropolitan-district-council/walsall ,WC132-26,30.11.2021,ADULT SOCIAL CARE,5 CARE SERVICES LTD,09/11/2021,560.52,6541-Domiciliary Care,THIRD PARTY PAYMENTS,PRIVATE CONTRACTOR,REVENUE
Walsall Council,http://opendatacommunities.org/id/metropolitan-district-council/walsall ,WC132-27,30.11.2021,ADULT SOCIAL CARE,5 CARE SERVICES LTD,09/11/2021,934.20,6541-Domiciliary Care,THIRD PARTY PAYMENTS,PRIVATE CONTRACTOR,REVENUE
Walsall Council,http://opendatacommunities.org/id/metropolitan-district-council/walsall ,WC132-28,30.11.2021,ADULT SOCIAL CARE,5 CARE SERVICES LTD,09/11/2021,327.04,6541-Domiciliary Care,THIRD PARTY PAYMENTS,PRIVATE CONTRACTOR,REVENUE
Walsall Council,http://opendatacommunities.org/id/metropolitan-district-council/walsall ,WC132-29,30.11.2021,ADULT SOCIAL CARE,5 CARE SERVICES LTD,09/11/2021,654.01,6541-Domiciliary Care,THIRD PARTY PAYMENTS,PRIVATE CONTRACTOR,REVENUE
Walsall Council,http://opendatacommunities.org/id/metropolitan-district-council/walsall ,WC132-30,30.11.2021,ADULT SOCIAL CARE,5 CARE SERVICES LTD,09/11/2021,326.97,6541-Domiciliary Care,THIRD PARTY PAYMENTS,PRIVATE CONTRACTOR,REVENUE
Walsall Council,http://opendatacommunities.org/id/metropolitan-district-council/walsall ,WC132-31,30.11.2021,ADULT SOCIAL CARE,5 CARE SERVICES LTD,09/11/2021,490.49,6541-Domiciliary Care,THIRD PARTY PAYMENTS,PRIVATE CONTRACTOR,REVENUE
Walsall Council,http://opendatacommunities.org/id/metropolitan-district-council/walsall ,WC132-32,30.11.2021,ADULT SOCIAL CARE,5 CARE SERVICES LTD,09/11/2021,599.48,6541-Domiciliary Care,THIRD PARTY PAYMENTS,PRIVATE CONTRACTOR,REVENUE
Walsall Council,http://opendatacommunities.org/id/metropolitan-district-council/walsall ,WC132-33,30.11.2021,ADULT SOCIAL CARE,5 CARE SERVICES LTD,09/11/2021,809.64,6541-Domiciliary Care,THIRD PARTY PAYMENTS,PRIVATE CONTRACTOR,REVENUE
Walsall Council,http://opendatacommunities.org/id/metropolitan-district-council/walsall ,WC132-34,30.11.2021,ADULT SOCIAL CARE,5 CARE SERVICES LTD,09/11/2021,"1,494.72",6541-Domiciliary Care,THIRD PARTY PAYMENTS,PRIVATE CONTRACTOR,REVENUE
Walsall Council,http://opendatacommunities.org/id/metropolitan-district-council/walsall ,WC132-35,30.11.2021,ADULT SOCIAL CARE,5 CARE SERVICES LTD,09/11/2021,268.68,6541-Domiciliary Care,THIRD PARTY PAYMENTS,PRIVATE CONTRACTOR,REVENUE
Walsall Council,http://opendatacommunities.org/id/metropolitan-district-council/walsall ,WC132-36,30.11.2021,ADULT SOCIAL CARE,5 CARE SERVICES LTD,09/11/2021,"1,198.89",6541-Domiciliary Care,THIRD PARTY PAYMENTS,PRIVATE CONTRACTOR,REVENUE
Walsall Council,http://opendatacommunities.org/id/metropolitan-district-council/walsall ,WC132-37,30.11.2021,ADULT SOCIAL CARE,5 CARE SERVICES LTD,09/11/2021,327.04,6541-Domiciliary Care,THIRD PARTY PAYMENTS,PRIVATE CONTRACTOR,REVENUE
Walsall Council,http://opendatacommunities.org/id/metropolitan-district-council/walsall ,WC132-38,30.11.2021,ADULT SOCIAL CARE,5 CARE SERVICES LTD,09/11/2021,490.49,6541-Domiciliary Care,THIRD PARTY PAYMENTS,PRIVATE CONTRACTOR,REVENUE
Walsall Council,http://opendatacommunities.org/id/metropolitan-district-council/walsall ,WC132-39,30.11.2021,ADULT SOCIAL CARE,5 CARE SERVICES LTD,09/11/2021,544.95,6541-Domiciliary Care,THIRD PARTY PAYMENTS,PRIVATE CONTRACTOR,REVENUE
Walsall Council,http://opendatacommunities.org/id/metropolitan-district-council/walsall ,WC132-40,30.11.2021,ADULT SOCIAL CARE,5 CARE SERVICES LTD,09/11/2021,490.49,6541-Domiciliary Care,THIRD PARTY PAYMENTS,PRIVATE CONTRACTOR,REVENUE
Walsall Council,http://opendatacommunities.org/id/metropolitan-district-council/walsall ,WC132-41,30.11.2021,ADULT SOCIAL CARE,5 CARE SERVICES LTD,09/11/2021,544.95,6541-Domiciliary Care,THIRD PARTY PAYMENTS,PRIVATE CONTRACTOR,REVENUE
Walsall Council,http://opendatacommunities.org/id/metropolitan-district-council/walsall ,WC132-42,30.11.2021,ADULT SOCIAL CARE,5 CARE SERVICES LTD,09/11/2021,560.52,6541-Domiciliary Care,THIRD PARTY PAYMENTS,PRIVATE CONTRACTOR,REVENUE
Walsall Council,http://opendatacommunities.org/id/metropolitan-district-council/walsall ,WC132-43,30.11.2021,ADULT SOCIAL CARE,5 CARE SERVICES LTD,09/11/2021,654.01,6541-Domiciliary Care,THIRD PARTY PAYMENTS,PRIVATE CONTRACTOR,REVENUE
Walsall Council,http://opendatacommunities.org/id/metropolitan-district-council/walsall ,WC132-44,30.11.2021,ADULT SOCIAL CARE,5 CARE SERVICES LTD,09/11/2021,490.49,6541-Domiciliary Care,THIRD PARTY PAYMENTS,PRIVATE CONTRACTOR,REVENUE
Walsall Council,http://opendatacommunities.org/id/metropolitan-district-council/walsall ,WC132-45,30.11.2021,ADULT SOCIAL CARE,5 CARE SERVICES LTD,09/11/2021,591.66,6541-Domiciliary Care,THIRD PARTY PAYMENTS,PRIVATE CONTRACTOR,REVENUE
Walsall Council,http://opendatacommunities.org/id/metropolitan-district-council/walsall ,WC132-46,30.11.2021,ADULT SOCIAL CARE,5 CARE SERVICES LTD,09/11/2021,311.40,6541-Domiciliary Care,THIRD PARTY PAYMENTS,PRIVATE CONTRACTOR,REVENUE
Walsall Council,http://opendatacommunities.org/id/metropolitan-district-council/walsall ,WC132-47,30.11.2021,ADULT SOCIAL CARE,5 CARE SERVICES LTD,09/11/2021,326.97,6541-Domiciliary Care,THIRD PARTY PAYMENTS,PRIVATE CONTRACTOR,REVENUE
Walsall Council,http://opendatacommunities.org/id/metropolitan-district-council/walsall ,WC132-48,30.11.2021,ADULT SOCIAL CARE,5 CARE SERVICES LTD,09/11/2021,490.49,6541-Domiciliary Care,THIRD PARTY PAYMENTS,PRIVATE CONTRACTOR,REVENUE
Walsall Council,http://opendatacommunities.org/id/metropolitan-district-council/walsall ,WC132-49,30.11.2021,ADULT SOCIAL CARE,5 CARE SERVICES LTD,09/11/2021,654.01,6541-Domiciliary Care,THIRD PARTY PAYMENTS,PRIVATE CONTRACTOR,REVENUE
Walsall Council,http://opendatacommunities.org/id/metropolitan-district-council/walsall ,WC132-50,30.11.2021,ADULT SOCIAL CARE,5 CARE SERVICES LTD,09/11/2021,326.97,6541-Domiciliary Care,THIRD PARTY PAYMENTS,PRIVATE CONTRACTOR,REVENUE
Walsall Council,http://opendatacommunities.org/id/metropolitan-district-council/walsall ,WC132-51,30.11.2021,ADULT SOCIAL CARE,5 CARE SERVICES LTD,09/11/2021,599.48,6541-Domiciliary Care,THIRD PARTY PAYMENTS,PRIVATE CONTRACTOR,REVENUE
Walsall Council,http://opendatacommunities.org/id/metropolitan-district-council/walsall ,WC132-52,30.11.2021,ADULT SOCIAL CARE,5 CARE SERVICES LTD,09/11/2021,705.84,6541-Domiciliary Care,THIRD PARTY PAYMENTS,PRIVATE CONTRACTOR,REVENUE
Walsall Council,http://opendatacommunities.org/id/metropolitan-district-council/walsall ,WC132-53,30.11.2021,ADULT SOCIAL CARE,5 CARE SERVICES LTD,17/11/2021,"3,511.12",6541-Domiciliary Care,THIRD PARTY PAYMENTS,PRIVATE CONTRACTOR,REVENUE
Walsall Council,http://opendatacommunities.org/id/metropolitan-district-council/walsall ,WC132-54,30.11.2021,ADULT SOCIAL CARE,5 CARE SERVICES LTD,17/11/2021,"1,362.47",6541-Domiciliary Care,THIRD PARTY PAYMENTS,PRIVATE CONTRACTOR,REVENUE
Walsall Council,http://opendatacommunities.org/id/metropolitan-district-council/walsall ,WC132-55,30.11.2021,ADULT SOCIAL CARE,5 CARE SERVICES LTD,17/11/2021,981.40,6541-Domiciliary Care,THIRD PARTY PAYMENTS,PRIVATE CONTRACTOR,REVENUE
Walsall Council,http://opendatacommunities.org/id/metropolitan-district-council/walsall ,WC132-56,30.11.2021,ADULT SOCIAL CARE,5 CARE SERVICES LTD,17/11/2021,311.60,6541-Domiciliary Care,THIRD PARTY PAYMENTS,PRIVATE CONTRACTOR,REVENUE
Walsall Council,http://opendatacommunities.org/id/metropolitan-district-council/walsall ,WC132-57,30.11.2021,ADULT SOCIAL CARE,5 CARE SERVICES LTD,23/11/2021,490.49,6541-Domiciliary Care,THIRD PARTY PAYMENTS,PRIVATE CONTRACTOR,REVENUE
Walsall Council,http://opendatacommunities.org/id/metropolitan-district-council/walsall ,WC132-58,30.11.2021,ADULT SOCIAL CARE,5 CARE SERVICES LTD,23/11/2021,591.66,6541-Domiciliary Care,THIRD PARTY PAYMENTS,PRIVATE CONTRACTOR,REVENUE
Walsall Council,http://opendatacommunities.org/id/metropolitan-district-council/walsall ,WC132-59,30.11.2021,ADULT SOCIAL CARE,5 CARE SERVICES LTD,23/11/2021,654.01,6541-Domiciliary Care,THIRD PARTY PAYMENTS,PRIVATE CONTRACTOR,REVENUE
Walsall Council,http://opendatacommunities.org/id/metropolitan-district-council/walsall ,WC132-60,30.11.2021,ADULT SOCIAL CARE,5 CARE SERVICES LTD,23/11/2021,268.68,6541-Domiciliary Care,THIRD PARTY PAYMENTS,PRIVATE CONTRACTOR,REVENUE
Walsall Council,http://opendatacommunities.org/id/metropolitan-district-council/walsall ,WC132-61,30.11.2021,ADULT SOCIAL CARE,5 CARE SERVICES LTD,23/11/2021,490.49,6541-Domiciliary Care,THIRD PARTY PAYMENTS,PRIVATE CONTRACTOR,REVENUE
Walsall Council,http://opendatacommunities.org/id/metropolitan-district-council/walsall ,WC132-62,30.11.2021,ADULT SOCIAL CARE,5 CARE SERVICES LTD,23/11/2021,544.95,6541-Domiciliary Care,THIRD PARTY PAYMENTS,PRIVATE CONTRACTOR,REVENUE
Walsall Council,http://opendatacommunities.org/id/metropolitan-district-council/walsall ,WC132-63,30.11.2021,ADULT SOCIAL CARE,5 CARE SERVICES LTD,23/11/2021,311.40,6541-Domiciliary Care,THIRD PARTY PAYMENTS,PRIVATE CONTRACTOR,REVENUE
Walsall Council,http://opendatacommunities.org/id/metropolitan-district-council/walsall ,WC132-64,30.11.2021,ADULT SOCIAL CARE,5 CARE SERVICES LTD,23/11/2021,326.97,6541-Domiciliary Care,THIRD PARTY PAYMENTS,PRIVATE CONTRACTOR,REVENUE
Walsall Council,http://opendatacommunities.org/id/metropolitan-district-council/walsall ,WC132-65,30.11.2021,ADULT SOCIAL CARE,5 CARE SERVICES LTD,23/11/2021,490.49,6541-Domiciliary Care,THIRD PARTY PAYMENTS,PRIVATE CONTRACTOR,REVENUE
Walsall Council,http://opendatacommunities.org/id/metropolitan-district-council/walsall ,WC132-66,30.11.2021,ADULT SOCIAL CARE,5 CARE SERVICES LTD,23/11/2021,"1,121.04",6541-Domiciliary Care,THIRD PARTY PAYMENTS,PRIVATE CONTRACTOR,REVENUE
Walsall Council,http://opendatacommunities.org/id/metropolitan-district-council/walsall ,WC132-67,30.11.2021,ADULT SOCIAL CARE,5 CARE SERVICES LTD,23/11/2021,327.04,6541-Domiciliary Care,THIRD PARTY PAYMENTS,PRIVATE CONTRACTOR,REVENUE
Walsall Council,http://opendatacommunities.org/id/metropolitan-district-council/walsall ,WC132-68,30.11.2021,ADULT SOCIAL CARE,5 CARE SERVICES LTD,23/11/2021,490.49,6541-Domiciliary Care,THIRD PARTY PAYMENTS,PRIVATE CONTRACTOR,REVENUE
Walsall Council,http://opendatacommunities.org/id/metropolitan-district-council/walsall ,WC132-69,30.11.2021,ADULT SOCIAL CARE,5 CARE SERVICES LTD,23/11/2021,544.95,6541-Domiciliary Care,THIRD PARTY PAYMENTS,PRIVATE CONTRACTOR,REVENUE
Walsall Council,http://opendatacommunities.org/id/metropolitan-district-council/walsall ,WC132-70,30.11.2021,ADULT SOCIAL CARE,5 CARE SERVICES LTD,23/11/2021,654.01,6541-Domiciliary Care,THIRD PARTY PAYMENTS,PRIVATE CONTRACTOR,REVENUE
Walsall Council,http://opendatacommunities.org/id/metropolitan-district-council/walsall ,WC132-71,30.11.2021,ADULT SOCIAL CARE,5 CARE SERVICES LTD,23/11/2021,326.97,6541-Domiciliary Care,THIRD PARTY PAYMENTS,PRIVATE CONTRACTOR,REVENUE
Walsall Council,http://opendatacommunities.org/id/metropolitan-district-council/walsall ,WC132-72,30.11.2021,ADULT SOCIAL CARE,5 CARE SERVICES LTD,23/11/2021,599.48,6541-Domiciliary Care,THIRD PARTY PAYMENTS,PRIVATE CONTRACTOR,REVENUE
Walsall Council,http://opendatacommunities.org/id/metropolitan-district-council/walsall ,WC132-73,30.11.2021,ADULT SOCIAL CARE,5 CARE SERVICES LTD,23/11/2021,716.22,6541-Domiciliary Care,THIRD PARTY PAYMENTS,PRIVATE CONTRACTOR,REVENUE
Walsall Council,http://opendatacommunities.org/id/metropolitan-district-council/walsall ,WC132-74,30.11.2021,ADULT SOCIAL CARE,5 CARE SERVICES LTD,23/11/2021,"1,198.89",6541-Domiciliary Care,THIRD PARTY PAYMENTS,PRIVATE CONTRACTOR,REVENUE
Walsall Council,http://opendatacommunities.org/id/metropolitan-district-council/walsall ,WC132-75,30.11.2021,ADULT SOCIAL CARE,5 CARE SERVICES LTD,23/11/2021,560.52,6541-Domiciliary Care,THIRD PARTY PAYMENTS,PRIVATE CONTRACTOR,REVENUE
Walsall Council,http://opendatacommunities.org/id/metropolitan-district-council/walsall ,WC132-76,30.11.2021,ADULT SOCIAL CARE,5 CARE SERVICES LTD,23/11/2021,490.49,6541-Domiciliary Care,THIRD PARTY PAYMENTS,PRIVATE CONTRACTOR,REVENUE
Walsall Council,http://opendatacommunities.org/id/metropolitan-district-council/walsall ,WC132-77,30.11.2021,ADULT SOCIAL CARE,5 CARE SERVICES LTD,23/11/2021,591.66,6541-Domiciliary Care,THIRD PARTY PAYMENTS,PRIVATE CONTRACTOR,REVENUE
Walsall Council,http://opendatacommunities.org/id/metropolitan-district-council/walsall ,WC132-78,30.11.2021,ADULT SOCIAL CARE,5 CARE SERVICES LTD,23/11/2021,654.01,6541-Domiciliary Care,THIRD PARTY PAYMENTS,PRIVATE CONTRACTOR,REVENUE
Walsall Council,http://opendatacommunities.org/id/metropolitan-district-council/walsall ,WC132-79,30.11.2021,ADULT SOCIAL CARE,5 CARE SERVICES LTD,23/11/2021,268.68,6541-Domiciliary Care,THIRD PARTY PAYMENTS,PRIVATE CONTRACTOR,REVENUE
Walsall Council,http://opendatacommunities.org/id/metropolitan-district-council/walsall ,WC132-80,30.11.2021,ADULT SOCIAL CARE,5 CARE SERVICES LTD,23/11/2021,"1,198.89",6541-Domiciliary Care,THIRD PARTY PAYMENTS,PRIVATE CONTRACTOR,REVENUE
Walsall Council,http://opendatacommunities.org/id/metropolitan-district-council/walsall ,WC132-81,30.11.2021,ADULT SOCIAL CARE,5 CARE SERVICES LTD,23/11/2021,490.49,6541-Domiciliary Care,THIRD PARTY PAYMENTS,PRIVATE CONTRACTOR,REVENUE
Walsall Council,http://opendatacommunities.org/id/metropolitan-district-council/walsall ,WC132-82,30.11.2021,ADULT SOCIAL CARE,5 CARE SERVICES LTD,23/11/2021,544.95,6541-Domiciliary Care,THIRD PARTY PAYMENTS,PRIVATE CONTRACTOR,REVENUE
Walsall Council,http://opendatacommunities.org/id/metropolitan-district-council/walsall ,WC132-83,30.11.2021,ADULT SOCIAL CARE,5 CARE SERVICES LTD,23/11/2021,560.52,6541-Domiciliary Care,THIRD PARTY PAYMENTS,PRIVATE CONTRACTOR,REVENUE
Walsall Council,http://opendatacommunities.org/id/metropolitan-district-council/walsall ,WC132-84,30.11.2021,ADULT SOCIAL CARE,5 CARE SERVICES LTD,23/11/2021,747.36,6541-Domiciliary Care,THIRD PARTY PAYMENTS,PRIVATE CONTRACTOR,REVENUE
Walsall Council,http://opendatacommunities.org/id/metropolitan-district-council/walsall ,WC132-85,30.11.2021,ADULT SOCIAL CARE,5 CARE SERVICES LTD,23/11/2021,654.01,6541-Domiciliary Care,THIRD PARTY PAYMENTS,PRIVATE CONTRACTOR,REVENUE
Walsall Council,http://opendatacommunities.org/id/metropolitan-district-council/walsall ,WC132-86,30.11.2021,ADULT SOCIAL CARE,5 CARE SERVICES LTD,23/11/2021,326.97,6541-Domiciliary Care,THIRD PARTY PAYMENTS,PRIVATE CONTRACTOR,REVENUE
Walsall Council,http://opendatacommunities.org/id/metropolitan-district-council/walsall ,WC132-87,30.11.2021,ADULT SOCIAL CARE,5 CARE SERVICES LTD,23/11/2021,490.49,6541-Domiciliary Care,THIRD PARTY PAYMENTS,PRIVATE CONTRACTOR,REVENUE
Walsall Council,http://opendatacommunities.org/id/metropolitan-district-council/walsall ,WC132-88,30.11.2021,ADULT SOCIAL CARE,5 CARE SERVICES LTD,23/11/2021,544.95,6541-Domiciliary Care,THIRD PARTY PAYMENTS,PRIVATE CONTRACTOR,REVENUE
Walsall Council,http://opendatacommunities.org/id/metropolitan-district-council/walsall ,WC132-89,30.11.2021,ADULT SOCIAL CARE,5 CARE SERVICES LTD,23/11/2021,327.04,6541-Domiciliary Care,THIRD PARTY PAYMENTS,PRIVATE CONTRACTOR,REVENUE
Walsall Council,http://opendatacommunities.org/id/metropolitan-district-council/walsall ,WC132-90,30.11.2021,ADULT SOCIAL CARE,5 CARE SERVICES LTD,23/11/2021,599.48,6541-Domiciliary Care,THIRD PARTY PAYMENTS,PRIVATE CONTRACTOR,REVENUE
Walsall Council,http://opendatacommunities.org/id/metropolitan-district-council/walsall ,WC132-91,30.11.2021,ADULT SOCIAL CARE,5 CARE SERVICES LTD,23/11/2021,705.84,6541-Domiciliary Care,THIRD PARTY PAYMENTS,PRIVATE CONTRACTOR,REVENUE
Walsall Council,http://opendatacommunities.org/id/metropolitan-district-council/walsall ,WC132-92,30.11.2021,ADULT SOCIAL CARE,5 CARE SERVICES LTD,23/11/2021,311.40,6541-Domiciliary Care,THIRD PARTY PAYMENTS,PRIVATE CONTRACTOR,REVENUE
Walsall Council,http://opendatacommunities.org/id/metropolitan-district-council/walsall ,WC132-93,30.11.2021,ADULT SOCIAL CARE,5 CARE SERVICES LTD,23/11/2021,326.97,6541-Domiciliary Care,THIRD PARTY PAYMENTS,PRIVATE CONTRACTOR,REVENUE
Walsall Council,http://opendatacommunities.org/id/metropolitan-district-council/walsall ,WC132-94,30.11.2021,ADULT SOCIAL CARE,5 CARE SERVICES LTD,23/11/2021,490.49,6541-Domiciliary Care,THIRD PARTY PAYMENTS,PRIVATE CONTRACTOR,REVENUE
Walsall Council,http://opendatacommunities.org/id/metropolitan-district-council/walsall ,WC132-95,30.11.2021,CHILDRENS,5 CARE SERVICES LTD,03/11/2021,255.20,6220-Professional Fees & Services,SUPPLIES & SERVICES,SERVICES,REVENUE
Walsall Council,http://opendatacommunities.org/id/metropolitan-district-council/walsall ,WC132-96,30.11.2021,CHILDRENS,5 CARE SERVICES LTD,18/11/2021,255.20,6220-Professional Fees & Services,SUPPLIES & SERVICES,SERVICES,REVENUE
Walsall Council,http://opendatacommunities.org/id/metropolitan-district-council/walsall ,WC132-97,30.11.2021,"ECONOMY, ENVIRONMENT & COMMUNITIES",A B WASTE MANAGEMENT LTD,19/11/2021,265.00,"6414-Leasing, Hire & Rental of Equipment",SUPPLIES & SERVICES,EQUIPMENT FURNITURE & MATERIALS,REVENUE
Walsall Council,http://opendatacommunities.org/id/metropolitan-district-council/walsall ,WC132-98,30.11.2021,CHILDRENS,A D T FIRE AND SECURITY PLC,15/11/2021,905.97,6223-Operational Maintenance,PREMISES,REPAIRS & MAINTENANCE,REVENUE
Walsall Council,http://opendatacommunities.org/id/metropolitan-district-council/walsall ,WC132-99,30.11.2021,CHILDRENS,A D T FIRE AND SECURITY PLC,11/11/2021,-905.97,6223-Operational Maintenance,PREMISES,REPAIRS & MAINTENANCE,REVENUE
Walsall Council,http://opendatacommunities.org/id/metropolitan-district-council/walsall ,WC132-100,30.11.2021,CHILDRENS,A D T FIRE AND SECURITY PLC,11/11/2021,905.97,6223-Operational Maintenance,PREMISES,REPAIRS & MAINTENANCE,REVENUE
Walsall Council,http://opendatacommunities.org/id/metropolitan-district-council/walsall ,WC132-101,30.11.2021,RESOURCES AND TRANSFORMATION,A D T FIRE AND SECURITY PLC,08/11/2021,364.27,6310-Repair & Maintenance of Furniture & Equipment,SUPPLIES & SERVICES,EQUIPMENT FURNITURE & MATERIALS,REVENUE
Walsall Council,http://opendatacommunities.org/id/metropolitan-district-council/walsall ,WC132-102,30.11.2021,RESOURCES AND TRANSFORMATION,A D T FIRE AND SECURITY PLC,08/11/2021,495.14,6310-Repair & Maintenance of Furniture & Equipment,SUPPLIES & SERVICES,EQUIPMENT FURNITURE & MATERIALS,REVENUE
Walsall Council,http://opendatacommunities.org/id/metropolitan-district-council/walsall ,WC132-103,30.11.2021,"ECONOMY, ENVIRONMENT & COMMUNITIES",A F BLAKEMORE & SON LTD,10/11/2021,754.84,6413-Food & Drink Supplies,SUPPLIES & SERVICES,CATERING,REVENUE
Walsall Council,http://opendatacommunities.org/id/metropolitan-district-council/walsall ,WC132-104,30.11.2021,"ECONOMY, ENVIRONMENT & COMMUNITIES",A J CLAYTON T/A NOTEJUSTE,29/11/2021,300.00,6313-Purchase of Furniture & Equipment,SUPPLIES & SERVICES,EQUIPMENT FURNITURE & MATERIALS,REVENUE
Walsall Council,http://opendatacommunities.org/id/metropolitan-district-council/walsall ,WC132-105,30.11.2021,"ECONOMY, ENVIRONMENT & COMMUNITIES",AAINA COMMUNITY HUB,05/11/2021,"3,034.46",6430-Consultant Fees,SUPPLIES & SERVICES,SERVICES,REVENUE
Walsall Council,http://opendatacommunities.org/id/metropolitan-district-council/walsall ,WC132-106,30.11.2021,"ECONOMY, ENVIRONMENT & COMMUNITIES",AAINA COMMUNITY HUB,05/11/2021,"2,938.00",6430-Consultant Fees,SUPPLIES & SERVICES,SERVICES,REVENUE
Walsall Council,http://opendatacommunities.org/id/metropolitan-district-council/walsall ,WC132-107,30.11.2021,ADULT SOCIAL CARE,AAINA COMMUNITY HUB,03/11/2021,540.00,6420-Consultant Fees,SUPPLIES & SERVICES,SERVICES,REVENUE
Walsall Council,http://opendatacommunities.org/id/metropolitan-district-council/walsall ,WC132-108,30.11.2021,ADULT SOCIAL CARE,ABBEY COURT NURSING & RESIDEN,23/11/2021,"2,571.08",6541-Residential EMI,THIRD PARTY PAYMENTS,PRIVATE CONTRACTOR,REVENUE
Walsall Council,http://opendatacommunities.org/id/metropolitan-district-council/walsall ,WC132-109,30.11.2021,ADULT SOCIAL CARE,ABBEY COURT NURSING & RESIDEN,23/11/2021,"2,064.44",6541-Residential,THIRD PARTY PAYMENTS,PRIVATE CONTRACTOR,REVENUE
Walsall Council,http://opendatacommunities.org/id/metropolitan-district-council/walsall ,WC132-110,30.11.2021,ADULT SOCIAL CARE,ABBEY COURT NURSING & RESIDEN,23/11/2021,"1,814.97",6541-Nursing,THIRD PARTY PAYMENTS,PRIVATE CONTRACTOR,REVENUE
Walsall Council,http://opendatacommunities.org/id/metropolitan-district-council/walsall ,WC132-111,30.11.2021,ADULT SOCIAL CARE,ABBEY COURT NURSING & RESIDEN,23/11/2021,"2,331.08",6541-Residential EMI,THIRD PARTY PAYMENTS,PRIVATE CONTRACTOR,REVENUE
Walsall Council,http://opendatacommunities.org/id/metropolitan-district-council/walsall ,WC132-112,30.11.2021,ADULT SOCIAL CARE,ABBEY HEALTHCARE HOMES LTD,23/11/2021,"3,133.76",6541-Residential,THIRD PARTY PAYMENTS,PRIVATE CONTRACTOR,REVENUE
Walsall Council,http://opendatacommunities.org/id/metropolitan-district-council/walsall ,WC132-113,30.11.2021,ADULT SOCIAL CARE,ABBEY HEALTHCARE HOMES LTD,23/11/2021,"2,396.36",6541-Residential,THIRD PARTY PAYMENTS,PRIVATE CONTRACTOR,REVENUE
Walsall Council,http://opendatacommunities.org/id/metropolitan-district-council/walsall ,WC132-114,30.11.2021,ADULT SOCIAL CARE,ABBEY HEALTHCARE HOMES LTD,23/11/2021,"3,133.76",6541-Residential,THIRD PARTY PAYMENTS,PRIVATE CONTRACTOR,REVENUE
Walsall Council,http://opendatacommunities.org/id/metropolitan-district-council/walsall ,WC132-115,30.11.2021,ADULT SOCIAL CARE,ABBEY HEALTHCARE HOMES LTD,23/11/2021,"3,551.56",6541-Residential,THIRD PARTY PAYMENTS,PRIVATE CONTRACTOR,REVENUE
Walsall Council,http://opendatacommunities.org/id/metropolitan-district-council/walsall ,WC132-116,30.11.2021,ADULT SOCIAL CARE,REDACTED,03/11/2021,"2,132.48",6541-Direct Payment,THIRD PARTY PAYMENTS,PRIVATE CONTRACTOR,REVENUE
Walsall Council,http://opendatacommunities.org/id/metropolitan-district-council/walsall ,WC132-117,30.11.2021,CHILDRENS,ABLEWELL CARS,08/11/2021,"1,976.00",6241-Hire of Vehicle with Driver,TRANSPORT,DIRECT TRANSPORT COSTS,REVENUE
Walsall Council,http://opendatacommunities.org/id/metropolitan-district-council/walsall ,WC132-118,30.11.2021,CHILDRENS,ABLEWELL CARS,08/11/2021,"1,664.00",6241-Hire of Vehicle with Driver,TRANSPORT,DIRECT TRANSPORT COSTS,REVENUE
Walsall Council,http://opendatacommunities.org/id/metropolitan-district-council/walsall ,WC132-119,30.11.2021,CHILDRENS,ABLEWELL CARS,08/11/2021,810.00,6241-Hire of Vehicle with Driver,TRANSPORT,DIRECT TRANSPORT COSTS,REVENUE
Walsall Council,http://opendatacommunities.org/id/metropolitan-district-council/walsall ,WC132-120,30.11.2021,CHILDRENS,ABLEWELL CARS,08/11/2021,"1,144.80",6241-Hire of Vehicle with Driver,TRANSPORT,DIRECT TRANSPORT COSTS,REVENUE
Walsall Council,http://opendatacommunities.org/id/metropolitan-district-council/walsall ,WC132-121,30.11.2021,CHILDRENS,ABLEWELL CARS,08/11/2021,"1,323.60",6241-Hire of Vehicle with Driver,TRANSPORT,DIRECT TRANSPORT COSTS,REVENUE
Walsall Council,http://opendatacommunities.org/id/metropolitan-district-council/walsall ,WC132-122,30.11.2021,CHILDRENS,ABLEWELL CARS,08/11/2021,"2,920.00",6241-Hire of Vehicle with Driver,TRANSPORT,DIRECT TRANSPORT COSTS,REVENUE
Walsall Council,http://opendatacommunities.org/id/metropolitan-district-council/walsall ,WC132-123,30.11.2021,CHILDRENS,ABS TAXIS (ALDRIDGE),08/11/2021,"1,723.30",6241-Hire of Vehicle with Driver,TRANSPORT,DIRECT TRANSPORT COSTS,REVENUE
Walsall Council,http://opendatacommunities.org/id/metropolitan-district-council/walsall ,WC132-124,30.11.2021,CHILDRENS,ABS TAXIS (ALDRIDGE),08/11/2021,932.40,6241-Hire of Vehicle with Driver,TRANSPORT,DIRECT TRANSPORT COSTS,REVENUE
Walsall Council,http://opendatacommunities.org/id/metropolitan-district-council/walsall ,WC132-125,30.11.2021,"ECONOMY, ENVIRONMENT & COMMUNITIES",AC OPTICS LTD,11/11/2021,275.22,6313-Grants to Other Orgs,SUPPLIES & SERVICES,GRANTS (EXP) & SUBSCRIPTIONS,REVENUE
Walsall Council,http://opendatacommunities.org/id/metropolitan-district-council/walsall ,WC132-126,30.11.2021,"ECONOMY, ENVIRONMENT & COMMUNITIES",AC OPTICS LTD,15/11/2021,710.64,6313-Grants to Other Orgs,SUPPLIES & SERVICES,GRANTS (EXP) & SUBSCRIPTIONS,REVENUE
Walsall Council,http://opendatacommunities.org/id/metropolitan-district-council/walsall ,WC132-127,30.11.2021,CHILDRENS,ACCALIA CARE SERVICES LTD,01/11/2021,"18,357.86",6223-External Residential Care-Oth Agency Provision,THIRD PARTY PAYMENTS,PRIVATE CONTRACTOR,REVENUE
Walsall Council,http://opendatacommunities.org/id/metropolitan-district-council/walsall ,WC132-128,30.11.2021,CHILDRENS,ACCALIA CARE SERVICES LTD,01/11/2021,"15,000.00",6223-External Residential Care-Oth Agency Provision,THIRD PARTY PAYMENTS,PRIVATE CONTRACTOR,REVENUE
Walsall Council,http://opendatacommunities.org/id/metropolitan-district-council/walsall ,WC132-129,30.11.2021,CHILDRENS,ACCALIA CARE SERVICES LTD,30/11/2021,"15,000.00",6223-External Residential Care-Oth Agency Provision,THIRD PARTY PAYMENTS,PRIVATE CONTRACTOR,REVENUE
Walsall Council,http://opendatacommunities.org/id/metropolitan-district-council/walsall ,WC132-130,30.11.2021,CHILDRENS,ACCALIA CARE SERVICES LTD,30/11/2021,"18,490.71",6223-External Residential Care-Oth Agency Provision,THIRD PARTY PAYMENTS,PRIVATE CONTRACTOR,REVENUE
Walsall Council,http://opendatacommunities.org/id/metropolitan-district-council/walsall ,WC132-131,30.11.2021,CHILDRENS,ACCOMPANIED CARE,30/11/2021,"3,573.94",6223-Accommodation and Related Costs-Assistance to S/S Clients,TRANSFER PAYMENTS,ADULT SOCIAL SERVICES CLIENT,REVENUE
Walsall Council,http://opendatacommunities.org/id/metropolitan-district-council/walsall ,WC132-132,30.11.2021,CHILDRENS,ACCOMPANIED CARE,30/11/2021,"3,622.47",6223-Accommodation and Related Costs-Assistance to S/S Clients,TRANSFER PAYMENTS,ADULT SOCIAL SERVICES CLIENT,REVENUE
Walsall Council,http://opendatacommunities.org/id/metropolitan-district-council/walsall ,WC132-133,30.11.2021,ADULT SOCIAL CARE,ACCOMPLISH GROUP LTD,23/11/2021,"7,881.48",6541-Residential,THIRD PARTY PAYMENTS,PRIVATE CONTRACTOR,REVENUE
Walsall Council,http://opendatacommunities.org/id/metropolitan-district-council/walsall ,WC132-134,30.11.2021,ADULT SOCIAL CARE,ACCORD HOUSING ASSOCIATION LIMITED - HOBS MEADOW,23/11/2021,"4,706.24",6541-Residential,THIRD PARTY PAYMENTS,PRIVATE CONTRACTOR,REVENUE
Walsall Council,http://opendatacommunities.org/id/metropolitan-district-council/walsall ,WC132-135,30.11.2021,ADULT SOCIAL CARE,ACCORD HOUSING ASSOCIATION LIMITED - HOBS MEADOW,23/11/2021,"4,706.24",6541-Residential,THIRD PARTY PAYMENTS,PRIVATE CONTRACTOR,REVENUE
Walsall Council,http://opendatacommunities.org/id/metropolitan-district-council/walsall ,WC132-136,30.11.2021,ADULT SOCIAL CARE,ACCORD HOUSING ASSOCIATION LIMITED - HOBS MEADOW,23/11/2021,"4,706.24",6541-Residential,THIRD PARTY PAYMENTS,PRIVATE CONTRACTOR,REVENUE
Walsall Council,http://opendatacommunities.org/id/metropolitan-district-council/walsall ,WC132-137,30.11.2021,ADULT SOCIAL CARE,ACCORD HOUSING ASSOCIATION LIMITED - HOBS MEADOW,23/11/2021,"4,706.24",6541-Residential,THIRD PARTY PAYMENTS,PRIVATE CONTRACTOR,REVENUE
Walsall Council,http://opendatacommunities.org/id/metropolitan-district-council/walsall ,WC132-138,30.11.2021,CHILDRENS,ACE CARS & MINIBUSES LTD,08/11/2021,"2,140.00",6241-Hire of Vehicle with Driver,TRANSPORT,DIRECT TRANSPORT COSTS,REVENUE
Walsall Council,http://opendatacommunities.org/id/metropolitan-district-council/walsall ,WC132-139,30.11.2021,CHILDRENS,ACE CARS & MINIBUSES LTD,08/11/2021,"2,140.00",6241-Hire of Vehicle with Driver,TRANSPORT,DIRECT TRANSPORT COSTS,REVENUE
Walsall Council,http://opendatacommunities.org/id/metropolitan-district-council/walsall ,WC132-140,30.11.2021,CHILDRENS,ACE CARS & MINIBUSES LTD,08/11/2021,"2,280.00",6241-Hire of Vehicle with Driver,TRANSPORT,DIRECT TRANSPORT COSTS,REVENUE
Walsall Council,http://opendatacommunities.org/id/metropolitan-district-council/walsall ,WC132-141,30.11.2021,CHILDRENS,ACE CARS & MINIBUSES LTD,08/11/2021,"2,390.00",6241-Hire of Vehicle with Driver,TRANSPORT,DIRECT TRANSPORT COSTS,REVENUE
Walsall Council,http://opendatacommunities.org/id/metropolitan-district-council/walsall ,WC132-142,30.11.2021,CHILDRENS,ACE CARS & MINIBUSES LTD,08/11/2021,"2,280.00",6241-Hire of Vehicle with Driver,TRANSPORT,DIRECT TRANSPORT COSTS,REVENUE
Walsall Council,http://opendatacommunities.org/id/metropolitan-district-council/walsall ,WC132-143,30.11.2021,CHILDRENS,ACE CARS & MINIBUSES LTD,08/11/2021,"2,140.00",6241-Hire of Vehicle with Driver,TRANSPORT,DIRECT TRANSPORT COSTS,REVENUE
Walsall Council,http://opendatacommunities.org/id/metropolitan-district-council/walsall ,WC132-144,30.11.2021,CHILDRENS,ACE CARS & MINIBUSES LTD,08/11/2021,"2,140.00",6241-Hire of Vehicle with Driver,TRANSPORT,DIRECT TRANSPORT COSTS,REVENUE
Walsall Council,http://opendatacommunities.org/id/metropolitan-district-council/walsall ,WC132-145,30.11.2021,CHILDRENS,ACE CARS & MINIBUSES LTD,08/11/2021,"2,390.00",6241-Hire of Vehicle with Driver,TRANSPORT,DIRECT TRANSPORT COSTS,REVENUE
Walsall Council,http://opendatacommunities.org/id/metropolitan-district-council/walsall ,WC132-146,30.11.2021,CHILDRENS,ACE CARS & MINIBUSES LTD,08/11/2021,"2,585.90",6241-Hire of Vehicle with Driver,TRANSPORT,DIRECT TRANSPORT COSTS,REVENUE
Walsall Council,http://opendatacommunities.org/id/metropolitan-district-council/walsall ,WC132-147,30.11.2021,CHILDRENS,ACE CARS & MINIBUSES LTD,08/11/2021,"2,140.00",6241-Hire of Vehicle with Driver,TRANSPORT,DIRECT TRANSPORT COSTS,REVENUE
Walsall Council,http://opendatacommunities.org/id/metropolitan-district-council/walsall ,WC132-148,30.11.2021,CHILDRENS,ACE CARS & MINIBUSES LTD,08/11/2021,"2,360.00",6241-Hire of Vehicle with Driver,TRANSPORT,DIRECT TRANSPORT COSTS,REVENUE
Walsall Council,http://opendatacommunities.org/id/metropolitan-district-council/walsall ,WC132-149,30.11.2021,CHILDRENS,ACE CARS & MINIBUSES LTD,08/11/2021,"2,585.90",6241-Hire of Vehicle with Driver,TRANSPORT,DIRECT TRANSPORT COSTS,REVENUE
Walsall Council,http://opendatacommunities.org/id/metropolitan-district-council/walsall ,WC132-150,30.11.2021,CHILDRENS,ACE CARS & MINIBUSES LTD,08/11/2021,"2,585.90",6241-Hire of Vehicle with Driver,TRANSPORT,DIRECT TRANSPORT COSTS,REVENUE
Walsall Council,http://opendatacommunities.org/id/metropolitan-district-council/walsall ,WC132-151,30.11.2021,CHILDRENS,ACE CARS & MINIBUSES LTD,08/11/2021,"2,585.90",6241-Hire of Vehicle with Driver,TRANSPORT,DIRECT TRANSPORT COSTS,REVENUE
Walsall Council,http://opendatacommunities.org/id/metropolitan-district-council/walsall ,WC132-152,30.11.2021,CHILDRENS,ACE CARS & MINIBUSES LTD,08/11/2021,"2,360.00",6241-Hire of Vehicle with Driver,TRANSPORT,DIRECT TRANSPORT COSTS,REVENUE
Walsall Council,http://opendatacommunities.org/id/metropolitan-district-council/walsall ,WC132-153,30.11.2021,CHILDRENS,ACE CARS & MINIBUSES LTD,08/11/2021,"2,280.00",6241-Hire of Vehicle with Driver,TRANSPORT,DIRECT TRANSPORT COSTS,REVENUE
Walsall Council,http://opendatacommunities.org/id/metropolitan-district-council/walsall ,WC132-154,30.11.2021,CHILDRENS,ACE CARS & MINIBUSES LTD,08/11/2021,"2,140.00",6241-Hire of Vehicle with Driver,TRANSPORT,DIRECT TRANSPORT COSTS,REVENUE
Walsall Council,http://opendatacommunities.org/id/metropolitan-district-council/walsall ,WC132-155,30.11.2021,CHILDRENS,ACE CARS & MINIBUSES LTD,08/11/2021,"2,140.00",6241-Hire of Vehicle with Driver,TRANSPORT,DIRECT TRANSPORT COSTS,REVENUE
Walsall Council,http://opendatacommunities.org/id/metropolitan-district-council/walsall ,WC132-156,30.11.2021,CHILDRENS,ACE CARS & MINIBUSES LTD,08/11/2021,"2,140.00",6241-Hire of Vehicle with Driver,TRANSPORT,DIRECT TRANSPORT COSTS,REVENUE
Walsall Council,http://opendatacommunities.org/id/metropolitan-district-council/walsall ,WC132-157,30.11.2021,CHILDRENS,ACE CARS & MINIBUSES LTD,08/11/2021,"2,390.00",6241-Hire of Vehicle with Driver,TRANSPORT,DIRECT TRANSPORT COSTS,REVENUE
Walsall Council,http://opendatacommunities.org/id/metropolitan-district-council/walsall ,WC132-158,30.11.2021,CHILDRENS,ACE CARS & MINIBUSES LTD,08/11/2021,"2,390.00",6241-Hire of Vehicle with Driver,TRANSPORT,DIRECT TRANSPORT COSTS,REVENUE
Walsall Council,http://opendatacommunities.org/id/metropolitan-district-council/walsall ,WC132-159,30.11.2021,CHILDRENS,ACE CARS & MINIBUSES LTD,08/11/2021,"2,390.00",6241-Hire of Vehicle with Driver,TRANSPORT,DIRECT TRANSPORT COSTS,REVENUE
Walsall Council,http://opendatacommunities.org/id/metropolitan-district-council/walsall ,WC132-160,30.11.2021,CHILDRENS,ACE CARS & MINIBUSES LTD,08/11/2021,"2,585.90",6241-Hire of Vehicle with Driver,TRANSPORT,DIRECT TRANSPORT COSTS,REVENUE
Walsall Council,http://opendatacommunities.org/id/metropolitan-district-council/walsall ,WC132-161,30.11.2021,CHILDRENS,ACE CARS & MINIBUSES LTD,08/11/2021,"2,585.90",6241-Hire of Vehicle with Driver,TRANSPORT,DIRECT TRANSPORT COSTS,REVENUE
Walsall Council,http://opendatacommunities.org/id/metropolitan-district-council/walsall ,WC132-162,30.11.2021,CHILDRENS,ACE CARS & MINIBUSES LTD,08/11/2021,"2,280.00",6241-Hire of Vehicle with Driver,TRANSPORT,DIRECT TRANSPORT COSTS,REVENUE
Walsall Council,http://opendatacommunities.org/id/metropolitan-district-council/walsall ,WC132-163,30.11.2021,CHILDRENS,ACE CARS & MINIBUSES LTD,08/11/2021,"2,360.00",6241-Hire of Vehicle with Driver,TRANSPORT,DIRECT TRANSPORT COSTS,REVENUE
Walsall Council,http://opendatacommunities.org/id/metropolitan-district-council/walsall ,WC132-164,30.11.2021,CHILDRENS,ACE CARS & MINIBUSES LTD,08/11/2021,"2,360.00",6241-Hire of Vehicle with Driver,TRANSPORT,DIRECT TRANSPORT COSTS,REVENUE
Walsall Council,http://opendatacommunities.org/id/metropolitan-district-council/walsall ,WC132-165,30.11.2021,CHILDRENS,ACE CARS & MINIBUSES LTD,08/11/2021,"2,360.00",6241-Hire of Vehicle with Driver,TRANSPORT,DIRECT TRANSPORT COSTS,REVENUE
Walsall Council,http://opendatacommunities.org/id/metropolitan-district-council/walsall ,WC132-166,30.11.2021,CHILDRENS,ACE CARS & MINIBUSES LTD,08/11/2021,"2,280.00",6241-Hire of Vehicle with Driver,TRANSPORT,DIRECT TRANSPORT COSTS,REVENUE
Walsall Council,http://opendatacommunities.org/id/metropolitan-district-council/walsall ,WC132-167,30.11.2021,CHILDRENS,ACE CARS & MINIBUSES LTD,08/11/2021,"2,390.00",6241-Hire of Vehicle with Driver,TRANSPORT,DIRECT TRANSPORT COSTS,REVENUE
Walsall Council,http://opendatacommunities.org/id/metropolitan-district-council/walsall ,WC132-168,30.11.2021,CHILDRENS,ACE CARS & MINIBUSES LTD,08/11/2021,"2,140.00",6241-Hire of Vehicle with Driver,TRANSPORT,DIRECT TRANSPORT COSTS,REVENUE
Walsall Council,http://opendatacommunities.org/id/metropolitan-district-council/walsall ,WC132-169,30.11.2021,CHILDRENS,ACE CARS & MINIBUSES LTD,08/11/2021,"2,360.00",6241-Hire of Vehicle with Driver,TRANSPORT,DIRECT TRANSPORT COSTS,REVENUE
Walsall Council,http://opendatacommunities.org/id/metropolitan-district-council/walsall ,WC132-170,30.11.2021,CHILDRENS,ACE CARS & MINIBUSES LTD,08/11/2021,"2,140.00",6241-Hire of Vehicle with Driver,TRANSPORT,DIRECT TRANSPORT COSTS,REVENUE
Walsall Council,http://opendatacommunities.org/id/metropolitan-district-council/walsall ,WC132-171,30.11.2021,CHILDRENS,ACE CARS & MINIBUSES LTD,08/11/2021,"2,585.90",6241-Hire of Vehicle with Driver,TRANSPORT,DIRECT TRANSPORT COSTS,REVENUE
Walsall Council,http://opendatacommunities.org/id/metropolitan-district-council/walsall ,WC132-172,30.11.2021,RESOURCES AND TRANSFORMATION,ACE PA HIRE,19/11/2021,480.00,6625-Mayoral Costs,SUPPLIES & SERVICES,EXPENSES,REVENUE
Walsall Council,http://opendatacommunities.org/id/metropolitan-district-council/walsall ,WC132-173,30.11.2021,RESOURCES AND TRANSFORMATION,ACE PA HIRE,19/11/2021,980.00,6625-Civic Events,SUPPLIES & SERVICES,EXPENSES,REVENUE
Walsall Council,http://opendatacommunities.org/id/metropolitan-district-council/walsall ,WC132-174,30.11.2021,ADULT SOCIAL CARE,ACEPAY LTD (COTTAGE NUR HOME),23/11/2021,"2,419.96",6541-Nursing,THIRD PARTY PAYMENTS,PRIVATE CONTRACTOR,REVENUE
Walsall Council,http://opendatacommunities.org/id/metropolitan-district-council/walsall ,WC132-175,30.11.2021,ADULT SOCIAL CARE,ACEPAY LTD (COTTAGE NUR HOME),23/11/2021,"2,419.96",6541-Nursing,THIRD PARTY PAYMENTS,PRIVATE CONTRACTOR,REVENUE
Walsall Council,http://opendatacommunities.org/id/metropolitan-district-council/walsall ,WC132-176,30.11.2021,ADULT SOCIAL CARE,ACEPAY LTD (COTTAGE NUR HOME),23/11/2021,"2,419.96",6541-Nursing,THIRD PARTY PAYMENTS,PRIVATE CONTRACTOR,REVENUE
Walsall Council,http://opendatacommunities.org/id/metropolitan-district-council/walsall ,WC132-177,30.11.2021,ADULT SOCIAL CARE,ACEPAY LTD (COTTAGE NUR HOME),23/11/2021,"2,419.96",6541-Nursing,THIRD PARTY PAYMENTS,PRIVATE CONTRACTOR,REVENUE
Walsall Council,http://opendatacommunities.org/id/metropolitan-district-council/walsall ,WC132-178,30.11.2021,ADULT SOCIAL CARE,ACEPAY LTD (COTTAGE NUR HOME),23/11/2021,"2,419.96",6541-Nursing,THIRD PARTY PAYMENTS,PRIVATE CONTRACTOR,REVENUE
Walsall Council,http://opendatacommunities.org/id/metropolitan-district-council/walsall ,WC132-179,30.11.2021,ADULT SOCIAL CARE,ACEPAY LTD (COTTAGE NUR HOME),23/11/2021,"2,419.96",6541-Nursing,THIRD PARTY PAYMENTS,PRIVATE CONTRACTOR,REVENUE
Walsall Council,http://opendatacommunities.org/id/metropolitan-district-council/walsall ,WC132-180,30.11.2021,ADULT SOCIAL CARE,ACEPAY LTD (COTTAGE NUR HOME),23/11/2021,"2,331.08",6541-Residential EMI,THIRD PARTY PAYMENTS,PRIVATE CONTRACTOR,REVENUE
Walsall Council,http://opendatacommunities.org/id/metropolitan-district-council/walsall ,WC132-181,30.11.2021,ADULT SOCIAL CARE,ACEPAY LTD (COTTAGE NUR HOME),23/11/2021,"2,419.96",6541-Nursing,THIRD PARTY PAYMENTS,PRIVATE CONTRACTOR,REVENUE
Walsall Council,http://opendatacommunities.org/id/metropolitan-district-council/walsall ,WC132-182,30.11.2021,ADULT SOCIAL CARE,ACEPAY LTD (COTTAGE NUR HOME),23/11/2021,"2,419.96",6541-Nursing,THIRD PARTY PAYMENTS,PRIVATE CONTRACTOR,REVENUE
Walsall Council,http://opendatacommunities.org/id/metropolitan-district-council/walsall ,WC132-183,30.11.2021,ADULT SOCIAL CARE,ACEPAY LTD (COTTAGE NUR HOME),23/11/2021,"2,331.08",6541-Residential EMI,THIRD PARTY PAYMENTS,PRIVATE CONTRACTOR,REVENUE
Walsall Council,http://opendatacommunities.org/id/metropolitan-district-council/walsall ,WC132-184,30.11.2021,ADULT SOCIAL CARE,ACEPAY LTD (COTTAGE NUR HOME),23/11/2021,"2,419.96",6541-Nursing,THIRD PARTY PAYMENTS,PRIVATE CONTRACTOR,REVENUE
Walsall Council,http://opendatacommunities.org/id/metropolitan-district-council/walsall ,WC132-185,30.11.2021,ADULT SOCIAL CARE,ACEPAY LTD (COTTAGE NUR HOME),23/11/2021,"2,722.96",6541-Nursing EMI,THIRD PARTY PAYMENTS,PRIVATE CONTRACTOR,REVENUE
Walsall Council,http://opendatacommunities.org/id/metropolitan-district-council/walsall ,WC132-186,30.11.2021,ADULT SOCIAL CARE,ACEPAY LTD (COTTAGE NUR HOME),23/11/2021,"2,619.96",6541-Nursing,THIRD PARTY PAYMENTS,PRIVATE CONTRACTOR,REVENUE
Walsall Council,http://opendatacommunities.org/id/metropolitan-district-council/walsall ,WC132-187,30.11.2021,ADULT SOCIAL CARE,ACEPAY LTD (COTTAGE NUR HOME),23/11/2021,864.27,6541-Nursing,THIRD PARTY PAYMENTS,PRIVATE CONTRACTOR,REVENUE
Walsall Council,http://opendatacommunities.org/id/metropolitan-district-council/walsall ,WC132-188,30.11.2021,CHILDRENS,ACIRE CARE LTD,02/11/2021,"8,242.17",6223-Accommodation and Related Costs-Assistance to S/S Clients,TRANSFER PAYMENTS,ADULT SOCIAL SERVICES CLIENT,REVENUE
Walsall Council,http://opendatacommunities.org/id/metropolitan-district-council/walsall ,WC132-189,30.11.2021,CHILDRENS,ACORN CARE & EDUCATION LTD (SALES),01/11/2021,"-2,685.72",6223-External Residential Care-Oth Agency Provision,THIRD PARTY PAYMENTS,PRIVATE CONTRACTOR,REVENUE
Walsall Council,http://opendatacommunities.org/id/metropolitan-district-council/walsall ,WC132-190,30.11.2021,CHILDRENS,ACORN CARE & EDUCATION LTD (SALES),01/11/2021,"10,500.00",6223-External Residential Care-Oth Agency Provision,THIRD PARTY PAYMENTS,PRIVATE CONTRACTOR,REVENUE
Walsall Council,http://opendatacommunities.org/id/metropolitan-district-council/walsall ,WC132-191,30.11.2021,CHILDRENS,ACORN CARE & EDUCATION LTD (SALES),30/11/2021,671.44,6223-External Residential Care-Oth Agency Provision,THIRD PARTY PAYMENTS,PRIVATE CONTRACTOR,REVENUE
Walsall Council,http://opendatacommunities.org/id/metropolitan-district-council/walsall ,WC132-192,30.11.2021,CHILDRENS,ACORN CARE & EDUCATION LTD (SALES),30/11/2021,"10,500.00",6223-External Residential Care-Oth Agency Provision,THIRD PARTY PAYMENTS,PRIVATE CONTRACTOR,REVENUE
Walsall Council,http://opendatacommunities.org/id/metropolitan-district-council/walsall ,WC132-193,30.11.2021,CHILDRENS,ACORN CARE & EDUCATION LTD (SALES),26/11/2021,"17,302.00",1220-Top Up Funding -Grants to Schools,SUPPLIES & SERVICES,GRANTS (EXP) & SUBSCRIPTIONS,REVENUE
Walsall Council,http://opendatacommunities.org/id/metropolitan-district-council/walsall ,WC132-194,30.11.2021,CHILDRENS,ACORN CARE & EDUCATION LTD (SALES),09/11/2021,"19,883.34",1220-Professional Fees & Services,SUPPLIES & SERVICES,SERVICES,REVENUE
Walsall Council,http://opendatacommunities.org/id/metropolitan-district-council/walsall ,WC132-195,30.11.2021,CHILDRENS,ACORN CARE & EDUCATION LTD (SALES),08/11/2021,"5,681.00",1220-Professional Fees & Services,SUPPLIES & SERVICES,SERVICES,REVENUE
Walsall Council,http://opendatacommunities.org/id/metropolitan-district-council/walsall ,WC132-196,30.11.2021,CHILDRENS,ACORN CARE & EDUCATION LTD (SALES),29/11/2021,"4,705.67",1220-Professional Fees & Services,SUPPLIES & SERVICES,SERVICES,REVENUE
Walsall Council,http://opendatacommunities.org/id/metropolitan-district-council/walsall ,WC132-197,30.11.2021,CHILDRENS,ACORN CARE & EDUCATION LTD (SALES),10/11/2021,"25,960.00",1220-Top Up Funding -Grants to Schools,SUPPLIES & SERVICES,GRANTS (EXP) & SUBSCRIPTIONS,REVENUE
Walsall Council,http://opendatacommunities.org/id/metropolitan-district-council/walsall ,WC132-198,30.11.2021,CHILDRENS,ACORN CARE & EDUCATION LTD (SALES),10/11/2021,"19,883.33",1220-Professional Fees & Services,SUPPLIES & SERVICES,SERVICES,REVENUE
Walsall Council,http://opendatacommunities.org/id/metropolitan-district-council/walsall ,WC132-199,30.11.2021,CHILDRENS,ACORN CARE & EDUCATION LTD (SALES),10/11/2021,"17,302.00",1220-Professional Fees & Services,SUPPLIES & SERVICES,SERVICES,REVENUE
Walsall Council,http://opendatacommunities.org/id/metropolitan-district-council/walsall ,WC132-200,30.11.2021,CHILDRENS,ACORN CARE & EDUCATION LTD (SALES),10/11/2021,"17,302.00",1220-Professional Fees & Services,SUPPLIES & SERVICES,SERVICES,REVENUE
Walsall Council,http://opendatacommunities.org/id/metropolitan-district-council/walsall ,WC132-201,30.11.2021,CHILDRENS,ACORN CARE & EDUCATION LTD (SALES),10/11/2021,"17,803.33",1220-Top Up Funding -Grants to Schools,SUPPLIES & SERVICES,GRANTS (EXP) & SUBSCRIPTIONS,REVENUE
Walsall Council,http://opendatacommunities.org/id/metropolitan-district-council/walsall ,WC132-202,30.11.2021,CHILDRENS,ACORN CARE & EDUCATION LTD (SALES),10/11/2021,"14,053.33",1220-Professional Fees & Services,SUPPLIES & SERVICES,SERVICES,REVENUE
Walsall Council,http://opendatacommunities.org/id/metropolitan-district-council/walsall ,WC132-203,30.11.2021,CHILDRENS,ACORN CARE & EDUCATION LTD (SALES),10/11/2021,"17,302.00",1220-Professional Fees & Services,SUPPLIES & SERVICES,SERVICES,REVENUE
Walsall Council,http://opendatacommunities.org/id/metropolitan-district-council/walsall ,WC132-204,30.11.2021,CHILDRENS,ACORN CARE & EDUCATION LTD (SALES),10/11/2021,"17,302.00",1220-Top Up Funding -Grants to Schools,SUPPLIES & SERVICES,GRANTS (EXP) & SUBSCRIPTIONS,REVENUE
Walsall Council,http://opendatacommunities.org/id/metropolitan-district-council/walsall ,WC132-205,30.11.2021,CHILDRENS,ACORN CARE & EDUCATION LTD (SALES),23/11/2021,"9,411.33",1220-Professional Fees & Services,SUPPLIES & SERVICES,SERVICES,REVENUE
Walsall Council,http://opendatacommunities.org/id/metropolitan-district-council/walsall ,WC132-206,30.11.2021,CHILDRENS,ACORN CARE & EDUCATION LTD (SALES),10/11/2021,"6,306.18",1220-Professional Fees & Services,SUPPLIES & SERVICES,SERVICES,REVENUE
Walsall Council,http://opendatacommunities.org/id/metropolitan-district-council/walsall ,WC132-207,30.11.2021,CHILDRENS,ACORN CARE & EDUCATION LTD (SALES),10/11/2021,"6,306.18",1220-Professional Fees & Services,SUPPLIES & SERVICES,SERVICES,REVENUE
Walsall Council,http://opendatacommunities.org/id/metropolitan-district-council/walsall ,WC132-208,30.11.2021,CHILDRENS,ACORN CARE & EDUCATION LTD (SALES),17/11/2021,"14,456.67",1220-Professional Fees & Services,SUPPLIES & SERVICES,SERVICES,REVENUE
Walsall Council,http://opendatacommunities.org/id/metropolitan-district-council/walsall ,WC132-209,30.11.2021,CHILDRENS,ACORN CARE & EDUCATION LTD (SALES),18/11/2021,"5,681.00",1220-Professional Fees & Services,SUPPLIES & SERVICES,SERVICES,REVENUE
Walsall Council,http://opendatacommunities.org/id/metropolitan-district-council/walsall ,WC132-210,30.11.2021,CHILDRENS,ACORN CARE & EDUCATION LTD (SALES),18/11/2021,"16,166.67",1220-Professional Fees & Services,SUPPLIES & SERVICES,SERVICES,REVENUE
Walsall Council,http://opendatacommunities.org/id/metropolitan-district-council/walsall ,WC132-211,30.11.2021,CHILDRENS,ACORN CARE & EDUCATION LTD (SALES),18/11/2021,"6,333.33",1220-Professional Fees & Services,SUPPLIES & SERVICES,SERVICES,REVENUE
Walsall Council,http://opendatacommunities.org/id/metropolitan-district-council/walsall ,WC132-212,30.11.2021,CHILDRENS,ACORN HOUSE (FOSTERING SERVICES) LTD,10/11/2021,"5,585.71",6223-Independent Foster Care-Oth Agency Provision,THIRD PARTY PAYMENTS,PRIVATE CONTRACTOR,REVENUE
Walsall Council,http://opendatacommunities.org/id/metropolitan-district-council/walsall ,WC132-213,30.11.2021,CHILDRENS,ACORNS CHILDRENS HOSPICE TRUST,18/11/2021,"1,700.00",6220-Professional Fees & Services,SUPPLIES & SERVICES,SERVICES,REVENUE
Walsall Council,http://opendatacommunities.org/id/metropolitan-district-council/walsall ,WC132-214,30.11.2021,CHILDRENS,ACPAS LIMITED,26/11/2021,795.60,6220-School Only Payments - Catering,THIRD PARTY PAYMENTS,INDEPENDENT UNIT WITHIN COUNCIL,REVENUE
Walsall Council,http://opendatacommunities.org/id/metropolitan-district-council/walsall ,WC132-215,30.11.2021,ADULT SOCIAL CARE,REDACTED,03/11/2021,790.88,6541-Direct Payment,THIRD PARTY PAYMENTS,PRIVATE CONTRACTOR,REVENUE
Walsall Council,http://opendatacommunities.org/id/metropolitan-district-council/walsall ,WC132-216,30.11.2021,CHILDRENS,REDACTED,17/11/2021,363.24,6223-Residents Orders,TRANSFER PAYMENTS,CHILDREN SOCIAL SERVICES CLIENT,REVENUE
Walsall Council,http://opendatacommunities.org/id/metropolitan-district-council/walsall ,WC132-217,30.11.2021,ADULT SOCIAL CARE,REDACTED,03/11/2021,"2,083.20",6541-Direct Payment,THIRD PARTY PAYMENTS,PRIVATE CONTRACTOR,REVENUE
Walsall Council,http://opendatacommunities.org/id/metropolitan-district-council/walsall ,WC132-218,30.11.2021,ADULT SOCIAL CARE,ADVANCE HEALTH CARE (UK) LTD,17/11/2021,763.00,6541-Domiciliary Care,THIRD PARTY PAYMENTS,PRIVATE CONTRACTOR,REVENUE
Walsall Council,http://opendatacommunities.org/id/metropolitan-district-council/walsall ,WC132-219,30.11.2021,ADULT SOCIAL CARE,ADVANCE HEALTH CARE (UK) LTD,17/11/2021,635.98,6541-Domiciliary Care,THIRD PARTY PAYMENTS,PRIVATE CONTRACTOR,REVENUE
Walsall Council,http://opendatacommunities.org/id/metropolitan-district-council/walsall ,WC132-220,30.11.2021,ADULT SOCIAL CARE,ADVANCE HEALTH CARE (UK) LTD,17/11/2021,"2,549.13",6541-Domiciliary Care,THIRD PARTY PAYMENTS,PRIVATE CONTRACTOR,REVENUE
Walsall Council,http://opendatacommunities.org/id/metropolitan-district-council/walsall ,WC132-221,30.11.2021,ADULT SOCIAL CARE,ADVANCE HEALTH CARE (UK) LTD,17/11/2021,288.19,6541-Domiciliary Care,THIRD PARTY PAYMENTS,PRIVATE CONTRACTOR,REVENUE
Walsall Council,http://opendatacommunities.org/id/metropolitan-district-council/walsall ,WC132-222,30.11.2021,ADULT SOCIAL CARE,ADVANCE HEALTH CARE (UK) LTD,17/11/2021,"1,028.18",6541-Domiciliary Care,THIRD PARTY PAYMENTS,PRIVATE CONTRACTOR,REVENUE
Walsall Council,http://opendatacommunities.org/id/metropolitan-district-council/walsall ,WC132-223,30.11.2021,ADULT SOCIAL CARE,ADVANCE HEALTH CARE (UK) LTD,17/11/2021,763.00,6541-Domiciliary Care,THIRD PARTY PAYMENTS,PRIVATE CONTRACTOR,REVENUE
Walsall Council,http://opendatacommunities.org/id/metropolitan-district-council/walsall ,WC132-224,30.11.2021,ADULT SOCIAL CARE,ADVANCE HEALTH CARE (UK) LTD,17/11/2021,726.88,6541-Domiciliary Care,THIRD PARTY PAYMENTS,PRIVATE CONTRACTOR,REVENUE
Walsall Council,http://opendatacommunities.org/id/metropolitan-district-council/walsall ,WC132-225,30.11.2021,ADULT SOCIAL CARE,ADVANCE HEALTH CARE (UK) LTD,17/11/2021,280.34,6541-Domiciliary Care,THIRD PARTY PAYMENTS,PRIVATE CONTRACTOR,REVENUE
Walsall Council,http://opendatacommunities.org/id/metropolitan-district-council/walsall ,WC132-226,30.11.2021,ADULT SOCIAL CARE,ADVANCE HEALTH CARE (UK) LTD,17/11/2021,"1,126.04",6541-Domiciliary Care,THIRD PARTY PAYMENTS,PRIVATE CONTRACTOR,REVENUE
Walsall Council,http://opendatacommunities.org/id/metropolitan-district-council/walsall ,WC132-227,30.11.2021,ADULT SOCIAL CARE,ADVANCE HEALTH CARE (UK) LTD,17/11/2021,716.64,6541-Domiciliary Care,THIRD PARTY PAYMENTS,PRIVATE CONTRACTOR,REVENUE
Walsall Council,http://opendatacommunities.org/id/metropolitan-district-council/walsall ,WC132-228,30.11.2021,ADULT SOCIAL CARE,ADVANCE HEALTH CARE (UK) LTD,17/11/2021,"1,743.84",6541-Domiciliary Care,THIRD PARTY PAYMENTS,PRIVATE CONTRACTOR,REVENUE
Walsall Council,http://opendatacommunities.org/id/metropolitan-district-council/walsall ,WC132-229,30.11.2021,ADULT SOCIAL CARE,ADVANCE HEALTH CARE (UK) LTD,17/11/2021,825.28,6541-Domiciliary Care,THIRD PARTY PAYMENTS,PRIVATE CONTRACTOR,REVENUE
Walsall Council,http://opendatacommunities.org/id/metropolitan-district-council/walsall ,WC132-230,30.11.2021,ADULT SOCIAL CARE,ADVANCE HEALTH CARE (UK) LTD,17/11/2021,472.36,6541-Domiciliary Care,THIRD PARTY PAYMENTS,PRIVATE CONTRACTOR,REVENUE
Walsall Council,http://opendatacommunities.org/id/metropolitan-district-council/walsall ,WC132-231,30.11.2021,ADULT SOCIAL CARE,ADVANCE HEALTH CARE (UK) LTD,17/11/2021,825.28,6541-Domiciliary Care,THIRD PARTY PAYMENTS,PRIVATE CONTRACTOR,REVENUE
Walsall Council,http://opendatacommunities.org/id/metropolitan-district-council/walsall ,WC132-232,30.11.2021,ADULT SOCIAL CARE,ADVANCE HEALTH CARE (UK) LTD,09/11/2021,490.49,6541-Domiciliary Care,THIRD PARTY PAYMENTS,PRIVATE CONTRACTOR,REVENUE
Walsall Council,http://opendatacommunities.org/id/metropolitan-district-council/walsall ,WC132-233,30.11.2021,ADULT SOCIAL CARE,ADVANCE HEALTH CARE (UK) LTD,09/11/2021,583.91,6541-Domiciliary Care,THIRD PARTY PAYMENTS,PRIVATE CONTRACTOR,REVENUE
Walsall Council,http://opendatacommunities.org/id/metropolitan-district-council/walsall ,WC132-234,30.11.2021,ADULT SOCIAL CARE,ADVANCE HEALTH CARE (UK) LTD,09/11/2021,833.03,6541-Domiciliary Care,THIRD PARTY PAYMENTS,PRIVATE CONTRACTOR,REVENUE
Walsall Council,http://opendatacommunities.org/id/metropolitan-district-council/walsall ,WC132-235,30.11.2021,ADULT SOCIAL CARE,ADVANCE HEALTH CARE (UK) LTD,09/11/2021,490.49,6541-Domiciliary Care,THIRD PARTY PAYMENTS,PRIVATE CONTRACTOR,REVENUE
Walsall Council,http://opendatacommunities.org/id/metropolitan-district-council/walsall ,WC132-236,30.11.2021,ADULT SOCIAL CARE,ADVANCE HEALTH CARE (UK) LTD,09/11/2021,490.49,6541-Domiciliary Care,THIRD PARTY PAYMENTS,PRIVATE CONTRACTOR,REVENUE
Walsall Council,http://opendatacommunities.org/id/metropolitan-district-council/walsall ,WC132-237,30.11.2021,ADULT SOCIAL CARE,ADVANCE HEALTH CARE (UK) LTD,09/11/2021,490.49,6541-Domiciliary Care,THIRD PARTY PAYMENTS,PRIVATE CONTRACTOR,REVENUE
Walsall Council,http://opendatacommunities.org/id/metropolitan-district-council/walsall ,WC132-238,30.11.2021,ADULT SOCIAL CARE,ADVANCE HEALTH CARE (UK) LTD,09/11/2021,435.96,6541-Domiciliary Care,THIRD PARTY PAYMENTS,PRIVATE CONTRACTOR,REVENUE
Walsall Council,http://opendatacommunities.org/id/metropolitan-district-council/walsall ,WC132-239,30.11.2021,ADULT SOCIAL CARE,ADVANCE HEALTH CARE (UK) LTD,09/11/2021,708.47,6541-Domiciliary Care,THIRD PARTY PAYMENTS,PRIVATE CONTRACTOR,REVENUE
Walsall Council,http://opendatacommunities.org/id/metropolitan-district-council/walsall ,WC132-240,30.11.2021,ADULT SOCIAL CARE,ADVANCE HEALTH CARE (UK) LTD,09/11/2021,506.06,6541-Domiciliary Care,THIRD PARTY PAYMENTS,PRIVATE CONTRACTOR,REVENUE
Walsall Council,http://opendatacommunities.org/id/metropolitan-district-council/walsall ,WC132-241,30.11.2021,ADULT SOCIAL CARE,ADVANCE HEALTH CARE (UK) LTD,09/11/2021,435.96,6541-Domiciliary Care,THIRD PARTY PAYMENTS,PRIVATE CONTRACTOR,REVENUE
Walsall Council,http://opendatacommunities.org/id/metropolitan-district-council/walsall ,WC132-242,30.11.2021,ADULT SOCIAL CARE,ADVANCE HEALTH CARE (UK) LTD,09/11/2021,363.30,6541-Domiciliary Care,THIRD PARTY PAYMENTS,PRIVATE CONTRACTOR,REVENUE
Walsall Council,http://opendatacommunities.org/id/metropolitan-district-council/walsall ,WC132-243,30.11.2021,ADULT SOCIAL CARE,ADVANCE HEALTH CARE (UK) LTD,09/11/2021,537.20,6541-Domiciliary Care,THIRD PARTY PAYMENTS,PRIVATE CONTRACTOR,REVENUE
Walsall Council,http://opendatacommunities.org/id/metropolitan-district-council/walsall ,WC132-244,30.11.2021,ADULT SOCIAL CARE,ADVANCE HEALTH CARE (UK) LTD,09/11/2021,467.40,6541-Domiciliary Care,THIRD PARTY PAYMENTS,PRIVATE CONTRACTOR,REVENUE
Walsall Council,http://opendatacommunities.org/id/metropolitan-district-council/walsall ,WC132-245,30.11.2021,ADULT SOCIAL CARE,ADVANCE HEALTH CARE (UK) LTD,09/11/2021,490.49,6541-Domiciliary Care,THIRD PARTY PAYMENTS,PRIVATE CONTRACTOR,REVENUE
Walsall Council,http://opendatacommunities.org/id/metropolitan-district-council/walsall ,WC132-246,30.11.2021,ADULT SOCIAL CARE,ADVANCE HEALTH CARE (UK) LTD,09/11/2021,435.96,6541-Domiciliary Care,THIRD PARTY PAYMENTS,PRIVATE CONTRACTOR,REVENUE
Walsall Council,http://opendatacommunities.org/id/metropolitan-district-council/walsall ,WC132-247,30.11.2021,ADULT SOCIAL CARE,ADVANCE HEALTH CARE (UK) LTD,09/11/2021,490.49,6541-Domiciliary Care,THIRD PARTY PAYMENTS,PRIVATE CONTRACTOR,REVENUE
Walsall Council,http://opendatacommunities.org/id/metropolitan-district-council/walsall ,WC132-248,30.11.2021,ADULT SOCIAL CARE,ADVANCE HEALTH CARE (UK) LTD,09/11/2021,435.96,6541-Domiciliary Care,THIRD PARTY PAYMENTS,PRIVATE CONTRACTOR,REVENUE
Walsall Council,http://opendatacommunities.org/id/metropolitan-district-council/walsall ,WC132-249,30.11.2021,ADULT SOCIAL CARE,ADVANCE HEALTH CARE (UK) LTD,09/11/2021,544.95,6541-Domiciliary Care,THIRD PARTY PAYMENTS,PRIVATE CONTRACTOR,REVENUE
Walsall Council,http://opendatacommunities.org/id/metropolitan-district-council/walsall ,WC132-250,30.11.2021,ADULT SOCIAL CARE,ADVANCE HEALTH CARE (UK) LTD,09/11/2021,435.96,6541-Domiciliary Care,THIRD PARTY PAYMENTS,PRIVATE CONTRACTOR,REVENUE
Walsall Council,http://opendatacommunities.org/id/metropolitan-district-council/walsall ,WC132-251,30.11.2021,ADULT SOCIAL CARE,ADVANCE HEALTH CARE (UK) LTD,09/11/2021,435.96,6541-Domiciliary Care,THIRD PARTY PAYMENTS,PRIVATE CONTRACTOR,REVENUE
Walsall Council,http://opendatacommunities.org/id/metropolitan-district-council/walsall ,WC132-252,30.11.2021,ADULT SOCIAL CARE,ADVANCE HEALTH CARE (UK) LTD,09/11/2021,490.49,6541-Domiciliary Care,THIRD PARTY PAYMENTS,PRIVATE CONTRACTOR,REVENUE
Walsall Council,http://opendatacommunities.org/id/metropolitan-district-council/walsall ,WC132-253,30.11.2021,ADULT SOCIAL CARE,ADVANCE HEALTH CARE (UK) LTD,09/11/2021,326.97,6541-Domiciliary Care,THIRD PARTY PAYMENTS,PRIVATE CONTRACTOR,REVENUE
Walsall Council,http://opendatacommunities.org/id/metropolitan-district-council/walsall ,WC132-254,30.11.2021,ADULT SOCIAL CARE,ADVANCE HEALTH CARE (UK) LTD,09/11/2021,454.16,6541-Domiciliary Care,THIRD PARTY PAYMENTS,PRIVATE CONTRACTOR,REVENUE
Walsall Council,http://opendatacommunities.org/id/metropolitan-district-council/walsall ,WC132-255,30.11.2021,ADULT SOCIAL CARE,ADVANCE HEALTH CARE (UK) LTD,09/11/2021,490.49,6541-Domiciliary Care,THIRD PARTY PAYMENTS,PRIVATE CONTRACTOR,REVENUE
Walsall Council,http://opendatacommunities.org/id/metropolitan-district-council/walsall ,WC132-256,30.11.2021,ADULT SOCIAL CARE,ADVANCE HEALTH CARE (UK) LTD,09/11/2021,490.49,6541-Domiciliary Care,THIRD PARTY PAYMENTS,PRIVATE CONTRACTOR,REVENUE
Walsall Council,http://opendatacommunities.org/id/metropolitan-district-council/walsall ,WC132-257,30.11.2021,ADULT SOCIAL CARE,ADVANCE HEALTH CARE (UK) LTD,09/11/2021,435.96,6541-Domiciliary Care,THIRD PARTY PAYMENTS,PRIVATE CONTRACTOR,REVENUE
Walsall Council,http://opendatacommunities.org/id/metropolitan-district-council/walsall ,WC132-258,30.11.2021,ADULT SOCIAL CARE,ADVANCE HEALTH CARE (UK) LTD,09/11/2021,490.49,6541-Domiciliary Care,THIRD PARTY PAYMENTS,PRIVATE CONTRACTOR,REVENUE
Walsall Council,http://opendatacommunities.org/id/metropolitan-district-council/walsall ,WC132-259,30.11.2021,ADULT SOCIAL CARE,ADVANCE HEALTH CARE (UK) LTD,09/11/2021,490.49,6541-Domiciliary Care,THIRD PARTY PAYMENTS,PRIVATE CONTRACTOR,REVENUE
Walsall Council,http://opendatacommunities.org/id/metropolitan-district-council/walsall ,WC132-260,30.11.2021,ADULT SOCIAL CARE,ADVANCE HEALTH CARE (UK) LTD,09/11/2021,871.92,6541-Domiciliary Care,THIRD PARTY PAYMENTS,PRIVATE CONTRACTOR,REVENUE
Walsall Council,http://opendatacommunities.org/id/metropolitan-district-council/walsall ,WC132-261,30.11.2021,ADULT SOCIAL CARE,ADVANCE HEALTH CARE (UK) LTD,09/11/2021,326.97,6541-Domiciliary Care,THIRD PARTY PAYMENTS,PRIVATE CONTRACTOR,REVENUE
Walsall Council,http://opendatacommunities.org/id/metropolitan-district-council/walsall ,WC132-262,30.11.2021,ADULT SOCIAL CARE,ADVANCE HEALTH CARE (UK) LTD,09/11/2021,381.50,6541-Domiciliary Care,THIRD PARTY PAYMENTS,PRIVATE CONTRACTOR,REVENUE
Walsall Council,http://opendatacommunities.org/id/metropolitan-district-council/walsall ,WC132-263,30.11.2021,ADULT SOCIAL CARE,ADVANCE HEALTH CARE (UK) LTD,09/11/2021,490.49,6541-Domiciliary Care,THIRD PARTY PAYMENTS,PRIVATE CONTRACTOR,REVENUE
Walsall Council,http://opendatacommunities.org/id/metropolitan-district-council/walsall ,WC132-264,30.11.2021,ADULT SOCIAL CARE,ADVANCE HEALTH CARE (UK) LTD,09/11/2021,490.49,6541-Domiciliary Care,THIRD PARTY PAYMENTS,PRIVATE CONTRACTOR,REVENUE
Walsall Council,http://opendatacommunities.org/id/metropolitan-district-council/walsall ,WC132-265,30.11.2021,ADULT SOCIAL CARE,ADVANCE HEALTH CARE (UK) LTD,09/11/2021,490.49,6541-Domiciliary Care,THIRD PARTY PAYMENTS,PRIVATE CONTRACTOR,REVENUE
Walsall Council,http://opendatacommunities.org/id/metropolitan-district-council/walsall ,WC132-266,30.11.2021,ADULT SOCIAL CARE,ADVANCE HEALTH CARE (UK) LTD,09/11/2021,272.65,6541-Domiciliary Care,THIRD PARTY PAYMENTS,PRIVATE CONTRACTOR,REVENUE
Walsall Council,http://opendatacommunities.org/id/metropolitan-district-council/walsall ,WC132-267,30.11.2021,ADULT SOCIAL CARE,ADVANCE HEALTH CARE (UK) LTD,09/11/2021,490.49,6541-Domiciliary Care,THIRD PARTY PAYMENTS,PRIVATE CONTRACTOR,REVENUE
Walsall Council,http://opendatacommunities.org/id/metropolitan-district-council/walsall ,WC132-268,30.11.2021,ADULT SOCIAL CARE,ADVANCE HEALTH CARE (UK) LTD,09/11/2021,490.49,6541-Domiciliary Care,THIRD PARTY PAYMENTS,PRIVATE CONTRACTOR,REVENUE
Walsall Council,http://opendatacommunities.org/id/metropolitan-district-council/walsall ,WC132-269,30.11.2021,ADULT SOCIAL CARE,ADVANCE HEALTH CARE (UK) LTD,09/11/2021,256.93,6541-Domiciliary Care,THIRD PARTY PAYMENTS,PRIVATE CONTRACTOR,REVENUE
Walsall Council,http://opendatacommunities.org/id/metropolitan-district-council/walsall ,WC132-270,30.11.2021,ADULT SOCIAL CARE,ADVANCE HEALTH CARE (UK) LTD,09/11/2021,435.96,6541-Domiciliary Care,THIRD PARTY PAYMENTS,PRIVATE CONTRACTOR,REVENUE
Walsall Council,http://opendatacommunities.org/id/metropolitan-district-council/walsall ,WC132-271,30.11.2021,ADULT SOCIAL CARE,ADVANCE HEALTH CARE (UK) LTD,09/11/2021,381.50,6541-Domiciliary Care,THIRD PARTY PAYMENTS,PRIVATE CONTRACTOR,REVENUE
Walsall Council,http://opendatacommunities.org/id/metropolitan-district-council/walsall ,WC132-272,30.11.2021,ADULT SOCIAL CARE,ADVANCE HEALTH CARE (UK) LTD,09/11/2021,490.49,6541-Domiciliary Care,THIRD PARTY PAYMENTS,PRIVATE CONTRACTOR,REVENUE
Walsall Council,http://opendatacommunities.org/id/metropolitan-district-council/walsall ,WC132-273,30.11.2021,ADULT SOCIAL CARE,ADVANCE HEALTH CARE (UK) LTD,09/11/2021,454.16,6541-Domiciliary Care,THIRD PARTY PAYMENTS,PRIVATE CONTRACTOR,REVENUE
Walsall Council,http://opendatacommunities.org/id/metropolitan-district-council/walsall ,WC132-274,30.11.2021,ADULT SOCIAL CARE,ADVANCE HEALTH CARE (UK) LTD,09/11/2021,490.49,6541-Domiciliary Care,THIRD PARTY PAYMENTS,PRIVATE CONTRACTOR,REVENUE
Walsall Council,http://opendatacommunities.org/id/metropolitan-district-council/walsall ,WC132-275,30.11.2021,ADULT SOCIAL CARE,ADVANCE HEALTH CARE (UK) LTD,09/11/2021,326.97,6541-Domiciliary Care,THIRD PARTY PAYMENTS,PRIVATE CONTRACTOR,REVENUE
Walsall Council,http://opendatacommunities.org/id/metropolitan-district-council/walsall ,WC132-276,30.11.2021,ADULT SOCIAL CARE,ADVANCE HEALTH CARE (UK) LTD,09/11/2021,490.49,6541-Domiciliary Care,THIRD PARTY PAYMENTS,PRIVATE CONTRACTOR,REVENUE
Walsall Council,http://opendatacommunities.org/id/metropolitan-district-council/walsall ,WC132-277,30.11.2021,ADULT SOCIAL CARE,ADVANCE HEALTH CARE (UK) LTD,09/11/2021,871.92,6541-Domiciliary Care,THIRD PARTY PAYMENTS,PRIVATE CONTRACTOR,REVENUE
Walsall Council,http://opendatacommunities.org/id/metropolitan-district-council/walsall ,WC132-278,30.11.2021,ADULT SOCIAL CARE,ADVANCE HEALTH CARE (UK) LTD,09/11/2021,326.97,6541-Domiciliary Care,THIRD PARTY PAYMENTS,PRIVATE CONTRACTOR,REVENUE
Walsall Council,http://opendatacommunities.org/id/metropolitan-district-council/walsall ,WC132-279,30.11.2021,ADULT SOCIAL CARE,ADVANCE HEALTH CARE (UK) LTD,09/11/2021,381.50,6541-Domiciliary Care,THIRD PARTY PAYMENTS,PRIVATE CONTRACTOR,REVENUE
Walsall Council,http://opendatacommunities.org/id/metropolitan-district-council/walsall ,WC132-280,30.11.2021,ADULT SOCIAL CARE,ADVANCE HEALTH CARE (UK) LTD,09/11/2021,833.03,6541-Domiciliary Care,THIRD PARTY PAYMENTS,PRIVATE CONTRACTOR,REVENUE
Walsall Council,http://opendatacommunities.org/id/metropolitan-district-council/walsall ,WC132-281,30.11.2021,ADULT SOCIAL CARE,ADVANCE HEALTH CARE (UK) LTD,09/11/2021,490.49,6541-Domiciliary Care,THIRD PARTY PAYMENTS,PRIVATE CONTRACTOR,REVENUE
Walsall Council,http://opendatacommunities.org/id/metropolitan-district-council/walsall ,WC132-282,30.11.2021,ADULT SOCIAL CARE,ADVANCE HEALTH CARE (UK) LTD,09/11/2021,490.49,6541-Domiciliary Care,THIRD PARTY PAYMENTS,PRIVATE CONTRACTOR,REVENUE
Walsall Council,http://opendatacommunities.org/id/metropolitan-district-council/walsall ,WC132-283,30.11.2021,ADULT SOCIAL CARE,ADVANCE HEALTH CARE (UK) LTD,09/11/2021,490.49,6541-Domiciliary Care,THIRD PARTY PAYMENTS,PRIVATE CONTRACTOR,REVENUE
Walsall Council,http://opendatacommunities.org/id/metropolitan-district-council/walsall ,WC132-284,30.11.2021,ADULT SOCIAL CARE,ADVANCE HEALTH CARE (UK) LTD,09/11/2021,435.96,6541-Domiciliary Care,THIRD PARTY PAYMENTS,PRIVATE CONTRACTOR,REVENUE
Walsall Council,http://opendatacommunities.org/id/metropolitan-district-council/walsall ,WC132-285,30.11.2021,ADULT SOCIAL CARE,ADVANCE HEALTH CARE (UK) LTD,09/11/2021,435.96,6541-Domiciliary Care,THIRD PARTY PAYMENTS,PRIVATE CONTRACTOR,REVENUE
Walsall Council,http://opendatacommunities.org/id/metropolitan-district-council/walsall ,WC132-286,30.11.2021,ADULT SOCIAL CARE,ADVANCE HEALTH CARE (UK) LTD,09/11/2021,490.49,6541-Domiciliary Care,THIRD PARTY PAYMENTS,PRIVATE CONTRACTOR,REVENUE
Walsall Council,http://opendatacommunities.org/id/metropolitan-district-council/walsall ,WC132-287,30.11.2021,ADULT SOCIAL CARE,ADVANCE HEALTH CARE (UK) LTD,09/11/2021,506.06,6541-Domiciliary Care,THIRD PARTY PAYMENTS,PRIVATE CONTRACTOR,REVENUE
Walsall Council,http://opendatacommunities.org/id/metropolitan-district-council/walsall ,WC132-288,30.11.2021,ADULT SOCIAL CARE,ADVANCE HEALTH CARE (UK) LTD,09/11/2021,435.96,6541-Domiciliary Care,THIRD PARTY PAYMENTS,PRIVATE CONTRACTOR,REVENUE
Walsall Council,http://opendatacommunities.org/id/metropolitan-district-council/walsall ,WC132-289,30.11.2021,ADULT SOCIAL CARE,ADVANCE HEALTH CARE (UK) LTD,09/11/2021,490.49,6541-Domiciliary Care,THIRD PARTY PAYMENTS,PRIVATE CONTRACTOR,REVENUE
Walsall Council,http://opendatacommunities.org/id/metropolitan-district-council/walsall ,WC132-290,30.11.2021,ADULT SOCIAL CARE,ADVANCE HEALTH CARE (UK) LTD,09/11/2021,490.49,6541-Domiciliary Care,THIRD PARTY PAYMENTS,PRIVATE CONTRACTOR,REVENUE
Walsall Council,http://opendatacommunities.org/id/metropolitan-district-council/walsall ,WC132-291,30.11.2021,ADULT SOCIAL CARE,ADVANCE HEALTH CARE (UK) LTD,09/11/2021,490.49,6541-Domiciliary Care,THIRD PARTY PAYMENTS,PRIVATE CONTRACTOR,REVENUE
Walsall Council,http://opendatacommunities.org/id/metropolitan-district-council/walsall ,WC132-292,30.11.2021,ADULT SOCIAL CARE,ADVANCE HEALTH CARE (UK) LTD,09/11/2021,490.49,6541-Domiciliary Care,THIRD PARTY PAYMENTS,PRIVATE CONTRACTOR,REVENUE
Walsall Council,http://opendatacommunities.org/id/metropolitan-district-council/walsall ,WC132-293,30.11.2021,ADULT SOCIAL CARE,ADVANCE HEALTH CARE (UK) LTD,09/11/2021,326.97,6541-Domiciliary Care,THIRD PARTY PAYMENTS,PRIVATE CONTRACTOR,REVENUE
Walsall Council,http://opendatacommunities.org/id/metropolitan-district-council/walsall ,WC132-294,30.11.2021,ADULT SOCIAL CARE,ADVANCE HEALTH CARE (UK) LTD,09/11/2021,454.16,6541-Domiciliary Care,THIRD PARTY PAYMENTS,PRIVATE CONTRACTOR,REVENUE
Walsall Council,http://opendatacommunities.org/id/metropolitan-district-council/walsall ,WC132-295,30.11.2021,ADULT SOCIAL CARE,ADVANCE HEALTH CARE (UK) LTD,09/11/2021,490.49,6541-Domiciliary Care,THIRD PARTY PAYMENTS,PRIVATE CONTRACTOR,REVENUE
Walsall Council,http://opendatacommunities.org/id/metropolitan-district-council/walsall ,WC132-296,30.11.2021,ADULT SOCIAL CARE,ADVANCE HEALTH CARE (UK) LTD,09/11/2021,435.96,6541-Domiciliary Care,THIRD PARTY PAYMENTS,PRIVATE CONTRACTOR,REVENUE
Walsall Council,http://opendatacommunities.org/id/metropolitan-district-council/walsall ,WC132-297,30.11.2021,ADULT SOCIAL CARE,ADVANCE HEALTH CARE (UK) LTD,09/11/2021,342.54,6541-Domiciliary Care,THIRD PARTY PAYMENTS,PRIVATE CONTRACTOR,REVENUE
Walsall Council,http://opendatacommunities.org/id/metropolitan-district-council/walsall ,WC132-298,30.11.2021,ADULT SOCIAL CARE,ADVANCE HEALTH CARE (UK) LTD,09/11/2021,256.93,6541-Domiciliary Care,THIRD PARTY PAYMENTS,PRIVATE CONTRACTOR,REVENUE
Walsall Council,http://opendatacommunities.org/id/metropolitan-district-council/walsall ,WC132-299,30.11.2021,ADULT SOCIAL CARE,ADVANCE HEALTH CARE (UK) LTD,09/11/2021,708.47,6541-Domiciliary Care,THIRD PARTY PAYMENTS,PRIVATE CONTRACTOR,REVENUE
Walsall Council,http://opendatacommunities.org/id/metropolitan-district-council/walsall ,WC132-300,30.11.2021,ADULT SOCIAL CARE,ADVANCE HEALTH CARE (UK) LTD,09/11/2021,490.49,6541-Domiciliary Care,THIRD PARTY PAYMENTS,PRIVATE CONTRACTOR,REVENUE
Walsall Council,http://opendatacommunities.org/id/metropolitan-district-council/walsall ,WC132-301,30.11.2021,ADULT SOCIAL CARE,ADVANCE HEALTH CARE (UK) LTD,09/11/2021,435.96,6541-Domiciliary Care,THIRD PARTY PAYMENTS,PRIVATE CONTRACTOR,REVENUE
Walsall Council,http://opendatacommunities.org/id/metropolitan-district-council/walsall ,WC132-302,30.11.2021,ADULT SOCIAL CARE,ADVANCE HEALTH CARE (UK) LTD,09/11/2021,544.95,6541-Domiciliary Care,THIRD PARTY PAYMENTS,PRIVATE CONTRACTOR,REVENUE
Walsall Council,http://opendatacommunities.org/id/metropolitan-district-council/walsall ,WC132-303,30.11.2021,ADULT SOCIAL CARE,ADVANCE HEALTH CARE (UK) LTD,09/11/2021,435.96,6541-Domiciliary Care,THIRD PARTY PAYMENTS,PRIVATE CONTRACTOR,REVENUE
Walsall Council,http://opendatacommunities.org/id/metropolitan-district-council/walsall ,WC132-304,30.11.2021,ADULT SOCIAL CARE,ADVANCE HEALTH CARE (UK) LTD,09/11/2021,490.49,6541-Domiciliary Care,THIRD PARTY PAYMENTS,PRIVATE CONTRACTOR,REVENUE
Walsall Council,http://opendatacommunities.org/id/metropolitan-district-council/walsall ,WC132-305,30.11.2021,ADULT SOCIAL CARE,ADVANCE HEALTH CARE (UK) LTD,09/11/2021,635.81,6541-Domiciliary Care,THIRD PARTY PAYMENTS,PRIVATE CONTRACTOR,REVENUE
Walsall Council,http://opendatacommunities.org/id/metropolitan-district-council/walsall ,WC132-306,30.11.2021,ADULT SOCIAL CARE,ADVANCE HEALTH CARE (UK) LTD,09/11/2021,537.20,6541-Domiciliary Care,THIRD PARTY PAYMENTS,PRIVATE CONTRACTOR,REVENUE
Walsall Council,http://opendatacommunities.org/id/metropolitan-district-council/walsall ,WC132-307,30.11.2021,ADULT SOCIAL CARE,ADVANCE HEALTH CARE (UK) LTD,09/11/2021,490.49,6541-Domiciliary Care,THIRD PARTY PAYMENTS,PRIVATE CONTRACTOR,REVENUE
Walsall Council,http://opendatacommunities.org/id/metropolitan-district-council/walsall ,WC132-308,30.11.2021,ADULT SOCIAL CARE,ADVANCE HEALTH CARE (UK) LTD,09/11/2021,490.49,6541-Domiciliary Care,THIRD PARTY PAYMENTS,PRIVATE CONTRACTOR,REVENUE
Walsall Council,http://opendatacommunities.org/id/metropolitan-district-council/walsall ,WC132-309,30.11.2021,ADULT SOCIAL CARE,ADVANCE HEALTH CARE (UK) LTD,09/11/2021,490.49,6541-Domiciliary Care,THIRD PARTY PAYMENTS,PRIVATE CONTRACTOR,REVENUE
Walsall Council,http://opendatacommunities.org/id/metropolitan-district-council/walsall ,WC132-310,30.11.2021,ADULT SOCIAL CARE,ADVANCE HEALTH CARE (UK) LTD,09/11/2021,435.96,6541-Domiciliary Care,THIRD PARTY PAYMENTS,PRIVATE CONTRACTOR,REVENUE
Walsall Council,http://opendatacommunities.org/id/metropolitan-district-council/walsall ,WC132-311,30.11.2021,ADULT SOCIAL CARE,ADVANCE HEALTH CARE (UK) LTD,09/11/2021,435.96,6541-Domiciliary Care,THIRD PARTY PAYMENTS,PRIVATE CONTRACTOR,REVENUE
Walsall Council,http://opendatacommunities.org/id/metropolitan-district-council/walsall ,WC132-312,30.11.2021,ADULT SOCIAL CARE,ADVANCE HEALTH CARE (UK) LTD,09/11/2021,381.50,6541-Domiciliary Care,THIRD PARTY PAYMENTS,PRIVATE CONTRACTOR,REVENUE
Walsall Council,http://opendatacommunities.org/id/metropolitan-district-council/walsall ,WC132-313,30.11.2021,ADULT SOCIAL CARE,ADVANCE HEALTH CARE (UK) LTD,09/11/2021,490.49,6541-Domiciliary Care,THIRD PARTY PAYMENTS,PRIVATE CONTRACTOR,REVENUE
Walsall Council,http://opendatacommunities.org/id/metropolitan-district-council/walsall ,WC132-314,30.11.2021,ADULT SOCIAL CARE,ADVANCE HEALTH CARE (UK) LTD,09/11/2021,454.16,6541-Domiciliary Care,THIRD PARTY PAYMENTS,PRIVATE CONTRACTOR,REVENUE
Walsall Council,http://opendatacommunities.org/id/metropolitan-district-council/walsall ,WC132-315,30.11.2021,ADULT SOCIAL CARE,ADVANCE HEALTH CARE (UK) LTD,09/11/2021,490.49,6541-Domiciliary Care,THIRD PARTY PAYMENTS,PRIVATE CONTRACTOR,REVENUE
Walsall Council,http://opendatacommunities.org/id/metropolitan-district-council/walsall ,WC132-316,30.11.2021,ADULT SOCIAL CARE,ADVANCE HEALTH CARE (UK) LTD,09/11/2021,490.49,6541-Domiciliary Care,THIRD PARTY PAYMENTS,PRIVATE CONTRACTOR,REVENUE
Walsall Council,http://opendatacommunities.org/id/metropolitan-district-council/walsall ,WC132-317,30.11.2021,ADULT SOCIAL CARE,ADVANCE HEALTH CARE (UK) LTD,09/11/2021,326.97,6541-Domiciliary Care,THIRD PARTY PAYMENTS,PRIVATE CONTRACTOR,REVENUE
Walsall Council,http://opendatacommunities.org/id/metropolitan-district-council/walsall ,WC132-318,30.11.2021,ADULT SOCIAL CARE,ADVANCE HEALTH CARE (UK) LTD,17/11/2021,801.91,6541-Domiciliary Care,THIRD PARTY PAYMENTS,PRIVATE CONTRACTOR,REVENUE
Walsall Council,http://opendatacommunities.org/id/metropolitan-district-council/walsall ,WC132-319,30.11.2021,ADULT SOCIAL CARE,ADVANCE HEALTH CARE (UK) LTD,17/11/2021,"1,961.96",6541-Domiciliary Care,THIRD PARTY PAYMENTS,PRIVATE CONTRACTOR,REVENUE
Walsall Council,http://opendatacommunities.org/id/metropolitan-district-council/walsall ,WC132-320,30.11.2021,ADULT SOCIAL CARE,ADVANCE HEALTH CARE (UK) LTD,17/11/2021,"1,961.96",6541-Domiciliary Care,THIRD PARTY PAYMENTS,PRIVATE CONTRACTOR,REVENUE
Walsall Council,http://opendatacommunities.org/id/metropolitan-district-council/walsall ,WC132-321,30.11.2021,ADULT SOCIAL CARE,ADVANCE HEALTH CARE (UK) LTD,17/11/2021,490.49,6541-Domiciliary Care,THIRD PARTY PAYMENTS,PRIVATE CONTRACTOR,REVENUE
Walsall Council,http://opendatacommunities.org/id/metropolitan-district-council/walsall ,WC132-322,30.11.2021,ADULT SOCIAL CARE,ADVANCE HEALTH CARE (UK) LTD,17/11/2021,"1,961.96",6541-Domiciliary Care,THIRD PARTY PAYMENTS,PRIVATE CONTRACTOR,REVENUE
Walsall Council,http://opendatacommunities.org/id/metropolitan-district-council/walsall ,WC132-323,30.11.2021,ADULT SOCIAL CARE,ADVANCE HEALTH CARE (UK) LTD,17/11/2021,"1,121.60",6541-Domiciliary Care,THIRD PARTY PAYMENTS,PRIVATE CONTRACTOR,REVENUE
Walsall Council,http://opendatacommunities.org/id/metropolitan-district-council/walsall ,WC132-324,30.11.2021,ADULT SOCIAL CARE,ADVANCE HEALTH CARE (UK) LTD,17/11/2021,700.70,6541-Domiciliary Care,THIRD PARTY PAYMENTS,PRIVATE CONTRACTOR,REVENUE
Walsall Council,http://opendatacommunities.org/id/metropolitan-district-council/walsall ,WC132-325,30.11.2021,ADULT SOCIAL CARE,ADVANCE HEALTH CARE (UK) LTD,17/11/2021,763.28,6541-Domiciliary Care,THIRD PARTY PAYMENTS,PRIVATE CONTRACTOR,REVENUE
Walsall Council,http://opendatacommunities.org/id/metropolitan-district-council/walsall ,WC132-326,30.11.2021,ADULT SOCIAL CARE,ADVANCE HEALTH CARE (UK) LTD,17/11/2021,280.28,6541-Domiciliary Care,THIRD PARTY PAYMENTS,PRIVATE CONTRACTOR,REVENUE
Walsall Council,http://opendatacommunities.org/id/metropolitan-district-council/walsall ,WC132-327,30.11.2021,ADULT SOCIAL CARE,ADVANCE HEALTH CARE (UK) LTD,17/11/2021,570.90,6541-Domiciliary Care,THIRD PARTY PAYMENTS,PRIVATE CONTRACTOR,REVENUE
Walsall Council,http://opendatacommunities.org/id/metropolitan-district-council/walsall ,WC132-328,30.11.2021,ADULT SOCIAL CARE,ADVANCE HEALTH CARE (UK) LTD,17/11/2021,981.40,6541-Domiciliary Care,THIRD PARTY PAYMENTS,PRIVATE CONTRACTOR,REVENUE
Walsall Council,http://opendatacommunities.org/id/metropolitan-district-council/walsall ,WC132-329,30.11.2021,ADULT SOCIAL CARE,ADVANCE HEALTH CARE (UK) LTD,17/11/2021,545.16,6541-Domiciliary Care,THIRD PARTY PAYMENTS,PRIVATE CONTRACTOR,REVENUE
Walsall Council,http://opendatacommunities.org/id/metropolitan-district-council/walsall ,WC132-330,30.11.2021,ADULT SOCIAL CARE,ADVANCE HEALTH CARE (UK) LTD,17/11/2021,770.77,6541-Domiciliary Care,THIRD PARTY PAYMENTS,PRIVATE CONTRACTOR,REVENUE
Walsall Council,http://opendatacommunities.org/id/metropolitan-district-council/walsall ,WC132-331,30.11.2021,ADULT SOCIAL CARE,ADVANCE HEALTH CARE (UK) LTD,17/11/2021,630.63,6541-Domiciliary Care,THIRD PARTY PAYMENTS,PRIVATE CONTRACTOR,REVENUE
Walsall Council,http://opendatacommunities.org/id/metropolitan-district-council/walsall ,WC132-332,30.11.2021,ADULT SOCIAL CARE,ADVANCE HEALTH CARE (UK) LTD,17/11/2021,981.40,6541-Domiciliary Care,THIRD PARTY PAYMENTS,PRIVATE CONTRACTOR,REVENUE
Walsall Council,http://opendatacommunities.org/id/metropolitan-district-council/walsall ,WC132-333,30.11.2021,ADULT SOCIAL CARE,ADVANCE HEALTH CARE (UK) LTD,17/11/2021,"1,276.74",6541-Domiciliary Care,THIRD PARTY PAYMENTS,PRIVATE CONTRACTOR,REVENUE
Walsall Council,http://opendatacommunities.org/id/metropolitan-district-council/walsall ,WC132-334,30.11.2021,ADULT SOCIAL CARE,ADVANCE HEALTH CARE (UK) LTD,17/11/2021,311.40,6541-Domiciliary Care,THIRD PARTY PAYMENTS,PRIVATE CONTRACTOR,REVENUE
Walsall Council,http://opendatacommunities.org/id/metropolitan-district-council/walsall ,WC132-335,30.11.2021,ADULT SOCIAL CARE,ADVANCE HEALTH CARE (UK) LTD,17/11/2021,"1,743.84",6541-Domiciliary Care,THIRD PARTY PAYMENTS,PRIVATE CONTRACTOR,REVENUE
Walsall Council,http://opendatacommunities.org/id/metropolitan-district-council/walsall ,WC132-336,30.11.2021,ADULT SOCIAL CARE,ADVANCE HEALTH CARE (UK) LTD,17/11/2021,"2,483.55",6541-Domiciliary Care,THIRD PARTY PAYMENTS,PRIVATE CONTRACTOR,REVENUE
Walsall Council,http://opendatacommunities.org/id/metropolitan-district-council/walsall ,WC132-337,30.11.2021,ADULT SOCIAL CARE,ADVANCE HEALTH CARE (UK) LTD,17/11/2021,"1,307.97",6541-Domiciliary Care,THIRD PARTY PAYMENTS,PRIVATE CONTRACTOR,REVENUE
Walsall Council,http://opendatacommunities.org/id/metropolitan-district-council/walsall ,WC132-338,30.11.2021,ADULT SOCIAL CARE,ADVANCE HEALTH CARE (UK) LTD,17/11/2021,296.02,6541-Domiciliary Care,THIRD PARTY PAYMENTS,PRIVATE CONTRACTOR,REVENUE
Walsall Council,http://opendatacommunities.org/id/metropolitan-district-council/walsall ,WC132-339,30.11.2021,ADULT SOCIAL CARE,ADVANCE HEALTH CARE (UK) LTD,17/11/2021,"1,611.61",6541-Domiciliary Care,THIRD PARTY PAYMENTS,PRIVATE CONTRACTOR,REVENUE
Walsall Council,http://opendatacommunities.org/id/metropolitan-district-council/walsall ,WC132-340,30.11.2021,ADULT SOCIAL CARE,ADVANCE HEALTH CARE (UK) LTD,23/11/2021,490.49,6541-Domiciliary Care,THIRD PARTY PAYMENTS,PRIVATE CONTRACTOR,REVENUE
Walsall Council,http://opendatacommunities.org/id/metropolitan-district-council/walsall ,WC132-341,30.11.2021,ADULT SOCIAL CARE,ADVANCE HEALTH CARE (UK) LTD,23/11/2021,635.81,6541-Domiciliary Care,THIRD PARTY PAYMENTS,PRIVATE CONTRACTOR,REVENUE
Walsall Council,http://opendatacommunities.org/id/metropolitan-district-council/walsall ,WC132-342,30.11.2021,ADULT SOCIAL CARE,ADVANCE HEALTH CARE (UK) LTD,23/11/2021,537.20,6541-Domiciliary Care,THIRD PARTY PAYMENTS,PRIVATE CONTRACTOR,REVENUE
Walsall Council,http://opendatacommunities.org/id/metropolitan-district-council/walsall ,WC132-343,30.11.2021,ADULT SOCIAL CARE,ADVANCE HEALTH CARE (UK) LTD,23/11/2021,272.65,6541-Domiciliary Care,THIRD PARTY PAYMENTS,PRIVATE CONTRACTOR,REVENUE
Walsall Council,http://opendatacommunities.org/id/metropolitan-district-council/walsall ,WC132-344,30.11.2021,ADULT SOCIAL CARE,ADVANCE HEALTH CARE (UK) LTD,23/11/2021,"1,121.04",6541-Domiciliary Care,THIRD PARTY PAYMENTS,PRIVATE CONTRACTOR,REVENUE
Walsall Council,http://opendatacommunities.org/id/metropolitan-district-council/walsall ,WC132-345,30.11.2021,ADULT SOCIAL CARE,ADVANCE HEALTH CARE (UK) LTD,23/11/2021,435.96,6541-Domiciliary Care,THIRD PARTY PAYMENTS,PRIVATE CONTRACTOR,REVENUE
Walsall Council,http://opendatacommunities.org/id/metropolitan-district-council/walsall ,WC132-346,30.11.2021,ADULT SOCIAL CARE,ADVANCE HEALTH CARE (UK) LTD,23/11/2021,490.49,6541-Domiciliary Care,THIRD PARTY PAYMENTS,PRIVATE CONTRACTOR,REVENUE
Walsall Council,http://opendatacommunities.org/id/metropolitan-district-council/walsall ,WC132-347,30.11.2021,ADULT SOCIAL CARE,ADVANCE HEALTH CARE (UK) LTD,23/11/2021,454.30,6541-Domiciliary Care,THIRD PARTY PAYMENTS,PRIVATE CONTRACTOR,REVENUE
Walsall Council,http://opendatacommunities.org/id/metropolitan-district-council/walsall ,WC132-348,30.11.2021,ADULT SOCIAL CARE,ADVANCE HEALTH CARE (UK) LTD,23/11/2021,490.49,6541-Domiciliary Care,THIRD PARTY PAYMENTS,PRIVATE CONTRACTOR,REVENUE
Walsall Council,http://opendatacommunities.org/id/metropolitan-district-council/walsall ,WC132-349,30.11.2021,ADULT SOCIAL CARE,ADVANCE HEALTH CARE (UK) LTD,23/11/2021,311.40,6541-Domiciliary Care,THIRD PARTY PAYMENTS,PRIVATE CONTRACTOR,REVENUE
Walsall Council,http://opendatacommunities.org/id/metropolitan-district-council/walsall ,WC132-350,30.11.2021,ADULT SOCIAL CARE,ADVANCE HEALTH CARE (UK) LTD,23/11/2021,-311.40,6541-Domiciliary Care,THIRD PARTY PAYMENTS,PRIVATE CONTRACTOR,REVENUE
Walsall Council,http://opendatacommunities.org/id/metropolitan-district-council/walsall ,WC132-351,30.11.2021,ADULT SOCIAL CARE,ADVANCE HEALTH CARE (UK) LTD,23/11/2021,638.78,6541-Domiciliary Care,THIRD PARTY PAYMENTS,PRIVATE CONTRACTOR,REVENUE
Walsall Council,http://opendatacommunities.org/id/metropolitan-district-council/walsall ,WC132-352,30.11.2021,ADULT SOCIAL CARE,ADVANCE HEALTH CARE (UK) LTD,23/11/2021,436.24,6541-Domiciliary Care,THIRD PARTY PAYMENTS,PRIVATE CONTRACTOR,REVENUE
Walsall Council,http://opendatacommunities.org/id/metropolitan-district-council/walsall ,WC132-353,30.11.2021,ADULT SOCIAL CARE,ADVANCE HEALTH CARE (UK) LTD,23/11/2021,817.88,6541-Domiciliary Care,THIRD PARTY PAYMENTS,PRIVATE CONTRACTOR,REVENUE
Walsall Council,http://opendatacommunities.org/id/metropolitan-district-council/walsall ,WC132-354,30.11.2021,ADULT SOCIAL CARE,ADVANCE HEALTH CARE (UK) LTD,23/11/2021,454.16,6541-Domiciliary Care,THIRD PARTY PAYMENTS,PRIVATE CONTRACTOR,REVENUE
Walsall Council,http://opendatacommunities.org/id/metropolitan-district-council/walsall ,WC132-355,30.11.2021,ADULT SOCIAL CARE,ADVANCE HEALTH CARE (UK) LTD,23/11/2021,872.48,6541-Domiciliary Care,THIRD PARTY PAYMENTS,PRIVATE CONTRACTOR,REVENUE
Walsall Council,http://opendatacommunities.org/id/metropolitan-district-council/walsall ,WC132-356,30.11.2021,ADULT SOCIAL CARE,ADVANCE HEALTH CARE (UK) LTD,23/11/2021,490.49,6541-Domiciliary Care,THIRD PARTY PAYMENTS,PRIVATE CONTRACTOR,REVENUE
Walsall Council,http://opendatacommunities.org/id/metropolitan-district-council/walsall ,WC132-357,30.11.2021,ADULT SOCIAL CARE,ADVANCE HEALTH CARE (UK) LTD,23/11/2021,435.96,6541-Domiciliary Care,THIRD PARTY PAYMENTS,PRIVATE CONTRACTOR,REVENUE
Walsall Council,http://opendatacommunities.org/id/metropolitan-district-council/walsall ,WC132-358,30.11.2021,ADULT SOCIAL CARE,ADVANCE HEALTH CARE (UK) LTD,23/11/2021,"-2,444.49",6541-Domiciliary Care,THIRD PARTY PAYMENTS,PRIVATE CONTRACTOR,REVENUE
Walsall Council,http://opendatacommunities.org/id/metropolitan-district-council/walsall ,WC132-359,30.11.2021,ADULT SOCIAL CARE,ADVANCE HEALTH CARE (UK) LTD,23/11/2021,435.96,6541-Domiciliary Care,THIRD PARTY PAYMENTS,PRIVATE CONTRACTOR,REVENUE
Walsall Council,http://opendatacommunities.org/id/metropolitan-district-council/walsall ,WC132-360,30.11.2021,ADULT SOCIAL CARE,ADVANCE HEALTH CARE (UK) LTD,23/11/2021,490.49,6541-Domiciliary Care,THIRD PARTY PAYMENTS,PRIVATE CONTRACTOR,REVENUE
Walsall Council,http://opendatacommunities.org/id/metropolitan-district-council/walsall ,WC132-361,30.11.2021,ADULT SOCIAL CARE,ADVANCE HEALTH CARE (UK) LTD,23/11/2021,490.49,6541-Domiciliary Care,THIRD PARTY PAYMENTS,PRIVATE CONTRACTOR,REVENUE
Walsall Council,http://opendatacommunities.org/id/metropolitan-district-council/walsall ,WC132-362,30.11.2021,ADULT SOCIAL CARE,ADVANCE HEALTH CARE (UK) LTD,23/11/2021,435.96,6541-Domiciliary Care,THIRD PARTY PAYMENTS,PRIVATE CONTRACTOR,REVENUE
Walsall Council,http://opendatacommunities.org/id/metropolitan-district-council/walsall ,WC132-363,30.11.2021,ADULT SOCIAL CARE,ADVANCE HEALTH CARE (UK) LTD,23/11/2021,435.96,6541-Domiciliary Care,THIRD PARTY PAYMENTS,PRIVATE CONTRACTOR,REVENUE
Walsall Council,http://opendatacommunities.org/id/metropolitan-district-council/walsall ,WC132-364,30.11.2021,ADULT SOCIAL CARE,ADVANCE HEALTH CARE (UK) LTD,23/11/2021,381.50,6541-Domiciliary Care,THIRD PARTY PAYMENTS,PRIVATE CONTRACTOR,REVENUE
Walsall Council,http://opendatacommunities.org/id/metropolitan-district-council/walsall ,WC132-365,30.11.2021,ADULT SOCIAL CARE,ADVANCE HEALTH CARE (UK) LTD,23/11/2021,817.95,6541-Domiciliary Care,THIRD PARTY PAYMENTS,PRIVATE CONTRACTOR,REVENUE
Walsall Council,http://opendatacommunities.org/id/metropolitan-district-council/walsall ,WC132-366,30.11.2021,ADULT SOCIAL CARE,ADVANCE HEALTH CARE (UK) LTD,23/11/2021,880.16,6541-Domiciliary Care,THIRD PARTY PAYMENTS,PRIVATE CONTRACTOR,REVENUE
Walsall Council,http://opendatacommunities.org/id/metropolitan-district-council/walsall ,WC132-367,30.11.2021,ADULT SOCIAL CARE,ADVANCE HEALTH CARE (UK) LTD,23/11/2021,490.49,6541-Domiciliary Care,THIRD PARTY PAYMENTS,PRIVATE CONTRACTOR,REVENUE
Walsall Council,http://opendatacommunities.org/id/metropolitan-district-council/walsall ,WC132-368,30.11.2021,ADULT SOCIAL CARE,ADVANCE HEALTH CARE (UK) LTD,23/11/2021,454.16,6541-Domiciliary Care,THIRD PARTY PAYMENTS,PRIVATE CONTRACTOR,REVENUE
Walsall Council,http://opendatacommunities.org/id/metropolitan-district-council/walsall ,WC132-369,30.11.2021,ADULT SOCIAL CARE,ADVANCE HEALTH CARE (UK) LTD,23/11/2021,490.49,6541-Domiciliary Care,THIRD PARTY PAYMENTS,PRIVATE CONTRACTOR,REVENUE
Walsall Council,http://opendatacommunities.org/id/metropolitan-district-council/walsall ,WC132-370,30.11.2021,ADULT SOCIAL CARE,ADVANCE HEALTH CARE (UK) LTD,23/11/2021,871.92,6541-Domiciliary Care,THIRD PARTY PAYMENTS,PRIVATE CONTRACTOR,REVENUE
Walsall Council,http://opendatacommunities.org/id/metropolitan-district-council/walsall ,WC132-371,30.11.2021,ADULT SOCIAL CARE,ADVANCE HEALTH CARE (UK) LTD,23/11/2021,326.97,6541-Domiciliary Care,THIRD PARTY PAYMENTS,PRIVATE CONTRACTOR,REVENUE
Walsall Council,http://opendatacommunities.org/id/metropolitan-district-council/walsall ,WC132-372,30.11.2021,ADULT SOCIAL CARE,ADVANCE HEALTH CARE (UK) LTD,23/11/2021,381.50,6541-Domiciliary Care,THIRD PARTY PAYMENTS,PRIVATE CONTRACTOR,REVENUE
Walsall Council,http://opendatacommunities.org/id/metropolitan-district-council/walsall ,WC132-373,30.11.2021,ADULT SOCIAL CARE,ADVANCE HEALTH CARE (UK) LTD,23/11/2021,490.49,6541-Domiciliary Care,THIRD PARTY PAYMENTS,PRIVATE CONTRACTOR,REVENUE
Walsall Council,http://opendatacommunities.org/id/metropolitan-district-council/walsall ,WC132-374,30.11.2021,ADULT SOCIAL CARE,ADVANCE HEALTH CARE (UK) LTD,23/11/2021,490.49,6541-Domiciliary Care,THIRD PARTY PAYMENTS,PRIVATE CONTRACTOR,REVENUE
Walsall Council,http://opendatacommunities.org/id/metropolitan-district-council/walsall ,WC132-375,30.11.2021,ADULT SOCIAL CARE,ADVANCE HEALTH CARE (UK) LTD,23/11/2021,"1,961.82",6541-Domiciliary Care,THIRD PARTY PAYMENTS,PRIVATE CONTRACTOR,REVENUE
Walsall Council,http://opendatacommunities.org/id/metropolitan-district-council/walsall ,WC132-376,30.11.2021,ADULT SOCIAL CARE,ADVANCE HEALTH CARE (UK) LTD,23/11/2021,490.49,6541-Domiciliary Care,THIRD PARTY PAYMENTS,PRIVATE CONTRACTOR,REVENUE
Walsall Council,http://opendatacommunities.org/id/metropolitan-district-council/walsall ,WC132-377,30.11.2021,ADULT SOCIAL CARE,ADVANCE HEALTH CARE (UK) LTD,23/11/2021,490.49,6541-Domiciliary Care,THIRD PARTY PAYMENTS,PRIVATE CONTRACTOR,REVENUE
Walsall Council,http://opendatacommunities.org/id/metropolitan-district-council/walsall ,WC132-378,30.11.2021,ADULT SOCIAL CARE,ADVANCE HEALTH CARE (UK) LTD,23/11/2021,"1,472.10",6541-Domiciliary Care,THIRD PARTY PAYMENTS,PRIVATE CONTRACTOR,REVENUE
Walsall Council,http://opendatacommunities.org/id/metropolitan-district-council/walsall ,WC132-379,30.11.2021,ADULT SOCIAL CARE,ADVANCE HEALTH CARE (UK) LTD,23/11/2021,833.03,6541-Domiciliary Care,THIRD PARTY PAYMENTS,PRIVATE CONTRACTOR,REVENUE
Walsall Council,http://opendatacommunities.org/id/metropolitan-district-council/walsall ,WC132-380,30.11.2021,ADULT SOCIAL CARE,ADVANCE HEALTH CARE (UK) LTD,23/11/2021,490.49,6541-Domiciliary Care,THIRD PARTY PAYMENTS,PRIVATE CONTRACTOR,REVENUE
Walsall Council,http://opendatacommunities.org/id/metropolitan-district-council/walsall ,WC132-381,30.11.2021,ADULT SOCIAL CARE,ADVANCE HEALTH CARE (UK) LTD,23/11/2021,490.49,6541-Domiciliary Care,THIRD PARTY PAYMENTS,PRIVATE CONTRACTOR,REVENUE
Walsall Council,http://opendatacommunities.org/id/metropolitan-district-council/walsall ,WC132-382,30.11.2021,ADULT SOCIAL CARE,ADVANCE HEALTH CARE (UK) LTD,23/11/2021,490.49,6541-Domiciliary Care,THIRD PARTY PAYMENTS,PRIVATE CONTRACTOR,REVENUE
Walsall Council,http://opendatacommunities.org/id/metropolitan-district-council/walsall ,WC132-383,30.11.2021,ADULT SOCIAL CARE,ADVANCE HEALTH CARE (UK) LTD,23/11/2021,435.96,6541-Domiciliary Care,THIRD PARTY PAYMENTS,PRIVATE CONTRACTOR,REVENUE
Walsall Council,http://opendatacommunities.org/id/metropolitan-district-council/walsall ,WC132-384,30.11.2021,ADULT SOCIAL CARE,ADVANCE HEALTH CARE (UK) LTD,23/11/2021,256.93,6541-Domiciliary Care,THIRD PARTY PAYMENTS,PRIVATE CONTRACTOR,REVENUE
Walsall Council,http://opendatacommunities.org/id/metropolitan-district-council/walsall ,WC132-385,30.11.2021,ADULT SOCIAL CARE,ADVANCE HEALTH CARE (UK) LTD,23/11/2021,260.90,6541-Domiciliary Care,THIRD PARTY PAYMENTS,PRIVATE CONTRACTOR,REVENUE
Walsall Council,http://opendatacommunities.org/id/metropolitan-district-council/walsall ,WC132-386,30.11.2021,ADULT SOCIAL CARE,ADVANCE HEALTH CARE (UK) LTD,23/11/2021,490.49,6541-Domiciliary Care,THIRD PARTY PAYMENTS,PRIVATE CONTRACTOR,REVENUE
Walsall Council,http://opendatacommunities.org/id/metropolitan-district-council/walsall ,WC132-387,30.11.2021,ADULT SOCIAL CARE,ADVANCE HEALTH CARE (UK) LTD,23/11/2021,911.04,6541-Domiciliary Care,THIRD PARTY PAYMENTS,PRIVATE CONTRACTOR,REVENUE
Walsall Council,http://opendatacommunities.org/id/metropolitan-district-council/walsall ,WC132-388,30.11.2021,ADULT SOCIAL CARE,ADVANCE HEALTH CARE (UK) LTD,23/11/2021,399.63,6541-Domiciliary Care,THIRD PARTY PAYMENTS,PRIVATE CONTRACTOR,REVENUE
Walsall Council,http://opendatacommunities.org/id/metropolitan-district-council/walsall ,WC132-389,30.11.2021,ADULT SOCIAL CARE,ADVANCE HEALTH CARE (UK) LTD,23/11/2021,"1,509.12",6541-Domiciliary Care,THIRD PARTY PAYMENTS,PRIVATE CONTRACTOR,REVENUE
Walsall Council,http://opendatacommunities.org/id/metropolitan-district-council/walsall ,WC132-390,30.11.2021,ADULT SOCIAL CARE,ADVANCE HEALTH CARE (UK) LTD,23/11/2021,490.49,6541-Domiciliary Care,THIRD PARTY PAYMENTS,PRIVATE CONTRACTOR,REVENUE
Walsall Council,http://opendatacommunities.org/id/metropolitan-district-council/walsall ,WC132-391,30.11.2021,ADULT SOCIAL CARE,ADVANCE HEALTH CARE (UK) LTD,23/11/2021,490.49,6541-Domiciliary Care,THIRD PARTY PAYMENTS,PRIVATE CONTRACTOR,REVENUE
Walsall Council,http://opendatacommunities.org/id/metropolitan-district-council/walsall ,WC132-392,30.11.2021,ADULT SOCIAL CARE,ADVANCE HEALTH CARE (UK) LTD,23/11/2021,326.97,6541-Domiciliary Care,THIRD PARTY PAYMENTS,PRIVATE CONTRACTOR,REVENUE
Walsall Council,http://opendatacommunities.org/id/metropolitan-district-council/walsall ,WC132-393,30.11.2021,ADULT SOCIAL CARE,ADVANCE HEALTH CARE (UK) LTD,23/11/2021,506.06,6541-Domiciliary Care,THIRD PARTY PAYMENTS,PRIVATE CONTRACTOR,REVENUE
Walsall Council,http://opendatacommunities.org/id/metropolitan-district-council/walsall ,WC132-394,30.11.2021,ADULT SOCIAL CARE,ADVANCE HEALTH CARE (UK) LTD,23/11/2021,435.96,6541-Domiciliary Care,THIRD PARTY PAYMENTS,PRIVATE CONTRACTOR,REVENUE
Walsall Council,http://opendatacommunities.org/id/metropolitan-district-council/walsall ,WC132-395,30.11.2021,ADULT SOCIAL CARE,ADVANCE HEALTH CARE (UK) LTD,23/11/2021,599.55,6541-Domiciliary Care,THIRD PARTY PAYMENTS,PRIVATE CONTRACTOR,REVENUE
Walsall Council,http://opendatacommunities.org/id/metropolitan-district-council/walsall ,WC132-396,30.11.2021,ADULT SOCIAL CARE,ADVANCE HEALTH CARE (UK) LTD,23/11/2021,490.49,6541-Domiciliary Care,THIRD PARTY PAYMENTS,PRIVATE CONTRACTOR,REVENUE
Walsall Council,http://opendatacommunities.org/id/metropolitan-district-council/walsall ,WC132-397,30.11.2021,ADULT SOCIAL CARE,ADVANCE HEALTH CARE (UK) LTD,23/11/2021,635.81,6541-Domiciliary Care,THIRD PARTY PAYMENTS,PRIVATE CONTRACTOR,REVENUE
Walsall Council,http://opendatacommunities.org/id/metropolitan-district-council/walsall ,WC132-398,30.11.2021,ADULT SOCIAL CARE,ADVANCE HEALTH CARE (UK) LTD,23/11/2021,435.96,6541-Domiciliary Care,THIRD PARTY PAYMENTS,PRIVATE CONTRACTOR,REVENUE
Walsall Council,http://opendatacommunities.org/id/metropolitan-district-council/walsall ,WC132-399,30.11.2021,ADULT SOCIAL CARE,ADVANCE HEALTH CARE (UK) LTD,23/11/2021,490.49,6541-Domiciliary Care,THIRD PARTY PAYMENTS,PRIVATE CONTRACTOR,REVENUE
Walsall Council,http://opendatacommunities.org/id/metropolitan-district-council/walsall ,WC132-400,30.11.2021,ADULT SOCIAL CARE,ADVANCE HEALTH CARE (UK) LTD,23/11/2021,506.06,6541-Domiciliary Care,THIRD PARTY PAYMENTS,PRIVATE CONTRACTOR,REVENUE
Walsall Council,http://opendatacommunities.org/id/metropolitan-district-council/walsall ,WC132-401,30.11.2021,ADULT SOCIAL CARE,ADVANCE HEALTH CARE (UK) LTD,23/11/2021,435.96,6541-Domiciliary Care,THIRD PARTY PAYMENTS,PRIVATE CONTRACTOR,REVENUE
Walsall Council,http://opendatacommunities.org/id/metropolitan-district-council/walsall ,WC132-402,30.11.2021,ADULT SOCIAL CARE,ADVANCE HEALTH CARE (UK) LTD,23/11/2021,537.20,6541-Domiciliary Care,THIRD PARTY PAYMENTS,PRIVATE CONTRACTOR,REVENUE
Walsall Council,http://opendatacommunities.org/id/metropolitan-district-council/walsall ,WC132-403,30.11.2021,ADULT SOCIAL CARE,ADVANCE HEALTH CARE (UK) LTD,23/11/2021,490.49,6541-Domiciliary Care,THIRD PARTY PAYMENTS,PRIVATE CONTRACTOR,REVENUE
Walsall Council,http://opendatacommunities.org/id/metropolitan-district-council/walsall ,WC132-404,30.11.2021,ADULT SOCIAL CARE,ADVANCE HEALTH CARE (UK) LTD,23/11/2021,490.49,6541-Domiciliary Care,THIRD PARTY PAYMENTS,PRIVATE CONTRACTOR,REVENUE
Walsall Council,http://opendatacommunities.org/id/metropolitan-district-council/walsall ,WC132-405,30.11.2021,ADULT SOCIAL CARE,ADVANCE HEALTH CARE (UK) LTD,23/11/2021,435.96,6541-Domiciliary Care,THIRD PARTY PAYMENTS,PRIVATE CONTRACTOR,REVENUE
Walsall Council,http://opendatacommunities.org/id/metropolitan-district-council/walsall ,WC132-406,30.11.2021,ADULT SOCIAL CARE,ADVANCE HEALTH CARE (UK) LTD,23/11/2021,420.39,6541-Domiciliary Care,THIRD PARTY PAYMENTS,PRIVATE CONTRACTOR,REVENUE
Walsall Council,http://opendatacommunities.org/id/metropolitan-district-council/walsall ,WC132-407,30.11.2021,ADULT SOCIAL CARE,ADVANCE HEALTH CARE (UK) LTD,23/11/2021,435.96,6541-Domiciliary Care,THIRD PARTY PAYMENTS,PRIVATE CONTRACTOR,REVENUE
Walsall Council,http://opendatacommunities.org/id/metropolitan-district-council/walsall ,WC132-408,30.11.2021,ADULT SOCIAL CARE,ADVANCE HEALTH CARE (UK) LTD,23/11/2021,454.16,6541-Domiciliary Care,THIRD PARTY PAYMENTS,PRIVATE CONTRACTOR,REVENUE
Walsall Council,http://opendatacommunities.org/id/metropolitan-district-council/walsall ,WC132-409,30.11.2021,ADULT SOCIAL CARE,ADVANCE HEALTH CARE (UK) LTD,23/11/2021,363.30,6541-Domiciliary Care,THIRD PARTY PAYMENTS,PRIVATE CONTRACTOR,REVENUE
Walsall Council,http://opendatacommunities.org/id/metropolitan-district-council/walsall ,WC132-410,30.11.2021,ADULT SOCIAL CARE,ADVANCE HEALTH CARE (UK) LTD,23/11/2021,833.03,6541-Domiciliary Care,THIRD PARTY PAYMENTS,PRIVATE CONTRACTOR,REVENUE
Walsall Council,http://opendatacommunities.org/id/metropolitan-district-council/walsall ,WC132-411,30.11.2021,ADULT SOCIAL CARE,ADVANCE HEALTH CARE (UK) LTD,23/11/2021,490.49,6541-Domiciliary Care,THIRD PARTY PAYMENTS,PRIVATE CONTRACTOR,REVENUE
Walsall Council,http://opendatacommunities.org/id/metropolitan-district-council/walsall ,WC132-412,30.11.2021,ADULT SOCIAL CARE,ADVANCE HEALTH CARE (UK) LTD,23/11/2021,490.49,6541-Domiciliary Care,THIRD PARTY PAYMENTS,PRIVATE CONTRACTOR,REVENUE
Walsall Council,http://opendatacommunities.org/id/metropolitan-district-council/walsall ,WC132-413,30.11.2021,ADULT SOCIAL CARE,ADVANCE HEALTH CARE (UK) LTD,23/11/2021,490.49,6541-Domiciliary Care,THIRD PARTY PAYMENTS,PRIVATE CONTRACTOR,REVENUE
Walsall Council,http://opendatacommunities.org/id/metropolitan-district-council/walsall ,WC132-414,30.11.2021,ADULT SOCIAL CARE,ADVANCE HEALTH CARE (UK) LTD,23/11/2021,435.96,6541-Domiciliary Care,THIRD PARTY PAYMENTS,PRIVATE CONTRACTOR,REVENUE
Walsall Council,http://opendatacommunities.org/id/metropolitan-district-council/walsall ,WC132-415,30.11.2021,ADULT SOCIAL CARE,ADVANCE HEALTH CARE (UK) LTD,23/11/2021,490.49,6541-Domiciliary Care,THIRD PARTY PAYMENTS,PRIVATE CONTRACTOR,REVENUE
Walsall Council,http://opendatacommunities.org/id/metropolitan-district-council/walsall ,WC132-416,30.11.2021,ADULT SOCIAL CARE,ADVANCE HEALTH CARE (UK) LTD,23/11/2021,871.92,6541-Domiciliary Care,THIRD PARTY PAYMENTS,PRIVATE CONTRACTOR,REVENUE
Walsall Council,http://opendatacommunities.org/id/metropolitan-district-council/walsall ,WC132-417,30.11.2021,ADULT SOCIAL CARE,ADVANCE HEALTH CARE (UK) LTD,23/11/2021,326.97,6541-Domiciliary Care,THIRD PARTY PAYMENTS,PRIVATE CONTRACTOR,REVENUE
Walsall Council,http://opendatacommunities.org/id/metropolitan-district-council/walsall ,WC132-418,30.11.2021,ADULT SOCIAL CARE,ADVANCE HEALTH CARE (UK) LTD,23/11/2021,381.50,6541-Domiciliary Care,THIRD PARTY PAYMENTS,PRIVATE CONTRACTOR,REVENUE
Walsall Council,http://opendatacommunities.org/id/metropolitan-district-council/walsall ,WC132-419,30.11.2021,ADULT SOCIAL CARE,ADVANCE HEALTH CARE (UK) LTD,23/11/2021,490.49,6541-Domiciliary Care,THIRD PARTY PAYMENTS,PRIVATE CONTRACTOR,REVENUE
Walsall Council,http://opendatacommunities.org/id/metropolitan-district-council/walsall ,WC132-420,30.11.2021,ADULT SOCIAL CARE,ADVANCE HEALTH CARE (UK) LTD,23/11/2021,490.49,6541-Domiciliary Care,THIRD PARTY PAYMENTS,PRIVATE CONTRACTOR,REVENUE
Walsall Council,http://opendatacommunities.org/id/metropolitan-district-council/walsall ,WC132-421,30.11.2021,ADULT SOCIAL CARE,ADVANCE HEALTH CARE (UK) LTD,23/11/2021,490.49,6541-Domiciliary Care,THIRD PARTY PAYMENTS,PRIVATE CONTRACTOR,REVENUE
Walsall Council,http://opendatacommunities.org/id/metropolitan-district-council/walsall ,WC132-422,30.11.2021,ADULT SOCIAL CARE,ADVANCE HEALTH CARE (UK) LTD,23/11/2021,490.49,6541-Domiciliary Care,THIRD PARTY PAYMENTS,PRIVATE CONTRACTOR,REVENUE
Walsall Council,http://opendatacommunities.org/id/metropolitan-district-council/walsall ,WC132-423,30.11.2021,ADULT SOCIAL CARE,ADVANCE HEALTH CARE (UK) LTD,23/11/2021,490.49,6541-Domiciliary Care,THIRD PARTY PAYMENTS,PRIVATE CONTRACTOR,REVENUE
Walsall Council,http://opendatacommunities.org/id/metropolitan-district-council/walsall ,WC132-424,30.11.2021,ADULT SOCIAL CARE,ADVANCE HEALTH CARE (UK) LTD,23/11/2021,490.49,6541-Domiciliary Care,THIRD PARTY PAYMENTS,PRIVATE CONTRACTOR,REVENUE
Walsall Council,http://opendatacommunities.org/id/metropolitan-district-council/walsall ,WC132-425,30.11.2021,ADULT SOCIAL CARE,ADVANCE HEALTH CARE (UK) LTD,23/11/2021,490.49,6541-Domiciliary Care,THIRD PARTY PAYMENTS,PRIVATE CONTRACTOR,REVENUE
Walsall Council,http://opendatacommunities.org/id/metropolitan-district-council/walsall ,WC132-426,30.11.2021,ADULT SOCIAL CARE,ADVANCE HEALTH CARE (UK) LTD,23/11/2021,399.63,6541-Domiciliary Care,THIRD PARTY PAYMENTS,PRIVATE CONTRACTOR,REVENUE
Walsall Council,http://opendatacommunities.org/id/metropolitan-district-council/walsall ,WC132-427,30.11.2021,ADULT SOCIAL CARE,ADVANCE HEALTH CARE (UK) LTD,23/11/2021,256.93,6541-Domiciliary Care,THIRD PARTY PAYMENTS,PRIVATE CONTRACTOR,REVENUE
Walsall Council,http://opendatacommunities.org/id/metropolitan-district-council/walsall ,WC132-428,30.11.2021,ADULT SOCIAL CARE,ADVANCE HEALTH CARE (UK) LTD,23/11/2021,490.49,6541-Domiciliary Care,THIRD PARTY PAYMENTS,PRIVATE CONTRACTOR,REVENUE
Walsall Council,http://opendatacommunities.org/id/metropolitan-district-council/walsall ,WC132-429,30.11.2021,ADULT SOCIAL CARE,ADVANCE HEALTH CARE (UK) LTD,23/11/2021,490.49,6541-Domiciliary Care,THIRD PARTY PAYMENTS,PRIVATE CONTRACTOR,REVENUE
Walsall Council,http://opendatacommunities.org/id/metropolitan-district-council/walsall ,WC132-430,30.11.2021,ADULT SOCIAL CARE,ADVANCE HEALTH CARE (UK) LTD,23/11/2021,435.96,6541-Domiciliary Care,THIRD PARTY PAYMENTS,PRIVATE CONTRACTOR,REVENUE
Walsall Council,http://opendatacommunities.org/id/metropolitan-district-council/walsall ,WC132-431,30.11.2021,ADULT SOCIAL CARE,ADVANCE HEALTH CARE (UK) LTD,23/11/2021,326.97,6541-Domiciliary Care,THIRD PARTY PAYMENTS,PRIVATE CONTRACTOR,REVENUE
Walsall Council,http://opendatacommunities.org/id/metropolitan-district-council/walsall ,WC132-432,30.11.2021,ADULT SOCIAL CARE,ADVANCE HEALTH CARE (UK) LTD,23/11/2021,435.96,6541-Domiciliary Care,THIRD PARTY PAYMENTS,PRIVATE CONTRACTOR,REVENUE
Walsall Council,http://opendatacommunities.org/id/metropolitan-district-council/walsall ,WC132-433,30.11.2021,ADULT SOCIAL CARE,ADVANCE HEALTH CARE (UK) LTD,23/11/2021,381.50,6541-Domiciliary Care,THIRD PARTY PAYMENTS,PRIVATE CONTRACTOR,REVENUE
Walsall Council,http://opendatacommunities.org/id/metropolitan-district-council/walsall ,WC132-434,30.11.2021,ADULT SOCIAL CARE,ADVANCE HEALTH CARE (UK) LTD,23/11/2021,490.49,6541-Domiciliary Care,THIRD PARTY PAYMENTS,PRIVATE CONTRACTOR,REVENUE
Walsall Council,http://opendatacommunities.org/id/metropolitan-district-council/walsall ,WC132-435,30.11.2021,ADULT SOCIAL CARE,ADVANCE HEALTH CARE (UK) LTD,23/11/2021,454.16,6541-Domiciliary Care,THIRD PARTY PAYMENTS,PRIVATE CONTRACTOR,REVENUE
Walsall Council,http://opendatacommunities.org/id/metropolitan-district-council/walsall ,WC132-436,30.11.2021,ADULT SOCIAL CARE,ADVANCE HEALTH CARE (UK) LTD,17/11/2021,563.39,6541-Domiciliary Care,THIRD PARTY PAYMENTS,PRIVATE CONTRACTOR,REVENUE
Walsall Council,http://opendatacommunities.org/id/metropolitan-district-council/walsall ,WC132-437,30.11.2021,ADULT SOCIAL CARE,ADVINIA CARE HOMES LTD - HAMMERWICH HALL CARE HOME,23/11/2021,"2,064.44",6541-Residential,THIRD PARTY PAYMENTS,PRIVATE CONTRACTOR,REVENUE
Walsall Council,http://opendatacommunities.org/id/metropolitan-district-council/walsall ,WC132-438,30.11.2021,ADULT SOCIAL CARE,ADVINIA CARE HOMES LTD - HAMMERWICH HALL CARE HOME,23/11/2021,"2,331.08",6541-Residential EMI,THIRD PARTY PAYMENTS,PRIVATE CONTRACTOR,REVENUE
Walsall Council,http://opendatacommunities.org/id/metropolitan-district-council/walsall ,WC132-439,30.11.2021,ADULT SOCIAL CARE,ADVOCACY MATTERS LIMITED,09/11/2021,"14,947.08",6553-Social Services-Fees to Voluntary Bodies,THIRD PARTY PAYMENTS,VOLUNTARY BODIES,REVENUE
Walsall Council,http://opendatacommunities.org/id/metropolitan-district-council/walsall ,WC132-440,30.11.2021,CHILDRENS,REDACTED,17/11/2021,579.31,6223-Foster Carers Maintenance Allowance,TRANSFER PAYMENTS,CHILDREN SOCIAL SERVICES CLIENT,REVENUE
Walsall Council,http://opendatacommunities.org/id/metropolitan-district-council/walsall ,WC132-441,30.11.2021,CHILDRENS,REDACTED,17/11/2021,546.76,6223-Foster Carers Maintenance Allowance,TRANSFER PAYMENTS,CHILDREN SOCIAL SERVICES CLIENT,REVENUE
Walsall Council,http://opendatacommunities.org/id/metropolitan-district-council/walsall ,WC132-442,30.11.2021,CHILDRENS,REDACTED,17/11/2021,408.00,6223-Internal Foster Carers-Carer Fees,TRANSFER PAYMENTS,CHILDREN SOCIAL SERVICES CLIENT,REVENUE
Walsall Council,http://opendatacommunities.org/id/metropolitan-district-council/walsall ,WC132-443,30.11.2021,RESOURCES AND TRANSFORMATION,AGILISYS LTD,01/11/2021,"95,000.00",6623-Computer Equipment,SUPPLIES & SERVICES,COMMUNICATIONS & COMPUTING,REVENUE
Walsall Council,http://opendatacommunities.org/id/metropolitan-district-council/walsall ,WC132-444,30.11.2021,RESOURCES AND TRANSFORMATION CAPITAL,AGILISYS LTD,01/11/2021,"25,876.00",7300-Consultants Fees,CAPITAL,"NEW CONSTRUCTION,CONVERSION & RENOVATION",CAPITAL
Walsall Council,http://opendatacommunities.org/id/metropolitan-district-council/walsall ,WC132-445,30.11.2021,RESOURCES AND TRANSFORMATION CAPITAL,AGILISYS LTD,12/11/2021,"-9,465.00",7300-Consultants Fees,CAPITAL,"NEW CONSTRUCTION,CONVERSION & RENOVATION",CAPITAL
Walsall Council,http://opendatacommunities.org/id/metropolitan-district-council/walsall ,WC132-446,30.11.2021,RESOURCES AND TRANSFORMATION CAPITAL,AGILISYS LTD,30/11/2021,"4,732.50",7300-Consultants Fees,CAPITAL,"NEW CONSTRUCTION,CONVERSION & RENOVATION",CAPITAL
Walsall Council,http://opendatacommunities.org/id/metropolitan-district-council/walsall ,WC132-447,30.11.2021,"ECONOMY, ENVIRONMENT & COMMUNITIES",AGROVISTA UK LTD,09/11/2021,"1,556.00",6410-Materials,SUPPLIES & SERVICES,EQUIPMENT FURNITURE & MATERIALS,REVENUE
Walsall Council,http://opendatacommunities.org/id/metropolitan-district-council/walsall ,WC132-448,30.11.2021,ADULT SOCIAL CARE,REDACTED,03/11/2021,"2,480.64",6541-Direct Payment,THIRD PARTY PAYMENTS,PRIVATE CONTRACTOR,REVENUE
Walsall Council,http://opendatacommunities.org/id/metropolitan-district-council/walsall ,WC132-449,30.11.2021,CHILDRENS,ALAN SAVILL T/A INSPIRED TRAINERS,05/11/2021,-600.00,6211-External Training,INDIRECT EMPLOYEES,EXTERNAL TRAINING,REVENUE
Walsall Council,http://opendatacommunities.org/id/metropolitan-district-council/walsall ,WC132-450,30.11.2021,CHILDRENS,ALAN SAVILL T/A INSPIRED TRAINERS,05/11/2021,600.00,6211-External Training,INDIRECT EMPLOYEES,EXTERNAL TRAINING,REVENUE
Walsall Council,http://opendatacommunities.org/id/metropolitan-district-council/walsall ,WC132-451,30.11.2021,CHILDRENS,ALASDAIR CANT & ASSOCIATES LIMITED,10/11/2021,"2,605.50",6220-Professional Fees & Services,SUPPLIES & SERVICES,SERVICES,REVENUE
Walsall Council,http://opendatacommunities.org/id/metropolitan-district-council/walsall ,WC132-452,30.11.2021,"ECONOMY, ENVIRONMENT & COMMUNITIES",ALBERT JAGGER LTD,18/11/2021,300.00,6410-Materials,SUPPLIES & SERVICES,EQUIPMENT FURNITURE & MATERIALS,REVENUE
Walsall Council,http://opendatacommunities.org/id/metropolitan-district-council/walsall ,WC132-453,30.11.2021,"ECONOMY, ENVIRONMENT & COMMUNITIES",ALBERT JAGGER LTD,16/11/2021,282.00,6410-Materials to Stores,SUPPLIES & SERVICES,EQUIPMENT FURNITURE & MATERIALS,REVENUE
Walsall Council,http://opendatacommunities.org/id/metropolitan-district-council/walsall ,WC132-454,30.11.2021,CHILDRENS,ALDRIDGE & BARONS LIMITED,08/11/2021,"1,800.00",6241-Hire of Vehicle with Driver,TRANSPORT,DIRECT TRANSPORT COSTS,REVENUE
Walsall Council,http://opendatacommunities.org/id/metropolitan-district-council/walsall ,WC132-455,30.11.2021,CHILDRENS,ALDRIDGE & BARONS LIMITED,08/11/2021,"1,631.15",6241-Hire of Vehicle with Driver,TRANSPORT,DIRECT TRANSPORT COSTS,REVENUE
Walsall Council,http://opendatacommunities.org/id/metropolitan-district-council/walsall ,WC132-456,30.11.2021,CHILDRENS,ALDRIDGE & BARONS LIMITED,08/11/2021,"2,039.04",6241-Hire of Vehicle with Driver,TRANSPORT,DIRECT TRANSPORT COSTS,REVENUE
Walsall Council,http://opendatacommunities.org/id/metropolitan-district-council/walsall ,WC132-457,30.11.2021,CHILDRENS,ALDRIDGE & BARONS LIMITED,08/11/2021,"1,512.00",6241-Hire of Vehicle with Driver,TRANSPORT,DIRECT TRANSPORT COSTS,REVENUE
Walsall Council,http://opendatacommunities.org/id/metropolitan-district-council/walsall ,WC132-458,30.11.2021,CHILDRENS,ALDRIDGE & BARONS LIMITED,08/11/2021,"2,278.00",6241-Hire of Vehicle with Driver,TRANSPORT,DIRECT TRANSPORT COSTS,REVENUE
Walsall Council,http://opendatacommunities.org/id/metropolitan-district-council/walsall ,WC132-459,30.11.2021,CHILDRENS,ALDRIDGE & BARONS LIMITED,08/11/2021,"2,316.00",6241-Hire of Vehicle with Driver,TRANSPORT,DIRECT TRANSPORT COSTS,REVENUE
Walsall Council,http://opendatacommunities.org/id/metropolitan-district-council/walsall ,WC132-460,30.11.2021,CHILDRENS,ALDRIDGE & BARONS LIMITED,08/11/2021,"1,931.40",6241-Hire of Vehicle with Driver,TRANSPORT,DIRECT TRANSPORT COSTS,REVENUE
Walsall Council,http://opendatacommunities.org/id/metropolitan-district-council/walsall ,WC132-461,30.11.2021,CHILDRENS,ALDRIDGE & BARONS LIMITED,08/11/2021,"1,935.00",6241-Hire of Vehicle with Driver,TRANSPORT,DIRECT TRANSPORT COSTS,REVENUE
Walsall Council,http://opendatacommunities.org/id/metropolitan-district-council/walsall ,WC132-462,30.11.2021,CHILDRENS,ALDRIDGE & BARONS LIMITED,08/11/2021,"2,080.00",6241-Hire of Vehicle with Driver,TRANSPORT,DIRECT TRANSPORT COSTS,REVENUE
Walsall Council,http://opendatacommunities.org/id/metropolitan-district-council/walsall ,WC132-463,30.11.2021,CHILDRENS,ALDRIDGE & BARONS LIMITED,08/11/2021,"2,626.00",6241-Hire of Vehicle with Driver,TRANSPORT,DIRECT TRANSPORT COSTS,REVENUE
Walsall Council,http://opendatacommunities.org/id/metropolitan-district-council/walsall ,WC132-464,30.11.2021,CHILDRENS,ALDRIDGE & BARONS LIMITED,08/11/2021,"2,130.00",6241-Hire of Vehicle with Driver,TRANSPORT,DIRECT TRANSPORT COSTS,REVENUE
Walsall Council,http://opendatacommunities.org/id/metropolitan-district-council/walsall ,WC132-465,30.11.2021,CHILDRENS,ALDRIDGE & BARONS LIMITED,08/11/2021,"1,284.00",6241-Hire of Vehicle with Driver,TRANSPORT,DIRECT TRANSPORT COSTS,REVENUE
Walsall Council,http://opendatacommunities.org/id/metropolitan-district-council/walsall ,WC132-466,30.11.2021,CHILDRENS,ALDRIDGE & BARONS LIMITED,08/11/2021,"2,464.00",6241-Hire of Vehicle with Driver,TRANSPORT,DIRECT TRANSPORT COSTS,REVENUE
Walsall Council,http://opendatacommunities.org/id/metropolitan-district-council/walsall ,WC132-467,30.11.2021,CHILDRENS,ALDRIDGE & BARONS LIMITED,08/11/2021,"2,147.60",6241-Hire of Vehicle with Driver,TRANSPORT,DIRECT TRANSPORT COSTS,REVENUE
Walsall Council,http://opendatacommunities.org/id/metropolitan-district-council/walsall ,WC132-468,30.11.2021,CHILDRENS,ALDRIDGE & BARONS LIMITED,08/11/2021,"1,575.60",6241-Hire of Vehicle with Driver,TRANSPORT,DIRECT TRANSPORT COSTS,REVENUE
Walsall Council,http://opendatacommunities.org/id/metropolitan-district-council/walsall ,WC132-469,30.11.2021,CHILDRENS,ALDRIDGE & BARONS LIMITED,08/11/2021,"1,911.60",6241-Hire of Vehicle with Driver,TRANSPORT,DIRECT TRANSPORT COSTS,REVENUE
Walsall Council,http://opendatacommunities.org/id/metropolitan-district-council/walsall ,WC132-470,30.11.2021,CHILDRENS,ALDRIDGE & BARONS LIMITED,08/11/2021,"1,800.00",6241-Hire of Vehicle with Driver,TRANSPORT,DIRECT TRANSPORT COSTS,REVENUE
Walsall Council,http://opendatacommunities.org/id/metropolitan-district-council/walsall ,WC132-471,30.11.2021,CHILDRENS,ALDRIDGE & BARONS LIMITED,08/11/2021,"1,914.00",6241-Hire of Vehicle with Driver,TRANSPORT,DIRECT TRANSPORT COSTS,REVENUE
Walsall Council,http://opendatacommunities.org/id/metropolitan-district-council/walsall ,WC132-472,30.11.2021,CHILDRENS,ALDRIDGE & BARONS LIMITED,08/11/2021,"1,960.00",6241-Hire of Vehicle with Driver,TRANSPORT,DIRECT TRANSPORT COSTS,REVENUE
Walsall Council,http://opendatacommunities.org/id/metropolitan-district-council/walsall ,WC132-473,30.11.2021,CHILDRENS,ALDRIDGE & BARONS LIMITED,08/11/2021,"1,985.00",6241-Hire of Vehicle with Driver,TRANSPORT,DIRECT TRANSPORT COSTS,REVENUE
Walsall Council,http://opendatacommunities.org/id/metropolitan-district-council/walsall ,WC132-474,30.11.2021,CHILDRENS,ALDRIDGE & BARONS LIMITED,08/11/2021,"2,414.00",6241-Hire of Vehicle with Driver,TRANSPORT,DIRECT TRANSPORT COSTS,REVENUE
Walsall Council,http://opendatacommunities.org/id/metropolitan-district-council/walsall ,WC132-475,30.11.2021,CHILDRENS,ALDRIDGE & BARONS LIMITED,08/11/2021,696.00,6241-Hire of Vehicle with Driver,TRANSPORT,DIRECT TRANSPORT COSTS,REVENUE
Walsall Council,http://opendatacommunities.org/id/metropolitan-district-council/walsall ,WC132-476,30.11.2021,CHILDRENS,ALDRIDGE & BARONS LIMITED,08/11/2021,"2,232.00",6241-Hire of Vehicle with Driver,TRANSPORT,DIRECT TRANSPORT COSTS,REVENUE
Walsall Council,http://opendatacommunities.org/id/metropolitan-district-council/walsall ,WC132-477,30.11.2021,CHILDRENS,ALDRIDGE & BARONS LIMITED,08/11/2021,"1,946.00",6241-Hire of Vehicle with Driver,TRANSPORT,DIRECT TRANSPORT COSTS,REVENUE
Walsall Council,http://opendatacommunities.org/id/metropolitan-district-council/walsall ,WC132-478,30.11.2021,CHILDRENS,ALDRIDGE & BARONS LIMITED,08/11/2021,"2,083.00",6241-Hire of Vehicle with Driver,TRANSPORT,DIRECT TRANSPORT COSTS,REVENUE
Walsall Council,http://opendatacommunities.org/id/metropolitan-district-council/walsall ,WC132-479,30.11.2021,CHILDRENS,ALDRIDGE & BARONS LIMITED,08/11/2021,"1,800.00",6241-Hire of Vehicle with Driver,TRANSPORT,DIRECT TRANSPORT COSTS,REVENUE
Walsall Council,http://opendatacommunities.org/id/metropolitan-district-council/walsall ,WC132-480,30.11.2021,CHILDRENS,ALDRIDGE & BARONS LIMITED,08/11/2021,"2,200.00",6241-Hire of Vehicle with Driver,TRANSPORT,DIRECT TRANSPORT COSTS,REVENUE
Walsall Council,http://opendatacommunities.org/id/metropolitan-district-council/walsall ,WC132-481,30.11.2021,CHILDRENS,ALDRIDGE & BARONS LIMITED,08/11/2021,"1,640.00",6241-Hire of Vehicle with Driver,TRANSPORT,DIRECT TRANSPORT COSTS,REVENUE
Walsall Council,http://opendatacommunities.org/id/metropolitan-district-council/walsall ,WC132-482,30.11.2021,ADULT SOCIAL CARE,REDACTED,03/11/2021,"1,480.32",6541-Direct Payment,THIRD PARTY PAYMENTS,PRIVATE CONTRACTOR,REVENUE
Walsall Council,http://opendatacommunities.org/id/metropolitan-district-council/walsall ,WC132-483,30.11.2021,"ECONOMY, ENVIRONMENT & COMMUNITIES",REDACTED,17/11/2021,378.00,6414-Professional Fees & Services,SUPPLIES & SERVICES,SERVICES,REVENUE
Walsall Council,http://opendatacommunities.org/id/metropolitan-district-council/walsall ,WC132-484,30.11.2021,ADULT SOCIAL CARE,ALEXANDRA HOUSE CARE SERVICES LTD T/A STONEBRIDGE NURSING HOME,23/11/2021,"7,434.72",6541-Residential,THIRD PARTY PAYMENTS,PRIVATE CONTRACTOR,REVENUE
Walsall Council,http://opendatacommunities.org/id/metropolitan-district-council/walsall ,WC132-485,30.11.2021,ADULT SOCIAL CARE,REDACTED,03/11/2021,957.44,6541-Direct Payment,THIRD PARTY PAYMENTS,PRIVATE CONTRACTOR,REVENUE
Walsall Council,http://opendatacommunities.org/id/metropolitan-district-council/walsall ,WC132-486,30.11.2021,CHILDRENS,REDACTED,17/11/2021,318.68,6223-Special Guardianship Orders,TRANSFER PAYMENTS,CHILDREN SOCIAL SERVICES CLIENT,REVENUE
Walsall Council,http://opendatacommunities.org/id/metropolitan-district-council/walsall ,WC132-487,30.11.2021,"ECONOMY, ENVIRONMENT & COMMUNITIES",ALLEN ORGAN SERVICES LIMITED,15/11/2021,"1,120.00",6413-Repair & Maintenance of Furniture & Equipment,SUPPLIES & SERVICES,EQUIPMENT FURNITURE & MATERIALS,REVENUE
Walsall Council,http://opendatacommunities.org/id/metropolitan-district-council/walsall ,WC132-488,30.11.2021,ADULT SOCIAL CARE,ALMA COURT,23/11/2021,"6,619.12",6541-Residential,THIRD PARTY PAYMENTS,PRIVATE CONTRACTOR,REVENUE
Walsall Council,http://opendatacommunities.org/id/metropolitan-district-council/walsall ,WC132-489,30.11.2021,ADULT SOCIAL CARE,ALMA COURT,23/11/2021,"4,200.00",6541-Nursing EMI,THIRD PARTY PAYMENTS,PRIVATE CONTRACTOR,REVENUE
Walsall Council,http://opendatacommunities.org/id/metropolitan-district-council/walsall ,WC132-490,30.11.2021,ADULT SOCIAL CARE,ALMA COURT,23/11/2021,"4,764.88",6541-Nursing EMI,THIRD PARTY PAYMENTS,PRIVATE CONTRACTOR,REVENUE
Walsall Council,http://opendatacommunities.org/id/metropolitan-district-council/walsall ,WC132-491,30.11.2021,ADULT SOCIAL CARE,ALMA COURT,23/11/2021,"3,826.96",6541-Nursing EMI,THIRD PARTY PAYMENTS,PRIVATE CONTRACTOR,REVENUE
Walsall Council,http://opendatacommunities.org/id/metropolitan-district-council/walsall ,WC132-492,30.11.2021,ADULT SOCIAL CARE,ALMA COURT,23/11/2021,"3,626.96",6541-Nursing EMI,THIRD PARTY PAYMENTS,PRIVATE CONTRACTOR,REVENUE
Walsall Council,http://opendatacommunities.org/id/metropolitan-district-council/walsall ,WC132-493,30.11.2021,"ECONOMY, ENVIRONMENT & COMMUNITIES",ALMOZENE NURSERY & CHILDRENS CENTRE,10/11/2021,710.67,6313-Grants to Other Orgs,SUPPLIES & SERVICES,GRANTS (EXP) & SUBSCRIPTIONS,REVENUE
Walsall Council,http://opendatacommunities.org/id/metropolitan-district-council/walsall ,WC132-494,30.11.2021,"ECONOMY, ENVIRONMENT & COMMUNITIES",ALMOZENE NURSERY & CHILDRENS CENTRE,10/11/2021,712.80,6313-Grants to Other Orgs,SUPPLIES & SERVICES,GRANTS (EXP) & SUBSCRIPTIONS,REVENUE
Walsall Council,http://opendatacommunities.org/id/metropolitan-district-council/walsall ,WC132-495,30.11.2021,"ECONOMY, ENVIRONMENT & COMMUNITIES",ALMOZENE NURSERY & CHILDRENS CENTRE,23/11/2021,710.67,6313-Grants to Other Orgs,SUPPLIES & SERVICES,GRANTS (EXP) & SUBSCRIPTIONS,REVENUE
Walsall Council,http://opendatacommunities.org/id/metropolitan-district-council/walsall ,WC132-496,30.11.2021,"ECONOMY, ENVIRONMENT & COMMUNITIES",ALMOZENE NURSERY & CHILDRENS CENTRE,11/11/2021,710.67,6313-Grants to Other Orgs,SUPPLIES & SERVICES,GRANTS (EXP) & SUBSCRIPTIONS,REVENUE
Walsall Council,http://opendatacommunities.org/id/metropolitan-district-council/walsall ,WC132-497,30.11.2021,ADULT SOCIAL CARE,ALPHA HEALTH CARE LTD,23/11/2021,"2,331.08",6541-Residential EMI,THIRD PARTY PAYMENTS,PRIVATE CONTRACTOR,REVENUE
Walsall Council,http://opendatacommunities.org/id/metropolitan-district-council/walsall ,WC132-498,30.11.2021,ADULT SOCIAL CARE,ALPHA HEALTH CARE LTD,23/11/2021,"2,854.56",6541-Residential EMI,THIRD PARTY PAYMENTS,PRIVATE CONTRACTOR,REVENUE
Walsall Council,http://opendatacommunities.org/id/metropolitan-district-council/walsall ,WC132-499,30.11.2021,ADULT SOCIAL CARE,ALPHA HEALTH CARE LTD,23/11/2021,"2,722.96",6541-Nursing EMI,THIRD PARTY PAYMENTS,PRIVATE CONTRACTOR,REVENUE
Walsall Council,http://opendatacommunities.org/id/metropolitan-district-council/walsall ,WC132-500,30.11.2021,ADULT SOCIAL CARE,ALPHA HEALTH CARE LTD,23/11/2021,"2,312.31",6541-Residential EMI,THIRD PARTY PAYMENTS,PRIVATE CONTRACTOR,REVENUE
Walsall Council,http://opendatacommunities.org/id/metropolitan-district-council/walsall ,WC132-501,30.11.2021,ADULT SOCIAL CARE,ALPHA HEALTH CARE LTD,23/11/2021,"3,920.00",6541-Residential & Nursing Care Placements,THIRD PARTY PAYMENTS,PRIVATE CONTRACTOR,REVENUE
Walsall Council,http://opendatacommunities.org/id/metropolitan-district-council/walsall ,WC132-502,30.11.2021,ADULT SOCIAL CARE,ALPHA HEALTH CARE LTD,23/11/2021,"3,900.00",6541-Residential,THIRD PARTY PAYMENTS,PRIVATE CONTRACTOR,REVENUE
Walsall Council,http://opendatacommunities.org/id/metropolitan-district-council/walsall ,WC132-503,30.11.2021,ADULT SOCIAL CARE,ALPHA HEALTH CARE LTD,23/11/2021,"6,107.14",6541-Nursing,THIRD PARTY PAYMENTS,PRIVATE CONTRACTOR,REVENUE
Walsall Council,http://opendatacommunities.org/id/metropolitan-district-council/walsall ,WC132-504,30.11.2021,ADULT SOCIAL CARE,ALPHA HEALTH CARE LTD,23/11/2021,"2,331.08",6541-Residential EMI,THIRD PARTY PAYMENTS,PRIVATE CONTRACTOR,REVENUE
Walsall Council,http://opendatacommunities.org/id/metropolitan-district-council/walsall ,WC132-505,30.11.2021,ADULT SOCIAL CARE,ALPHA HEALTH CARE LTD,23/11/2021,"6,249.60",6541-Residential,THIRD PARTY PAYMENTS,PRIVATE CONTRACTOR,REVENUE
Walsall Council,http://opendatacommunities.org/id/metropolitan-district-council/walsall ,WC132-506,30.11.2021,ADULT SOCIAL CARE,ALPHA HEALTH CARE LTD,23/11/2021,"2,722.96",6541-Nursing EMI,THIRD PARTY PAYMENTS,PRIVATE CONTRACTOR,REVENUE
Walsall Council,http://opendatacommunities.org/id/metropolitan-district-council/walsall ,WC132-507,30.11.2021,ADULT SOCIAL CARE,ALPHA HEALTH CARE LTD,23/11/2021,"3,091.28",6541-Nursing EMI,THIRD PARTY PAYMENTS,PRIVATE CONTRACTOR,REVENUE
Walsall Council,http://opendatacommunities.org/id/metropolitan-district-council/walsall ,WC132-508,30.11.2021,ADULT SOCIAL CARE,ALPHA HEALTH CARE LTD,23/11/2021,"2,331.08",6541-Residential EMI,THIRD PARTY PAYMENTS,PRIVATE CONTRACTOR,REVENUE
Walsall Council,http://opendatacommunities.org/id/metropolitan-district-council/walsall ,WC132-509,30.11.2021,ADULT SOCIAL CARE,ALPHA HEALTH CARE LTD,23/11/2021,"3,363.08",6541-Residential EMI,THIRD PARTY PAYMENTS,PRIVATE CONTRACTOR,REVENUE
Walsall Council,http://opendatacommunities.org/id/metropolitan-district-council/walsall ,WC132-510,30.11.2021,ADULT SOCIAL CARE,ALPHA HEALTH CARE LTD,23/11/2021,"3,049.60",6541-Nursing EMI,THIRD PARTY PAYMENTS,PRIVATE CONTRACTOR,REVENUE
Walsall Council,http://opendatacommunities.org/id/metropolitan-district-council/walsall ,WC132-511,30.11.2021,ADULT SOCIAL CARE,ALPHA HEALTH CARE LTD,23/11/2021,"5,656.00",6541-Residential,THIRD PARTY PAYMENTS,PRIVATE CONTRACTOR,REVENUE
Walsall Council,http://opendatacommunities.org/id/metropolitan-district-council/walsall ,WC132-512,30.11.2021,ADULT SOCIAL CARE,ALPHA HEALTH CARE LTD,23/11/2021,"3,064.32",6541-Nursing EMI,THIRD PARTY PAYMENTS,PRIVATE CONTRACTOR,REVENUE
Walsall Council,http://opendatacommunities.org/id/metropolitan-district-council/walsall ,WC132-513,30.11.2021,ADULT SOCIAL CARE,ALPHA HEALTH CARE LTD,23/11/2021,"2,660.00",6541-Professional Services-Priv Contractor & Other Agencies,THIRD PARTY PAYMENTS,PRIVATE CONTRACTOR,REVENUE
Walsall Council,http://opendatacommunities.org/id/metropolitan-district-council/walsall ,WC132-514,30.11.2021,ADULT SOCIAL CARE,ALPHA HEALTH CARE LTD,23/11/2021,"3,091.28",6541-Nursing EMI,THIRD PARTY PAYMENTS,PRIVATE CONTRACTOR,REVENUE
Walsall Council,http://opendatacommunities.org/id/metropolitan-district-council/walsall ,WC132-515,30.11.2021,ADULT SOCIAL CARE,ALPHA HEALTH CARE LTD,23/11/2021,"3,340.00",6541-Residential EMI,THIRD PARTY PAYMENTS,PRIVATE CONTRACTOR,REVENUE
Walsall Council,http://opendatacommunities.org/id/metropolitan-district-council/walsall ,WC132-516,30.11.2021,ADULT SOCIAL CARE,ALPHA HEALTH CARE LTD,23/11/2021,"7,026.96",6541-Nursing EMI,THIRD PARTY PAYMENTS,PRIVATE CONTRACTOR,REVENUE
Walsall Council,http://opendatacommunities.org/id/metropolitan-district-council/walsall ,WC132-517,30.11.2021,ADULT SOCIAL CARE,ALPHA HEALTH CARE LTD,23/11/2021,"2,731.08",6541-Residential EMI,THIRD PARTY PAYMENTS,PRIVATE CONTRACTOR,REVENUE
Walsall Council,http://opendatacommunities.org/id/metropolitan-district-council/walsall ,WC132-518,30.11.2021,ADULT SOCIAL CARE,ALPHA HEALTH CARE LTD,23/11/2021,"3,091.28",6541-Nursing EMI,THIRD PARTY PAYMENTS,PRIVATE CONTRACTOR,REVENUE
Walsall Council,http://opendatacommunities.org/id/metropolitan-district-council/walsall ,WC132-519,30.11.2021,ADULT SOCIAL CARE,ALPHA HEALTH CARE LTD,23/11/2021,"3,091.28",6541-Nursing EMI,THIRD PARTY PAYMENTS,PRIVATE CONTRACTOR,REVENUE
Walsall Council,http://opendatacommunities.org/id/metropolitan-district-council/walsall ,WC132-520,30.11.2021,ADULT SOCIAL CARE,ALPHA HEALTH CARE LTD,23/11/2021,"7,000.00",6541-Residential,THIRD PARTY PAYMENTS,PRIVATE CONTRACTOR,REVENUE
Walsall Council,http://opendatacommunities.org/id/metropolitan-district-council/walsall ,WC132-521,30.11.2021,ADULT SOCIAL CARE,ALPHA HEALTH CARE LTD,23/11/2021,"3,340.00",6541-Residential EMI,THIRD PARTY PAYMENTS,PRIVATE CONTRACTOR,REVENUE
Walsall Council,http://opendatacommunities.org/id/metropolitan-district-council/walsall ,WC132-522,30.11.2021,ADULT SOCIAL CARE,ALPHA HEALTH CARE LTD,23/11/2021,"3,149.60",6541-Nursing EMI,THIRD PARTY PAYMENTS,PRIVATE CONTRACTOR,REVENUE
Walsall Council,http://opendatacommunities.org/id/metropolitan-district-council/walsall ,WC132-523,30.11.2021,ADULT SOCIAL CARE,ALPHA HEALTH CARE LTD,23/11/2021,700.00,6541-Professional Services-Priv Contractor & Other Agencies,THIRD PARTY PAYMENTS,PRIVATE CONTRACTOR,REVENUE
Walsall Council,http://opendatacommunities.org/id/metropolitan-district-council/walsall ,WC132-524,30.11.2021,ADULT SOCIAL CARE,ALPHA HEALTH CARE LTD,23/11/2021,"2,722.96",6541-Nursing EMI,THIRD PARTY PAYMENTS,PRIVATE CONTRACTOR,REVENUE
Walsall Council,http://opendatacommunities.org/id/metropolitan-district-council/walsall ,WC132-525,30.11.2021,ADULT SOCIAL CARE,ALPHA HEALTH CARE LTD,23/11/2021,"2,961.72",6541-Nursing,THIRD PARTY PAYMENTS,PRIVATE CONTRACTOR,REVENUE
Walsall Council,http://opendatacommunities.org/id/metropolitan-district-council/walsall ,WC132-526,30.11.2021,ADULT SOCIAL CARE,ALPHA HEALTH CARE LTD,23/11/2021,"3,626.96",6541-Nursing EMI,THIRD PARTY PAYMENTS,PRIVATE CONTRACTOR,REVENUE
Walsall Council,http://opendatacommunities.org/id/metropolitan-district-council/walsall ,WC132-527,30.11.2021,ADULT SOCIAL CARE,ALPHA HEALTH CARE LTD,23/11/2021,"2,600.00",6541-Residential,THIRD PARTY PAYMENTS,PRIVATE CONTRACTOR,REVENUE
Walsall Council,http://opendatacommunities.org/id/metropolitan-district-council/walsall ,WC132-528,30.11.2021,ADULT SOCIAL CARE,ALPHA HEALTH CARE LTD,30/11/2021,-407.14,6554-Professional Services-Priv Contractor & Other Agencies,THIRD PARTY PAYMENTS,PRIVATE CONTRACTOR,REVENUE
Walsall Council,http://opendatacommunities.org/id/metropolitan-district-council/walsall ,WC132-529,30.11.2021,ADULT SOCIAL CARE,ALPHA HEALTH CARE LTD,30/11/2021,"-1,221.43",6554-Professional Services-Priv Contractor & Other Agencies,THIRD PARTY PAYMENTS,PRIVATE CONTRACTOR,REVENUE
Walsall Council,http://opendatacommunities.org/id/metropolitan-district-council/walsall ,WC132-530,30.11.2021,CHILDRENS,ALPHA TRAINING ACADEMY UK LTD,26/11/2021,"1,050.00",1187-Materials,SUPPLIES & SERVICES,EQUIPMENT FURNITURE & MATERIALS,REVENUE
Walsall Council,http://opendatacommunities.org/id/metropolitan-district-council/walsall ,WC132-531,30.11.2021,CHILDRENS,ALPHA TRAINING ACADEMY UK LTD,26/11/2021,900.00,1187-Materials,SUPPLIES & SERVICES,EQUIPMENT FURNITURE & MATERIALS,REVENUE
Walsall Council,http://opendatacommunities.org/id/metropolitan-district-council/walsall ,WC132-532,30.11.2021,CHILDRENS,ALPHA TRAINING ACADEMY UK LTD,26/11/2021,"-2,425.00",1187-Materials,SUPPLIES & SERVICES,EQUIPMENT FURNITURE & MATERIALS,REVENUE
Walsall Council,http://opendatacommunities.org/id/metropolitan-district-council/walsall ,WC132-533,30.11.2021,CHILDRENS,ALPHA TRAINING ACADEMY UK LTD,04/11/2021,"17,932.00",1220-Top Up Funding -Grants to Schools,SUPPLIES & SERVICES,GRANTS (EXP) & SUBSCRIPTIONS,REVENUE
Walsall Council,http://opendatacommunities.org/id/metropolitan-district-council/walsall ,WC132-534,30.11.2021,CHILDRENS,ALPHABIOLABS,26/11/2021,449.00,6220-School Only Payments - Catering,THIRD PARTY PAYMENTS,INDEPENDENT UNIT WITHIN COUNCIL,REVENUE
Walsall Council,http://opendatacommunities.org/id/metropolitan-district-council/walsall ,WC132-535,30.11.2021,ADULT SOCIAL CARE,REDACTED,03/11/2021,"1,626.96",6541-Direct Payment,THIRD PARTY PAYMENTS,PRIVATE CONTRACTOR,REVENUE
Walsall Council,http://opendatacommunities.org/id/metropolitan-district-council/walsall ,WC132-536,30.11.2021,RESOURCES AND TRANSFORMATION,AMBUR RADIO,12/11/2021,"4,479.40",6312-Grants to Other Orgs,SUPPLIES & SERVICES,GRANTS (EXP) & SUBSCRIPTIONS,REVENUE
Walsall Council,http://opendatacommunities.org/id/metropolitan-district-council/walsall ,WC132-537,30.11.2021,ADULT SOCIAL CARE,AMBUR RADIO,12/11/2021,300.00,6420-Consultant Fees,SUPPLIES & SERVICES,SERVICES,REVENUE
Walsall Council,http://opendatacommunities.org/id/metropolitan-district-council/walsall ,WC132-538,30.11.2021,"ECONOMY, ENVIRONMENT & COMMUNITIES",AMEY LG LIMITED,03/11/2021,517.61,6411-Professional Services-Priv Contractor & Other Agencies,THIRD PARTY PAYMENTS,PRIVATE CONTRACTOR,REVENUE
Walsall Council,http://opendatacommunities.org/id/metropolitan-district-council/walsall ,WC132-539,30.11.2021,"ECONOMY, ENVIRONMENT & COMMUNITIES",AMEY LG LIMITED,03/11/2021,"1,336.26",6411-Professional Services-Priv Contractor & Other Agencies,THIRD PARTY PAYMENTS,PRIVATE CONTRACTOR,REVENUE
Walsall Council,http://opendatacommunities.org/id/metropolitan-district-council/walsall ,WC132-540,30.11.2021,"ECONOMY, ENVIRONMENT & COMMUNITIES",AMEY LG LIMITED,03/11/2021,934.37,6411-Professional Services-Priv Contractor & Other Agencies,THIRD PARTY PAYMENTS,PRIVATE CONTRACTOR,REVENUE
Walsall Council,http://opendatacommunities.org/id/metropolitan-district-council/walsall ,WC132-541,30.11.2021,"ECONOMY, ENVIRONMENT & COMMUNITIES",AMEY LG LIMITED,03/11/2021,324.10,6411-Professional Services-Priv Contractor & Other Agencies,THIRD PARTY PAYMENTS,PRIVATE CONTRACTOR,REVENUE
Walsall Council,http://opendatacommunities.org/id/metropolitan-district-council/walsall ,WC132-542,30.11.2021,"ECONOMY, ENVIRONMENT & COMMUNITIES",AMEY LG LIMITED,29/11/2021,416.50,6411-Professional Services-Priv Contractor & Other Agencies,THIRD PARTY PAYMENTS,PRIVATE CONTRACTOR,REVENUE
Walsall Council,http://opendatacommunities.org/id/metropolitan-district-council/walsall ,WC132-543,30.11.2021,ECONOMY & ENVIRONMENT CAPITAL,AMEY OW LTD,26/11/2021,"7,249.84",7200-Project Fees,CAPITAL,"NEW CONSTRUCTION,CONVERSION & RENOVATION",CAPITAL
Walsall Council,http://opendatacommunities.org/id/metropolitan-district-council/walsall ,WC132-544,30.11.2021,ADULT SOCIAL CARE,AMG NURSING CARE SERVICES,04/11/2021,"1,017.10",6541-Community Supported Living/Supported Accommodation,THIRD PARTY PAYMENTS,PRIVATE CONTRACTOR,REVENUE
Walsall Council,http://opendatacommunities.org/id/metropolitan-district-council/walsall ,WC132-545,30.11.2021,ADULT SOCIAL CARE,AMG NURSING CARE SERVICES,17/11/2021,"15,369.83",6541-Community Supported Living/Supported Accommodation,THIRD PARTY PAYMENTS,PRIVATE CONTRACTOR,REVENUE
Walsall Council,http://opendatacommunities.org/id/metropolitan-district-council/walsall ,WC132-546,30.11.2021,ADULT SOCIAL CARE,AMG NURSING CARE SERVICES,17/11/2021,"4,068.40",6541-Community Supported Living/Supported Accommodation,THIRD PARTY PAYMENTS,PRIVATE CONTRACTOR,REVENUE
Walsall Council,http://opendatacommunities.org/id/metropolitan-district-council/walsall ,WC132-547,30.11.2021,CHILDRENS,AMG NURSING CARE SERVICES,04/11/2021,980.60,6220-Accommodation and Related Costs-Assistance to S/S Clients,TRANSFER PAYMENTS,ADULT SOCIAL SERVICES CLIENT,REVENUE
Walsall Council,http://opendatacommunities.org/id/metropolitan-district-council/walsall ,WC132-548,30.11.2021,CHILDRENS,AMG NURSING CARE SERVICES,30/11/2021,929.72,6220-Accommodation and Related Costs-Assistance to S/S Clients,TRANSFER PAYMENTS,ADULT SOCIAL SERVICES CLIENT,REVENUE
Walsall Council,http://opendatacommunities.org/id/metropolitan-district-council/walsall ,WC132-549,30.11.2021,CHILDRENS,REDACTED,17/11/2021,340.00,6223-Internal Foster Carers-Carer Fees,TRANSFER PAYMENTS,CHILDREN SOCIAL SERVICES CLIENT,REVENUE
Walsall Council,http://opendatacommunities.org/id/metropolitan-district-council/walsall ,WC132-550,30.11.2021,CHILDRENS,REDACTED,17/11/2021,607.52,6223-Foster Carers Maintenance Allowance,TRANSFER PAYMENTS,CHILDREN SOCIAL SERVICES CLIENT,REVENUE
Walsall Council,http://opendatacommunities.org/id/metropolitan-district-council/walsall ,WC132-551,30.11.2021,ADULT SOCIAL CARE,ANCHOR CARE HOMES LTD,23/11/2021,"2,331.08",6541-Residential EMI,THIRD PARTY PAYMENTS,PRIVATE CONTRACTOR,REVENUE
Walsall Council,http://opendatacommunities.org/id/metropolitan-district-council/walsall ,WC132-552,30.11.2021,ADULT SOCIAL CARE,ANCHOR CAREHOMES LTD - HARDEN HALL,23/11/2021,"2,331.08",6541-Residential EMI,THIRD PARTY PAYMENTS,PRIVATE CONTRACTOR,REVENUE
Walsall Council,http://opendatacommunities.org/id/metropolitan-district-council/walsall ,WC132-553,30.11.2021,ADULT SOCIAL CARE,ANCHOR CAREHOMES LTD - HARDEN HALL,23/11/2021,"2,331.08",6541-Residential EMI,THIRD PARTY PAYMENTS,PRIVATE CONTRACTOR,REVENUE
Walsall Council,http://opendatacommunities.org/id/metropolitan-district-council/walsall ,WC132-554,30.11.2021,ADULT SOCIAL CARE,ANCHOR CAREHOMES LTD - HARDEN HALL,23/11/2021,"2,331.08",6541-Residential EMI,THIRD PARTY PAYMENTS,PRIVATE CONTRACTOR,REVENUE
Walsall Council,http://opendatacommunities.org/id/metropolitan-district-council/walsall ,WC132-555,30.11.2021,ADULT SOCIAL CARE,ANCHOR CAREHOMES LTD - HARDEN HALL,23/11/2021,"1,581.80",6541-Residential EMI,THIRD PARTY PAYMENTS,PRIVATE CONTRACTOR,REVENUE
Walsall Council,http://opendatacommunities.org/id/metropolitan-district-council/walsall ,WC132-556,30.11.2021,ADULT SOCIAL CARE,ANCHOR CAREHOMES LTD - HARDEN HALL,23/11/2021,420.59,6541-Residential EMI,THIRD PARTY PAYMENTS,PRIVATE CONTRACTOR,REVENUE
Walsall Council,http://opendatacommunities.org/id/metropolitan-district-council/walsall ,WC132-557,30.11.2021,ADULT SOCIAL CARE,ANCHOR CAREHOMES LTD - HARDEN HALL,23/11/2021,"2,335.32",6541-Residential EMI,THIRD PARTY PAYMENTS,PRIVATE CONTRACTOR,REVENUE
Walsall Council,http://opendatacommunities.org/id/metropolitan-district-council/walsall ,WC132-558,30.11.2021,ADULT SOCIAL CARE,ANCHOR CAREHOMES LTD - HARDEN HALL,23/11/2021,"2,331.08",6541-Residential EMI,THIRD PARTY PAYMENTS,PRIVATE CONTRACTOR,REVENUE
Walsall Council,http://opendatacommunities.org/id/metropolitan-district-council/walsall ,WC132-559,30.11.2021,ADULT SOCIAL CARE,ANCHOR CAREHOMES LTD - HARDEN HALL,23/11/2021,"2,355.32",6541-Residential EMI,THIRD PARTY PAYMENTS,PRIVATE CONTRACTOR,REVENUE
Walsall Council,http://opendatacommunities.org/id/metropolitan-district-council/walsall ,WC132-560,30.11.2021,ADULT SOCIAL CARE,ANCHOR CAREHOMES LTD - HARDEN HALL,23/11/2021,"2,355.32",6541-Residential EMI,THIRD PARTY PAYMENTS,PRIVATE CONTRACTOR,REVENUE
Walsall Council,http://opendatacommunities.org/id/metropolitan-district-council/walsall ,WC132-561,30.11.2021,ADULT SOCIAL CARE,ANCHOR CAREHOMES LTD - HARDEN HALL,23/11/2021,"2,331.08",6541-Residential EMI,THIRD PARTY PAYMENTS,PRIVATE CONTRACTOR,REVENUE
Walsall Council,http://opendatacommunities.org/id/metropolitan-district-council/walsall ,WC132-562,30.11.2021,ADULT SOCIAL CARE,ANCHOR CAREHOMES LTD - HARDEN HALL,23/11/2021,"2,294.56",6541-Residential EMI,THIRD PARTY PAYMENTS,PRIVATE CONTRACTOR,REVENUE
Walsall Council,http://opendatacommunities.org/id/metropolitan-district-council/walsall ,WC132-563,30.11.2021,ADULT SOCIAL CARE,ANCHOR CAREHOMES LTD - HARDEN HALL,23/11/2021,"2,335.32",6541-Residential EMI,THIRD PARTY PAYMENTS,PRIVATE CONTRACTOR,REVENUE
Walsall Council,http://opendatacommunities.org/id/metropolitan-district-council/walsall ,WC132-564,30.11.2021,ADULT SOCIAL CARE,ANCHOR CAREHOMES LTD - HARDEN HALL,23/11/2021,"2,331.08",6541-Residential EMI,THIRD PARTY PAYMENTS,PRIVATE CONTRACTOR,REVENUE
Walsall Council,http://opendatacommunities.org/id/metropolitan-district-council/walsall ,WC132-565,30.11.2021,ADULT SOCIAL CARE,ANCHOR CAREHOMES LTD - HARDEN HALL,23/11/2021,"2,691.08",6541-Residential EMI,THIRD PARTY PAYMENTS,PRIVATE CONTRACTOR,REVENUE
Walsall Council,http://opendatacommunities.org/id/metropolitan-district-council/walsall ,WC132-566,30.11.2021,ADULT SOCIAL CARE,ANCHOR CAREHOMES LTD - HARDEN HALL,23/11/2021,"2,064.44",6541-Residential,THIRD PARTY PAYMENTS,PRIVATE CONTRACTOR,REVENUE
Walsall Council,http://opendatacommunities.org/id/metropolitan-district-council/walsall ,WC132-567,30.11.2021,ADULT SOCIAL CARE,ANCHOR CAREHOMES LTD - HARDEN HALL,23/11/2021,"2,331.08",6541-Residential EMI,THIRD PARTY PAYMENTS,PRIVATE CONTRACTOR,REVENUE
Walsall Council,http://opendatacommunities.org/id/metropolitan-district-council/walsall ,WC132-568,30.11.2021,ADULT SOCIAL CARE,ANCHOR CAREHOMES LTD - HARDEN HALL,23/11/2021,"2,331.08",6541-Residential EMI,THIRD PARTY PAYMENTS,PRIVATE CONTRACTOR,REVENUE
Walsall Council,http://opendatacommunities.org/id/metropolitan-district-council/walsall ,WC132-569,30.11.2021,ADULT SOCIAL CARE,ANCHOR CAREHOMES LTD - HARDEN HALL,23/11/2021,"2,064.44",6541-Residential,THIRD PARTY PAYMENTS,PRIVATE CONTRACTOR,REVENUE
Walsall Council,http://opendatacommunities.org/id/metropolitan-district-council/walsall ,WC132-570,30.11.2021,ADULT SOCIAL CARE,ANCHOR CAREHOMES LTD - HARDEN HALL,23/11/2021,"2,331.08",6541-Residential EMI,THIRD PARTY PAYMENTS,PRIVATE CONTRACTOR,REVENUE
Walsall Council,http://opendatacommunities.org/id/metropolitan-district-council/walsall ,WC132-571,30.11.2021,ADULT SOCIAL CARE,ANCHOR CAREHOMES LTD - HARDEN HALL,23/11/2021,"2,382.04",6541-Residential EMI,THIRD PARTY PAYMENTS,PRIVATE CONTRACTOR,REVENUE
Walsall Council,http://opendatacommunities.org/id/metropolitan-district-council/walsall ,WC132-572,30.11.2021,ADULT SOCIAL CARE,ANCHOR CAREHOMES LTD - HARDEN HALL,23/11/2021,"1,332.05",6541-Residential EMI,THIRD PARTY PAYMENTS,PRIVATE CONTRACTOR,REVENUE
Walsall Council,http://opendatacommunities.org/id/metropolitan-district-council/walsall ,WC132-573,30.11.2021,ADULT SOCIAL CARE,ANCHOR CAREHOMES LTD - HARDEN HALL,23/11/2021,"2,331.08",6541-Residential EMI,THIRD PARTY PAYMENTS,PRIVATE CONTRACTOR,REVENUE
Walsall Council,http://opendatacommunities.org/id/metropolitan-district-council/walsall ,WC132-574,30.11.2021,ADULT SOCIAL CARE,ANCHOR CAREHOMES LTD - HARDEN HALL,23/11/2021,"-8,741.55",6541-Residential EMI,THIRD PARTY PAYMENTS,PRIVATE CONTRACTOR,REVENUE
Walsall Council,http://opendatacommunities.org/id/metropolitan-district-council/walsall ,WC132-575,30.11.2021,ADULT SOCIAL CARE,ANCHOR CAREHOMES LTD - HARDEN HALL,23/11/2021,"2,331.08",6541-Residential EMI,THIRD PARTY PAYMENTS,PRIVATE CONTRACTOR,REVENUE
Walsall Council,http://opendatacommunities.org/id/metropolitan-district-council/walsall ,WC132-576,30.11.2021,ADULT SOCIAL CARE,ANCHOR CAREHOMES LTD - HARDEN HALL,23/11/2021,"2,331.08",6541-Residential EMI,THIRD PARTY PAYMENTS,PRIVATE CONTRACTOR,REVENUE
Walsall Council,http://opendatacommunities.org/id/metropolitan-district-council/walsall ,WC132-577,30.11.2021,ADULT SOCIAL CARE,ANCHOR CAREHOMES LTD - HARDEN HALL,23/11/2021,"2,691.08",6541-Residential EMI,THIRD PARTY PAYMENTS,PRIVATE CONTRACTOR,REVENUE
Walsall Council,http://opendatacommunities.org/id/metropolitan-district-council/walsall ,WC132-578,30.11.2021,ADULT SOCIAL CARE,ANCHOR CAREHOMES LTD - HARDEN HALL,23/11/2021,"2,691.08",6541-Residential EMI,THIRD PARTY PAYMENTS,PRIVATE CONTRACTOR,REVENUE
Walsall Council,http://opendatacommunities.org/id/metropolitan-district-council/walsall ,WC132-579,30.11.2021,ADULT SOCIAL CARE,ANCHOR CAREHOMES LTD - HARDEN HALL,23/11/2021,"2,331.08",6541-Residential EMI,THIRD PARTY PAYMENTS,PRIVATE CONTRACTOR,REVENUE
Walsall Council,http://opendatacommunities.org/id/metropolitan-district-council/walsall ,WC132-580,30.11.2021,ADULT SOCIAL CARE,ANCHOR CAREHOMES LTD - HARDEN HALL,23/11/2021,"2,064.44",6541-Residential,THIRD PARTY PAYMENTS,PRIVATE CONTRACTOR,REVENUE
Walsall Council,http://opendatacommunities.org/id/metropolitan-district-council/walsall ,WC132-581,30.11.2021,ADULT SOCIAL CARE,ANCHOR CAREHOMES LTD - HARDEN HALL,23/11/2021,"2,402.75",6541-Residential EMI,THIRD PARTY PAYMENTS,PRIVATE CONTRACTOR,REVENUE
Walsall Council,http://opendatacommunities.org/id/metropolitan-district-council/walsall ,WC132-582,30.11.2021,ADULT SOCIAL CARE,ANCHOR CAREHOMES LTD - HARDEN HALL,23/11/2021,"2,331.08",6541-Residential EMI,THIRD PARTY PAYMENTS,PRIVATE CONTRACTOR,REVENUE
Walsall Council,http://opendatacommunities.org/id/metropolitan-district-council/walsall ,WC132-583,30.11.2021,CHILDRENS,REDACTED,17/11/2021,314.48,6223-Special Guardianship Orders,TRANSFER PAYMENTS,CHILDREN SOCIAL SERVICES CLIENT,REVENUE
Walsall Council,http://opendatacommunities.org/id/metropolitan-district-council/walsall ,WC132-584,30.11.2021,ADULT SOCIAL CARE,REDACTED,03/11/2021,518.00,6541-Direct Payment,THIRD PARTY PAYMENTS,PRIVATE CONTRACTOR,REVENUE
Walsall Council,http://opendatacommunities.org/id/metropolitan-district-council/walsall ,WC132-585,30.11.2021,ADULT SOCIAL CARE,REDACTED,03/11/2021,"2,710.16",6541-Direct Payment,THIRD PARTY PAYMENTS,PRIVATE CONTRACTOR,REVENUE
Walsall Council,http://opendatacommunities.org/id/metropolitan-district-council/walsall ,WC132-586,30.11.2021,CHILDRENS CAPITAL,ANDREWS ELECTRICAL LTD,29/11/2021,478.00,7150-Site Works Contractors,CAPITAL,"NEW CONSTRUCTION,CONVERSION & RENOVATION",CAPITAL
Walsall Council,http://opendatacommunities.org/id/metropolitan-district-council/walsall ,WC132-587,30.11.2021,CHILDRENS CAPITAL,ANDREWS ELECTRICAL LTD,29/11/2021,"4,658.00",7150-Site Works Contractors,CAPITAL,"NEW CONSTRUCTION,CONVERSION & RENOVATION",CAPITAL
Walsall Council,http://opendatacommunities.org/id/metropolitan-district-council/walsall ,WC132-588,30.11.2021,CHILDRENS,REDACTED,17/11/2021,496.04,6223-Special Guardianship Orders,TRANSFER PAYMENTS,CHILDREN SOCIAL SERVICES CLIENT,REVENUE
Walsall Council,http://opendatacommunities.org/id/metropolitan-district-council/walsall ,WC132-589,30.11.2021,CHILDRENS,REDACTED,17/11/2021,363.24,6223-Special Guardianship Orders,TRANSFER PAYMENTS,CHILDREN SOCIAL SERVICES CLIENT,REVENUE
Walsall Council,http://opendatacommunities.org/id/metropolitan-district-council/walsall ,WC132-590,30.11.2021,CHILDRENS,REDACTED,17/11/2021,318.36,6223-Special Guardianship Orders,TRANSFER PAYMENTS,CHILDREN SOCIAL SERVICES CLIENT,REVENUE
Walsall Council,http://opendatacommunities.org/id/metropolitan-district-council/walsall ,WC132-591,30.11.2021,ADULT SOCIAL CARE,REDACTED,03/11/2021,352.80,6541-Shared Lives,THIRD PARTY PAYMENTS,PRIVATE CONTRACTOR,REVENUE
Walsall Council,http://opendatacommunities.org/id/metropolitan-district-council/walsall ,WC132-592,30.11.2021,ADULT SOCIAL CARE,REDACTED,17/11/2021,352.80,6541-Shared Lives,THIRD PARTY PAYMENTS,PRIVATE CONTRACTOR,REVENUE
Walsall Council,http://opendatacommunities.org/id/metropolitan-district-council/walsall ,WC132-593,30.11.2021,CHILDRENS,REDACTED,17/11/2021,600.72,6223-Special Guardianship Orders,TRANSFER PAYMENTS,CHILDREN SOCIAL SERVICES CLIENT,REVENUE
Walsall Council,http://opendatacommunities.org/id/metropolitan-district-council/walsall ,WC132-594,30.11.2021,ADULT SOCIAL CARE,ANSON COURT RESIDENTIAL HOME,23/11/2021,"2,331.08",6541-Residential EMI,THIRD PARTY PAYMENTS,PRIVATE CONTRACTOR,REVENUE
Walsall Council,http://opendatacommunities.org/id/metropolitan-district-council/walsall ,WC132-595,30.11.2021,ADULT SOCIAL CARE,ANSON COURT RESIDENTIAL HOME,23/11/2021,"2,331.08",6541-Residential EMI,THIRD PARTY PAYMENTS,PRIVATE CONTRACTOR,REVENUE
Walsall Council,http://opendatacommunities.org/id/metropolitan-district-council/walsall ,WC132-596,30.11.2021,ADULT SOCIAL CARE,ANSON COURT RESIDENTIAL HOME,23/11/2021,"2,331.08",6541-Residential EMI,THIRD PARTY PAYMENTS,PRIVATE CONTRACTOR,REVENUE
Walsall Council,http://opendatacommunities.org/id/metropolitan-district-council/walsall ,WC132-597,30.11.2021,ADULT SOCIAL CARE,ANSON COURT RESIDENTIAL HOME,23/11/2021,"2,331.08",6541-Residential EMI,THIRD PARTY PAYMENTS,PRIVATE CONTRACTOR,REVENUE
Walsall Council,http://opendatacommunities.org/id/metropolitan-district-council/walsall ,WC132-598,30.11.2021,ADULT SOCIAL CARE,ANSON COURT RESIDENTIAL HOME,23/11/2021,"2,331.08",6541-Residential EMI,THIRD PARTY PAYMENTS,PRIVATE CONTRACTOR,REVENUE
Walsall Council,http://opendatacommunities.org/id/metropolitan-district-council/walsall ,WC132-599,30.11.2021,ADULT SOCIAL CARE,ANSON COURT RESIDENTIAL HOME,23/11/2021,"2,331.08",6541-Residential EMI,THIRD PARTY PAYMENTS,PRIVATE CONTRACTOR,REVENUE
Walsall Council,http://opendatacommunities.org/id/metropolitan-district-council/walsall ,WC132-600,30.11.2021,ADULT SOCIAL CARE,ANSON COURT RESIDENTIAL HOME,23/11/2021,"2,064.44",6541-Residential,THIRD PARTY PAYMENTS,PRIVATE CONTRACTOR,REVENUE
Walsall Council,http://opendatacommunities.org/id/metropolitan-district-council/walsall ,WC132-601,30.11.2021,ADULT SOCIAL CARE,ANSON COURT RESIDENTIAL HOME,23/11/2021,"2,331.08",6541-Residential EMI,THIRD PARTY PAYMENTS,PRIVATE CONTRACTOR,REVENUE
Walsall Council,http://opendatacommunities.org/id/metropolitan-district-council/walsall ,WC132-602,30.11.2021,ADULT SOCIAL CARE,ANSON COURT RESIDENTIAL HOME,23/11/2021,"2,184.44",6541-Residential,THIRD PARTY PAYMENTS,PRIVATE CONTRACTOR,REVENUE
Walsall Council,http://opendatacommunities.org/id/metropolitan-district-council/walsall ,WC132-603,30.11.2021,ADULT SOCIAL CARE,ANSON COURT RESIDENTIAL HOME,23/11/2021,"2,331.08",6541-Residential EMI,THIRD PARTY PAYMENTS,PRIVATE CONTRACTOR,REVENUE
Walsall Council,http://opendatacommunities.org/id/metropolitan-district-council/walsall ,WC132-604,30.11.2021,ADULT SOCIAL CARE,ANSON COURT RESIDENTIAL HOME,23/11/2021,"2,064.44",6541-Residential,THIRD PARTY PAYMENTS,PRIVATE CONTRACTOR,REVENUE
Walsall Council,http://opendatacommunities.org/id/metropolitan-district-council/walsall ,WC132-605,30.11.2021,ADULT SOCIAL CARE,ANSON COURT RESIDENTIAL HOME,23/11/2021,"2,331.08",6541-Residential EMI,THIRD PARTY PAYMENTS,PRIVATE CONTRACTOR,REVENUE
Walsall Council,http://opendatacommunities.org/id/metropolitan-district-council/walsall ,WC132-606,30.11.2021,ADULT SOCIAL CARE,ANSON COURT RESIDENTIAL HOME,23/11/2021,"2,331.08",6541-Residential EMI,THIRD PARTY PAYMENTS,PRIVATE CONTRACTOR,REVENUE
Walsall Council,http://opendatacommunities.org/id/metropolitan-district-council/walsall ,WC132-607,30.11.2021,ADULT SOCIAL CARE,ANSON COURT RESIDENTIAL HOME,23/11/2021,"2,331.08",6541-Residential EMI,THIRD PARTY PAYMENTS,PRIVATE CONTRACTOR,REVENUE
Walsall Council,http://opendatacommunities.org/id/metropolitan-district-council/walsall ,WC132-608,30.11.2021,ADULT SOCIAL CARE,ANSON COURT RESIDENTIAL HOME,23/11/2021,"2,331.08",6541-Residential EMI,THIRD PARTY PAYMENTS,PRIVATE CONTRACTOR,REVENUE
Walsall Council,http://opendatacommunities.org/id/metropolitan-district-council/walsall ,WC132-609,30.11.2021,ADULT SOCIAL CARE,ANSON COURT RESIDENTIAL HOME,23/11/2021,"2,331.08",6541-Residential EMI,THIRD PARTY PAYMENTS,PRIVATE CONTRACTOR,REVENUE
Walsall Council,http://opendatacommunities.org/id/metropolitan-district-council/walsall ,WC132-610,30.11.2021,ADULT SOCIAL CARE,ANSON COURT RESIDENTIAL HOME,23/11/2021,"2,331.08",6541-Residential EMI,THIRD PARTY PAYMENTS,PRIVATE CONTRACTOR,REVENUE
Walsall Council,http://opendatacommunities.org/id/metropolitan-district-council/walsall ,WC132-611,30.11.2021,CHILDRENS,ANTI-PEST PEST CONTROL SERVICES,05/11/2021,520.00,6211-Professional Fees & Services,SUPPLIES & SERVICES,SERVICES,REVENUE
Walsall Council,http://opendatacommunities.org/id/metropolitan-district-council/walsall ,WC132-612,30.11.2021,CHILDRENS,REDACTED,17/11/2021,499.40,6223-Special Guardianship Orders,TRANSFER PAYMENTS,CHILDREN SOCIAL SERVICES CLIENT,REVENUE
Walsall Council,http://opendatacommunities.org/id/metropolitan-district-council/walsall ,WC132-613,30.11.2021,"ECONOMY, ENVIRONMENT & COMMUNITIES",APCOA PARKING SERVICES (UK) LTD,10/11/2021,"53,262.34",6411-Professional Services-Priv Contractor & Other Agencies,THIRD PARTY PAYMENTS,PRIVATE CONTRACTOR,REVENUE
Walsall Council,http://opendatacommunities.org/id/metropolitan-district-council/walsall ,WC132-614,30.11.2021,"ECONOMY, ENVIRONMENT & COMMUNITIES",APCOA PARKING SERVICES (UK) LTD,04/11/2021,"56,342.04",6411-Professional Fees & Services,SUPPLIES & SERVICES,SERVICES,REVENUE
Walsall Council,http://opendatacommunities.org/id/metropolitan-district-council/walsall ,WC132-615,30.11.2021,RESOURCES AND TRANSFORMATION,APCOA PARKING SERVICES (UK) LTD,16/11/2021,-788.79,6634-Oxygen Finance Rebates ,SUPPLIES & SERVICES,SERVICES,REVENUE
Walsall Council,http://opendatacommunities.org/id/metropolitan-district-council/walsall ,WC132-616,30.11.2021,CHILDRENS,APP CARZ,23/11/2021,286.00,6314-Hire of Vehicle with Driver,TRANSPORT,DIRECT TRANSPORT COSTS,REVENUE
Walsall Council,http://opendatacommunities.org/id/metropolitan-district-council/walsall ,WC132-617,30.11.2021,CHILDRENS,APP CARZ,08/11/2021,836.00,6241-Hire of Vehicle with Driver,TRANSPORT,DIRECT TRANSPORT COSTS,REVENUE
Walsall Council,http://opendatacommunities.org/id/metropolitan-district-council/walsall ,WC132-618,30.11.2021,CHILDRENS,APP CARZ,08/11/2021,576.00,6241-Hire of Vehicle with Driver,TRANSPORT,DIRECT TRANSPORT COSTS,REVENUE
Walsall Council,http://opendatacommunities.org/id/metropolitan-district-council/walsall ,WC132-619,30.11.2021,CHILDRENS,APP CARZ,08/11/2021,"1,216.00",6241-Hire of Vehicle with Driver,TRANSPORT,DIRECT TRANSPORT COSTS,REVENUE
Walsall Council,http://opendatacommunities.org/id/metropolitan-district-council/walsall ,WC132-620,30.11.2021,CHILDRENS,APP CARZ,08/11/2021,768.00,6241-Hire of Vehicle with Driver,TRANSPORT,DIRECT TRANSPORT COSTS,REVENUE
Walsall Council,http://opendatacommunities.org/id/metropolitan-district-council/walsall ,WC132-621,30.11.2021,CHILDRENS,APP CARZ,08/11/2021,"1,000.00",6241-Hire of Vehicle with Driver,TRANSPORT,DIRECT TRANSPORT COSTS,REVENUE
Walsall Council,http://opendatacommunities.org/id/metropolitan-district-council/walsall ,WC132-622,30.11.2021,CHILDRENS,APP CARZ,08/11/2021,250.00,6241-Hire of Vehicle with Driver,TRANSPORT,DIRECT TRANSPORT COSTS,REVENUE
Walsall Council,http://opendatacommunities.org/id/metropolitan-district-council/walsall ,WC132-623,30.11.2021,CHILDRENS,APP CARZ,08/11/2021,400.00,6241-Hire of Vehicle with Driver,TRANSPORT,DIRECT TRANSPORT COSTS,REVENUE
Walsall Council,http://opendatacommunities.org/id/metropolitan-district-council/walsall ,WC132-624,30.11.2021,CHILDRENS,APP CARZ,08/11/2021,"1,232.00",6241-Hire of Vehicle with Driver,TRANSPORT,DIRECT TRANSPORT COSTS,REVENUE
Walsall Council,http://opendatacommunities.org/id/metropolitan-district-council/walsall ,WC132-625,30.11.2021,CHILDRENS,APP CARZ,08/11/2021,"2,400.00",6241-Hire of Vehicle with Driver,TRANSPORT,DIRECT TRANSPORT COSTS,REVENUE
Walsall Council,http://opendatacommunities.org/id/metropolitan-district-council/walsall ,WC132-626,30.11.2021,CHILDRENS,APP CARZ,08/11/2021,280.00,6241-Hire of Vehicle with Driver,TRANSPORT,DIRECT TRANSPORT COSTS,REVENUE
Walsall Council,http://opendatacommunities.org/id/metropolitan-district-council/walsall ,WC132-627,30.11.2021,CHILDRENS,APP CARZ,08/11/2021,720.00,6241-Hire of Vehicle with Driver,TRANSPORT,DIRECT TRANSPORT COSTS,REVENUE
Walsall Council,http://opendatacommunities.org/id/metropolitan-district-council/walsall ,WC132-628,30.11.2021,CHILDRENS,APP CARZ,08/11/2021,"1,615.00",6241-Hire of Vehicle with Driver,TRANSPORT,DIRECT TRANSPORT COSTS,REVENUE
Walsall Council,http://opendatacommunities.org/id/metropolitan-district-council/walsall ,WC132-629,30.11.2021,CHILDRENS,APP CARZ,08/11/2021,"1,340.00",6241-Hire of Vehicle with Driver,TRANSPORT,DIRECT TRANSPORT COSTS,REVENUE
Walsall Council,http://opendatacommunities.org/id/metropolitan-district-council/walsall ,WC132-630,30.11.2021,"ECONOMY, ENVIRONMENT & COMMUNITIES",APSE 001,10/11/2021,379.00,6410-External Training,INDIRECT EMPLOYEES,EXTERNAL TRAINING,REVENUE
Walsall Council,http://opendatacommunities.org/id/metropolitan-district-council/walsall ,WC132-631,30.11.2021,"ECONOMY, ENVIRONMENT & COMMUNITIES",AQUILA TRUCK CENTRES LTD,05/11/2021,542.25,6410-Professional Services-Priv Contractor & Other Agencies,THIRD PARTY PAYMENTS,PRIVATE CONTRACTOR,REVENUE
Walsall Council,http://opendatacommunities.org/id/metropolitan-district-council/walsall ,WC132-632,30.11.2021,ADULT SOCIAL CARE,ARBORETUM NURSING HOME.,23/11/2021,"2,419.96",6541-Nursing,THIRD PARTY PAYMENTS,PRIVATE CONTRACTOR,REVENUE
Walsall Council,http://opendatacommunities.org/id/metropolitan-district-council/walsall ,WC132-633,30.11.2021,ADULT SOCIAL CARE,ARBORETUM NURSING HOME.,23/11/2021,"2,419.96",6541-Nursing,THIRD PARTY PAYMENTS,PRIVATE CONTRACTOR,REVENUE
Walsall Council,http://opendatacommunities.org/id/metropolitan-district-council/walsall ,WC132-634,30.11.2021,ADULT SOCIAL CARE,ARBORETUM NURSING HOME.,23/11/2021,"2,575.96",6541-Nursing,THIRD PARTY PAYMENTS,PRIVATE CONTRACTOR,REVENUE
Walsall Council,http://opendatacommunities.org/id/metropolitan-district-council/walsall ,WC132-635,30.11.2021,ADULT SOCIAL CARE,ARBORETUM NURSING HOME.,23/11/2021,"2,419.96",6541-Nursing,THIRD PARTY PAYMENTS,PRIVATE CONTRACTOR,REVENUE
Walsall Council,http://opendatacommunities.org/id/metropolitan-district-council/walsall ,WC132-636,30.11.2021,ADULT SOCIAL CARE,ARBORETUM NURSING HOME.,23/11/2021,"2,599.96",6541-Nursing,THIRD PARTY PAYMENTS,PRIVATE CONTRACTOR,REVENUE
Walsall Council,http://opendatacommunities.org/id/metropolitan-district-council/walsall ,WC132-637,30.11.2021,ADULT SOCIAL CARE,ARBORETUM NURSING HOME.,23/11/2021,"2,599.96",6541-Nursing,THIRD PARTY PAYMENTS,PRIVATE CONTRACTOR,REVENUE
Walsall Council,http://opendatacommunities.org/id/metropolitan-district-council/walsall ,WC132-638,30.11.2021,ADULT SOCIAL CARE,ARBORETUM NURSING HOME.,23/11/2021,"2,419.96",6541-Nursing,THIRD PARTY PAYMENTS,PRIVATE CONTRACTOR,REVENUE
Walsall Council,http://opendatacommunities.org/id/metropolitan-district-council/walsall ,WC132-639,30.11.2021,ADULT SOCIAL CARE,ARBORETUM NURSING HOME.,23/11/2021,"2,419.96",6541-Nursing,THIRD PARTY PAYMENTS,PRIVATE CONTRACTOR,REVENUE
Walsall Council,http://opendatacommunities.org/id/metropolitan-district-council/walsall ,WC132-640,30.11.2021,ADULT SOCIAL CARE,ARBORETUM NURSING HOME.,23/11/2021,"2,599.96",6541-Nursing,THIRD PARTY PAYMENTS,PRIVATE CONTRACTOR,REVENUE
Walsall Council,http://opendatacommunities.org/id/metropolitan-district-council/walsall ,WC132-641,30.11.2021,ADULT SOCIAL CARE,ARBORETUM NURSING HOME.,23/11/2021,"2,599.96",6541-Nursing,THIRD PARTY PAYMENTS,PRIVATE CONTRACTOR,REVENUE
Walsall Council,http://opendatacommunities.org/id/metropolitan-district-council/walsall ,WC132-642,30.11.2021,ADULT SOCIAL CARE,ARBORETUM NURSING HOME.,23/11/2021,"2,980.00",6541-Residential & Nursing Care Placements,THIRD PARTY PAYMENTS,PRIVATE CONTRACTOR,REVENUE
Walsall Council,http://opendatacommunities.org/id/metropolitan-district-council/walsall ,WC132-643,30.11.2021,ADULT SOCIAL CARE,ARBORETUM NURSING HOME.,23/11/2021,"1,383.57",6541-Residential & Nursing Care Placements,THIRD PARTY PAYMENTS,PRIVATE CONTRACTOR,REVENUE
Walsall Council,http://opendatacommunities.org/id/metropolitan-district-council/walsall ,WC132-644,30.11.2021,ADULT SOCIAL CARE,ARBORETUM NURSING HOME.,23/11/2021,"2,419.96",6541-Nursing,THIRD PARTY PAYMENTS,PRIVATE CONTRACTOR,REVENUE
Walsall Council,http://opendatacommunities.org/id/metropolitan-district-council/walsall ,WC132-645,30.11.2021,ADULT SOCIAL CARE,ARBORETUM NURSING HOME.,23/11/2021,"2,599.96",6541-Nursing,THIRD PARTY PAYMENTS,PRIVATE CONTRACTOR,REVENUE
Walsall Council,http://opendatacommunities.org/id/metropolitan-district-council/walsall ,WC132-646,30.11.2021,ADULT SOCIAL CARE,ARBORETUM NURSING HOME.,23/11/2021,"2,599.96",6541-Nursing,THIRD PARTY PAYMENTS,PRIVATE CONTRACTOR,REVENUE
Walsall Council,http://opendatacommunities.org/id/metropolitan-district-council/walsall ,WC132-647,30.11.2021,ADULT SOCIAL CARE,ARBORETUM NURSING HOME.,23/11/2021,"2,599.96",6541-Nursing,THIRD PARTY PAYMENTS,PRIVATE CONTRACTOR,REVENUE
Walsall Council,http://opendatacommunities.org/id/metropolitan-district-council/walsall ,WC132-648,30.11.2021,ADULT SOCIAL CARE,ARBORETUM NURSING HOME.,23/11/2021,"1,064.29",6541-Residential & Nursing Care Placements,THIRD PARTY PAYMENTS,PRIVATE CONTRACTOR,REVENUE
Walsall Council,http://opendatacommunities.org/id/metropolitan-district-council/walsall ,WC132-649,30.11.2021,ADULT SOCIAL CARE,ARBORETUM NURSING HOME.,23/11/2021,851.43,6541-Residential & Nursing Care Placements,THIRD PARTY PAYMENTS,PRIVATE CONTRACTOR,REVENUE
Walsall Council,http://opendatacommunities.org/id/metropolitan-district-council/walsall ,WC132-650,30.11.2021,ADULT SOCIAL CARE,ARBORETUM NURSING HOME.,23/11/2021,"2,554.29",6541-Residential & Nursing Care Placements,THIRD PARTY PAYMENTS,PRIVATE CONTRACTOR,REVENUE
Walsall Council,http://opendatacommunities.org/id/metropolitan-district-council/walsall ,WC132-651,30.11.2021,ADULT SOCIAL CARE,ARBORETUM NURSING HOME.,23/11/2021,"2,599.96",6541-Nursing,THIRD PARTY PAYMENTS,PRIVATE CONTRACTOR,REVENUE
Walsall Council,http://opendatacommunities.org/id/metropolitan-district-council/walsall ,WC132-652,30.11.2021,ADULT SOCIAL CARE,ARBORETUM NURSING HOME.,23/11/2021,"2,419.96",6541-Nursing,THIRD PARTY PAYMENTS,PRIVATE CONTRACTOR,REVENUE
Walsall Council,http://opendatacommunities.org/id/metropolitan-district-council/walsall ,WC132-653,30.11.2021,ADULT SOCIAL CARE,ARBORETUM NURSING HOME.,23/11/2021,"2,599.96",6541-Nursing,THIRD PARTY PAYMENTS,PRIVATE CONTRACTOR,REVENUE
Walsall Council,http://opendatacommunities.org/id/metropolitan-district-council/walsall ,WC132-654,30.11.2021,ADULT SOCIAL CARE,ARBORETUM NURSING HOME.,23/11/2021,"2,419.96",6541-Nursing,THIRD PARTY PAYMENTS,PRIVATE CONTRACTOR,REVENUE
Walsall Council,http://opendatacommunities.org/id/metropolitan-district-council/walsall ,WC132-655,30.11.2021,ADULT SOCIAL CARE,ARBORETUM NURSING HOME.,23/11/2021,"2,873.57",6541-Residential & Nursing Care Placements,THIRD PARTY PAYMENTS,PRIVATE CONTRACTOR,REVENUE
Walsall Council,http://opendatacommunities.org/id/metropolitan-district-council/walsall ,WC132-656,30.11.2021,ADULT SOCIAL CARE,ARBORETUM NURSING HOME.,23/11/2021,"3,496.00",6541-Nursing,THIRD PARTY PAYMENTS,PRIVATE CONTRACTOR,REVENUE
Walsall Council,http://opendatacommunities.org/id/metropolitan-district-council/walsall ,WC132-657,30.11.2021,ADULT SOCIAL CARE,ARBORETUM NURSING HOME.,23/11/2021,"2,419.96",6541-Nursing,THIRD PARTY PAYMENTS,PRIVATE CONTRACTOR,REVENUE
Walsall Council,http://opendatacommunities.org/id/metropolitan-district-council/walsall ,WC132-658,30.11.2021,ADULT SOCIAL CARE,ARBORETUM NURSING HOME.,23/11/2021,"2,980.00",6541-Residential & Nursing Care Placements,THIRD PARTY PAYMENTS,PRIVATE CONTRACTOR,REVENUE
Walsall Council,http://opendatacommunities.org/id/metropolitan-district-council/walsall ,WC132-659,30.11.2021,ADULT SOCIAL CARE,ARBORETUM NURSING HOME.,23/11/2021,"1,490.00",6541-Residential & Nursing Care Placements,THIRD PARTY PAYMENTS,PRIVATE CONTRACTOR,REVENUE
Walsall Council,http://opendatacommunities.org/id/metropolitan-district-council/walsall ,WC132-660,30.11.2021,ADULT SOCIAL CARE,ARBORETUM NURSING HOME.,23/11/2021,"9,200.00",6541-Nursing,THIRD PARTY PAYMENTS,PRIVATE CONTRACTOR,REVENUE
Walsall Council,http://opendatacommunities.org/id/metropolitan-district-council/walsall ,WC132-661,30.11.2021,ECONOMY & ENVIRONMENT CAPITAL,ARCADIS,11/11/2021,"14,000.00",7200-Project Fees,CAPITAL,"NEW CONSTRUCTION,CONVERSION & RENOVATION",CAPITAL
Walsall Council,http://opendatacommunities.org/id/metropolitan-district-council/walsall ,WC132-662,30.11.2021,"ECONOMY, ENVIRONMENT & COMMUNITIES",ASDAN LIMITED,11/11/2021,400.00,6430-Subscriptions,SUPPLIES & SERVICES,GRANTS (EXP) & SUBSCRIPTIONS,REVENUE
Walsall Council,http://opendatacommunities.org/id/metropolitan-district-council/walsall ,WC132-663,30.11.2021,ADULT SOCIAL CARE,ASH GRANGE CARE HOME,23/11/2021,"2,722.96",6541-Nursing EMI,THIRD PARTY PAYMENTS,PRIVATE CONTRACTOR,REVENUE
Walsall Council,http://opendatacommunities.org/id/metropolitan-district-council/walsall ,WC132-664,30.11.2021,ADULT SOCIAL CARE,ASH GRANGE CARE HOME,23/11/2021,"2,064.44",6541-Residential,THIRD PARTY PAYMENTS,PRIVATE CONTRACTOR,REVENUE
Walsall Council,http://opendatacommunities.org/id/metropolitan-district-council/walsall ,WC132-665,30.11.2021,ADULT SOCIAL CARE,ASH GRANGE CARE HOME,23/11/2021,"2,419.96",6541-Nursing,THIRD PARTY PAYMENTS,PRIVATE CONTRACTOR,REVENUE
Walsall Council,http://opendatacommunities.org/id/metropolitan-district-council/walsall ,WC132-666,30.11.2021,ADULT SOCIAL CARE,ASH GRANGE CARE HOME,23/11/2021,"2,419.96",6541-Nursing,THIRD PARTY PAYMENTS,PRIVATE CONTRACTOR,REVENUE
Walsall Council,http://opendatacommunities.org/id/metropolitan-district-council/walsall ,WC132-667,30.11.2021,ADULT SOCIAL CARE,ASH GRANGE CARE HOME,23/11/2021,"-3,594.00",6541-Nursing,THIRD PARTY PAYMENTS,PRIVATE CONTRACTOR,REVENUE
Walsall Council,http://opendatacommunities.org/id/metropolitan-district-council/walsall ,WC132-668,30.11.2021,ADULT SOCIAL CARE,ASH GRANGE CARE HOME,23/11/2021,"2,819.96",6541-Nursing,THIRD PARTY PAYMENTS,PRIVATE CONTRACTOR,REVENUE
Walsall Council,http://opendatacommunities.org/id/metropolitan-district-council/walsall ,WC132-669,30.11.2021,ADULT SOCIAL CARE,ASH GRANGE CARE HOME,23/11/2021,"3,000.00",6541-Residential & Nursing Care Placements,THIRD PARTY PAYMENTS,PRIVATE CONTRACTOR,REVENUE
Walsall Council,http://opendatacommunities.org/id/metropolitan-district-council/walsall ,WC132-670,30.11.2021,ADULT SOCIAL CARE,ASH GRANGE CARE HOME,23/11/2021,"2,819.96",6541-Nursing,THIRD PARTY PAYMENTS,PRIVATE CONTRACTOR,REVENUE
Walsall Council,http://opendatacommunities.org/id/metropolitan-district-council/walsall ,WC132-671,30.11.2021,ADULT SOCIAL CARE,ASH GRANGE CARE HOME,23/11/2021,"2,419.96",6541-Nursing,THIRD PARTY PAYMENTS,PRIVATE CONTRACTOR,REVENUE
Walsall Council,http://opendatacommunities.org/id/metropolitan-district-council/walsall ,WC132-672,30.11.2021,ADULT SOCIAL CARE,ASH GRANGE CARE HOME,23/11/2021,"2,892.86",6541-Residential & Nursing Care Placements,THIRD PARTY PAYMENTS,PRIVATE CONTRACTOR,REVENUE
Walsall Council,http://opendatacommunities.org/id/metropolitan-district-council/walsall ,WC132-673,30.11.2021,ADULT SOCIAL CARE,ASH GRANGE CARE HOME,23/11/2021,"3,000.00",6541-Residential & Nursing Care Placements,THIRD PARTY PAYMENTS,PRIVATE CONTRACTOR,REVENUE
Walsall Council,http://opendatacommunities.org/id/metropolitan-district-council/walsall ,WC132-674,30.11.2021,ADULT SOCIAL CARE,ASH GRANGE CARE HOME,23/11/2021,"2,606.96",6541-Residential,THIRD PARTY PAYMENTS,PRIVATE CONTRACTOR,REVENUE
Walsall Council,http://opendatacommunities.org/id/metropolitan-district-council/walsall ,WC132-675,30.11.2021,ADULT SOCIAL CARE,ASH GRANGE CARE HOME,23/11/2021,"2,719.96",6541-Nursing,THIRD PARTY PAYMENTS,PRIVATE CONTRACTOR,REVENUE
Walsall Council,http://opendatacommunities.org/id/metropolitan-district-council/walsall ,WC132-676,30.11.2021,ADULT SOCIAL CARE,ASH GRANGE CARE HOME,23/11/2021,"2,722.96",6541-Nursing EMI,THIRD PARTY PAYMENTS,PRIVATE CONTRACTOR,REVENUE
Walsall Council,http://opendatacommunities.org/id/metropolitan-district-council/walsall ,WC132-677,30.11.2021,ADULT SOCIAL CARE,ASH GRANGE CARE HOME,23/11/2021,"2,798.92",6541-Nursing,THIRD PARTY PAYMENTS,PRIVATE CONTRACTOR,REVENUE
Walsall Council,http://opendatacommunities.org/id/metropolitan-district-council/walsall ,WC132-678,30.11.2021,ADULT SOCIAL CARE,ASH GRANGE CARE HOME,23/11/2021,321.43,6541-Residential & Nursing Care Placements,THIRD PARTY PAYMENTS,PRIVATE CONTRACTOR,REVENUE
Walsall Council,http://opendatacommunities.org/id/metropolitan-district-council/walsall ,WC132-679,30.11.2021,ADULT SOCIAL CARE,ASH GRANGE CARE HOME,23/11/2021,"2,678.56",6541-Residential & Nursing Care Placements,THIRD PARTY PAYMENTS,PRIVATE CONTRACTOR,REVENUE
Walsall Council,http://opendatacommunities.org/id/metropolitan-district-council/walsall ,WC132-680,30.11.2021,ADULT SOCIAL CARE,ASH GRANGE CARE HOME,23/11/2021,"2,722.96",6541-Nursing EMI,THIRD PARTY PAYMENTS,PRIVATE CONTRACTOR,REVENUE
Walsall Council,http://opendatacommunities.org/id/metropolitan-district-council/walsall ,WC132-681,30.11.2021,ADULT SOCIAL CARE,ASH GRANGE CARE HOME,23/11/2021,"2,419.96",6541-Nursing,THIRD PARTY PAYMENTS,PRIVATE CONTRACTOR,REVENUE
Walsall Council,http://opendatacommunities.org/id/metropolitan-district-council/walsall ,WC132-682,30.11.2021,ADULT SOCIAL CARE,ASH GRANGE CARE HOME,23/11/2021,"1,392.86",6541-Residential & Nursing Care Placements,THIRD PARTY PAYMENTS,PRIVATE CONTRACTOR,REVENUE
Walsall Council,http://opendatacommunities.org/id/metropolitan-district-council/walsall ,WC132-683,30.11.2021,ADULT SOCIAL CARE,ASH GRANGE CARE HOME,23/11/2021,"1,071.43",6541-Residential & Nursing Care Placements,THIRD PARTY PAYMENTS,PRIVATE CONTRACTOR,REVENUE
Walsall Council,http://opendatacommunities.org/id/metropolitan-district-council/walsall ,WC132-684,30.11.2021,ECONOMY & ENVIRONMENT CAPITAL,ASHCROFT MEMORIALS,08/11/2021,300.00,7200-Site Works Contractors,CAPITAL,"NEW CONSTRUCTION,CONVERSION & RENOVATION",CAPITAL
Walsall Council,http://opendatacommunities.org/id/metropolitan-district-council/walsall ,WC132-685,30.11.2021,ADULT SOCIAL CARE,REDACTED,03/11/2021,"1,426.04",6541-Direct Payment,THIRD PARTY PAYMENTS,PRIVATE CONTRACTOR,REVENUE
Walsall Council,http://opendatacommunities.org/id/metropolitan-district-council/walsall ,WC132-686,30.11.2021,"ECONOMY, ENVIRONMENT & COMMUNITIES",ASHTON ENGINEERING CO LTD,04/11/2021,313.95,6410-Purchase of Furniture & Equipment,SUPPLIES & SERVICES,EQUIPMENT FURNITURE & MATERIALS,REVENUE
Walsall Council,http://opendatacommunities.org/id/metropolitan-district-council/walsall ,WC132-687,30.11.2021,"ECONOMY, ENVIRONMENT & COMMUNITIES",ASHTON ENGINEERING CO LTD,10/11/2021,253.72,6410-Purchase of Furniture & Equipment,SUPPLIES & SERVICES,EQUIPMENT FURNITURE & MATERIALS,REVENUE
Walsall Council,http://opendatacommunities.org/id/metropolitan-district-council/walsall ,WC132-688,30.11.2021,CHILDRENS,ASK RETROFIT-UK LTD,12/11/2021,"4,750.00",6314-Consultant Fees,SUPPLIES & SERVICES,SERVICES,REVENUE
Walsall Council,http://opendatacommunities.org/id/metropolitan-district-council/walsall ,WC132-689,30.11.2021,CHILDRENS CAPITAL,ASKELITE LTD,17/11/2021,950.00,7155-Purchase of Furniture & Equipment,CAPITAL,"VEHICLES,PLANT,EQUIPMENT & MACHINERY",CAPITAL
Walsall Council,http://opendatacommunities.org/id/metropolitan-district-council/walsall ,WC132-690,30.11.2021,"ECONOMY, ENVIRONMENT & COMMUNITIES",ASKEWS AND HOLTS LIBRARY SERVICES LTD,04/11/2021,743.94,6414-Library Books,SUPPLIES & SERVICES,EQUIPMENT FURNITURE & MATERIALS,REVENUE
Walsall Council,http://opendatacommunities.org/id/metropolitan-district-council/walsall ,WC132-691,30.11.2021,"ECONOMY, ENVIRONMENT & COMMUNITIES",ASKEWS AND HOLTS LIBRARY SERVICES LTD,09/11/2021,"1,586.16",6414-Library Books,SUPPLIES & SERVICES,EQUIPMENT FURNITURE & MATERIALS,REVENUE
Walsall Council,http://opendatacommunities.org/id/metropolitan-district-council/walsall ,WC132-692,30.11.2021,ADULT SOCIAL CARE,REDACTED,03/11/2021,750.72,6541-Direct Payment,THIRD PARTY PAYMENTS,PRIVATE CONTRACTOR,REVENUE
Walsall Council,http://opendatacommunities.org/id/metropolitan-district-council/walsall ,WC132-693,30.11.2021,ADULT SOCIAL CARE,ASPECTS CARE LTD,17/11/2021,421.44,6541-Community Supported Living/Supported Accommodation,THIRD PARTY PAYMENTS,PRIVATE CONTRACTOR,REVENUE
Walsall Council,http://opendatacommunities.org/id/metropolitan-district-council/walsall ,WC132-694,30.11.2021,ADULT SOCIAL CARE,ASPECTS CARE LTD,17/11/2021,523.12,6541-Community Supported Living/Supported Accommodation,THIRD PARTY PAYMENTS,PRIVATE CONTRACTOR,REVENUE
Walsall Council,http://opendatacommunities.org/id/metropolitan-district-council/walsall ,WC132-695,30.11.2021,ADULT SOCIAL CARE,ASPECTS CARE LTD,17/11/2021,566.68,6541-Community Supported Living/Supported Accommodation,THIRD PARTY PAYMENTS,PRIVATE CONTRACTOR,REVENUE
Walsall Council,http://opendatacommunities.org/id/metropolitan-district-council/walsall ,WC132-696,30.11.2021,ADULT SOCIAL CARE,ASPECTS CARE LTD,17/11/2021,"1,089.80",6541-Community Supported Living/Supported Accommodation,THIRD PARTY PAYMENTS,PRIVATE CONTRACTOR,REVENUE
Walsall Council,http://opendatacommunities.org/id/metropolitan-district-council/walsall ,WC132-697,30.11.2021,ADULT SOCIAL CARE,ASPECTS CARE LTD,17/11/2021,464.96,6541-Community Supported Living/Supported Accommodation,THIRD PARTY PAYMENTS,PRIVATE CONTRACTOR,REVENUE
Walsall Council,http://opendatacommunities.org/id/metropolitan-district-council/walsall ,WC132-698,30.11.2021,ADULT SOCIAL CARE,ASPECTS CARE LTD,17/11/2021,799.24,6541-Community Supported Living/Supported Accommodation,THIRD PARTY PAYMENTS,PRIVATE CONTRACTOR,REVENUE
Walsall Council,http://opendatacommunities.org/id/metropolitan-district-council/walsall ,WC132-699,30.11.2021,ADULT SOCIAL CARE,ASPECTS CARE LTD,17/11/2021,523.16,6541-Community Supported Living/Supported Accommodation,THIRD PARTY PAYMENTS,PRIVATE CONTRACTOR,REVENUE
Walsall Council,http://opendatacommunities.org/id/metropolitan-district-council/walsall ,WC132-700,30.11.2021,ADULT SOCIAL CARE,ASPECTS CARE LTD,17/11/2021,799.12,6541-Community Supported Living/Supported Accommodation,THIRD PARTY PAYMENTS,PRIVATE CONTRACTOR,REVENUE
Walsall Council,http://opendatacommunities.org/id/metropolitan-district-council/walsall ,WC132-701,30.11.2021,ADULT SOCIAL CARE,ASPECTS CARE LTD,17/11/2021,348.64,6541-Community Supported Living/Supported Accommodation,THIRD PARTY PAYMENTS,PRIVATE CONTRACTOR,REVENUE
Walsall Council,http://opendatacommunities.org/id/metropolitan-district-council/walsall ,WC132-702,30.11.2021,ADULT SOCIAL CARE,ASPECTS CARE LTD,17/11/2021,508.48,6541-Community Supported Living/Supported Accommodation,THIRD PARTY PAYMENTS,PRIVATE CONTRACTOR,REVENUE
Walsall Council,http://opendatacommunities.org/id/metropolitan-district-council/walsall ,WC132-703,30.11.2021,RESOURCES AND TRANSFORMATION,ASSOCIATION OF ELECTORAL ADMINISTRATORS,30/11/2021,275.00,6610-Stationery & General Office Supplies,SUPPLIES & SERVICES,PRINTING STATIONERY & GENERAL OFFICE,REVENUE
Walsall Council,http://opendatacommunities.org/id/metropolitan-district-council/walsall ,WC132-704,30.11.2021,RESOURCES AND TRANSFORMATION CAPITAL,ASTUN TECHNOLOGY LIMITED,08/11/2021,850.00,7300-Consultants Fees,CAPITAL,"NEW CONSTRUCTION,CONVERSION & RENOVATION",CAPITAL
Walsall Council,http://opendatacommunities.org/id/metropolitan-district-council/walsall ,WC132-705,30.11.2021,CHILDRENS,ATKINSON LEWIS LIMITED,25/11/2021,526.50,6220-School Only Payments - Catering,THIRD PARTY PAYMENTS,INDEPENDENT UNIT WITHIN COUNCIL,REVENUE
Walsall Council,http://opendatacommunities.org/id/metropolitan-district-council/walsall ,WC132-706,30.11.2021,"ECONOMY, ENVIRONMENT & COMMUNITIES",ATLAS TEACHERS,10/11/2021,919.60,6313-Grants to Other Orgs,SUPPLIES & SERVICES,GRANTS (EXP) & SUBSCRIPTIONS,REVENUE
Walsall Council,http://opendatacommunities.org/id/metropolitan-district-council/walsall ,WC132-707,30.11.2021,"ECONOMY, ENVIRONMENT & COMMUNITIES",ATLAS TEACHERS,10/11/2021,980.10,6313-Grants to Other Orgs,SUPPLIES & SERVICES,GRANTS (EXP) & SUBSCRIPTIONS,REVENUE
Walsall Council,http://opendatacommunities.org/id/metropolitan-district-council/walsall ,WC132-708,30.11.2021,ADULT SOCIAL CARE,AUTISM WEST MIDLANDS,23/11/2021,"7,418.04",6541-Residential,THIRD PARTY PAYMENTS,PRIVATE CONTRACTOR,REVENUE
Walsall Council,http://opendatacommunities.org/id/metropolitan-district-council/walsall ,WC132-709,30.11.2021,ADULT SOCIAL CARE,AUTISM WEST MIDLANDS,23/11/2021,"5,732.64",6541-Residential,THIRD PARTY PAYMENTS,PRIVATE CONTRACTOR,REVENUE
Walsall Council,http://opendatacommunities.org/id/metropolitan-district-council/walsall ,WC132-710,30.11.2021,ADULT SOCIAL CARE,AUTISM WEST MIDLANDS,23/11/2021,"20,117.08",6541-Residential,THIRD PARTY PAYMENTS,PRIVATE CONTRACTOR,REVENUE
Walsall Council,http://opendatacommunities.org/id/metropolitan-district-council/walsall ,WC132-711,30.11.2021,ADULT SOCIAL CARE,AVE MARIA CARE SERVICES LTD,25/11/2021,"15,001.00",6554-Professional Fees & Services,SUPPLIES & SERVICES,SERVICES,REVENUE
Walsall Council,http://opendatacommunities.org/id/metropolitan-district-council/walsall ,WC132-712,30.11.2021,ADULT SOCIAL CARE,AVE MARIA CARE SERVICES LTD,26/11/2021,"30,002.00",6554-Professional Fees & Services,SUPPLIES & SERVICES,SERVICES,REVENUE
Walsall Council,http://opendatacommunities.org/id/metropolitan-district-council/walsall ,WC132-713,30.11.2021,ADULT SOCIAL CARE,AVERY HOMES NELSON LIMITED,23/11/2021,"2,064.44",6541-Residential,THIRD PARTY PAYMENTS,PRIVATE CONTRACTOR,REVENUE
Walsall Council,http://opendatacommunities.org/id/metropolitan-district-council/walsall ,WC132-714,30.11.2021,ADULT SOCIAL CARE,AVERY HOMES NELSON LIMITED,23/11/2021,"3,400.00",6541-Residential,THIRD PARTY PAYMENTS,PRIVATE CONTRACTOR,REVENUE
Walsall Council,http://opendatacommunities.org/id/metropolitan-district-council/walsall ,WC132-715,30.11.2021,ADULT SOCIAL CARE,AVERY HOMES NELSON LIMITED,23/11/2021,"2,064.44",6541-Residential,THIRD PARTY PAYMENTS,PRIVATE CONTRACTOR,REVENUE
Walsall Council,http://opendatacommunities.org/id/metropolitan-district-council/walsall ,WC132-716,30.11.2021,CHILDRENS CAPITAL,AXIOM BUILDING SOLUTIONS LTD,26/11/2021,"20,116.00",7150-Site Works Contractors,CAPITAL,"NEW CONSTRUCTION,CONVERSION & RENOVATION",CAPITAL
Walsall Council,http://opendatacommunities.org/id/metropolitan-district-council/walsall ,WC132-717,30.11.2021,ADULT SOCIAL CARE,REDACTED,03/11/2021,"3,394.56",6541-Direct Payment,THIRD PARTY PAYMENTS,PRIVATE CONTRACTOR,REVENUE
Walsall Council,http://opendatacommunities.org/id/metropolitan-district-council/walsall ,WC132-718,30.11.2021,CHILDRENS CAPITAL,AZTEC CONSTRUCTION (MIDLANDS) LTD,24/11/2021,"4,122.65",7300-Private Grants,CAPITAL,CAPITAL GRANTS,CAPITAL GRANTS
Walsall Council,http://opendatacommunities.org/id/metropolitan-district-council/walsall ,WC132-719,30.11.2021,"ECONOMY, ENVIRONMENT & COMMUNITIES",B C EVENT HIRE LTD,30/11/2021,700.00,6313-Purchase of Furniture & Equipment,SUPPLIES & SERVICES,EQUIPMENT FURNITURE & MATERIALS,CAPITAL GRANTS
Walsall Council,http://opendatacommunities.org/id/metropolitan-district-council/walsall ,WC132-720,30.11.2021,CHILDRENS,BACHES SOLICITORS,08/11/2021,-271.14,6220-School Only Payments - Catering,THIRD PARTY PAYMENTS,INDEPENDENT UNIT WITHIN COUNCIL,CAPITAL GRANTS
Walsall Council,http://opendatacommunities.org/id/metropolitan-district-council/walsall ,WC132-721,30.11.2021,CHILDRENS,BACHES SOLICITORS,08/11/2021,271.14,6220-School Only Payments - Catering,THIRD PARTY PAYMENTS,INDEPENDENT UNIT WITHIN COUNCIL,CAPITAL GRANTS
Walsall Council,http://opendatacommunities.org/id/metropolitan-district-council/walsall ,WC132-722,30.11.2021,ADULT SOCIAL CARE,REDACTED,03/11/2021,"3,799.92",6541-Direct Payment,THIRD PARTY PAYMENTS,PRIVATE CONTRACTOR,CAPITAL GRANTS
Walsall Council,http://opendatacommunities.org/id/metropolitan-district-council/walsall ,WC132-723,30.11.2021,CHILDRENS,BANYA FAMILY PLACEMENT AGENCY LTD,01/11/2021,"3,441.45",6223-Independent Foster Care-Oth Agency Provision,THIRD PARTY PAYMENTS,PRIVATE CONTRACTOR,CAPITAL GRANTS
Walsall Council,http://opendatacommunities.org/id/metropolitan-district-council/walsall ,WC132-724,30.11.2021,CHILDRENS,BANYA FAMILY PLACEMENT AGENCY LTD,30/11/2021,"3,441.45",6223-Independent Foster Care-Oth Agency Provision,THIRD PARTY PAYMENTS,PRIVATE CONTRACTOR,CAPITAL GRANTS
Walsall Council,http://opendatacommunities.org/id/metropolitan-district-council/walsall ,WC132-725,30.11.2021,CHILDRENS,REDACTED,17/11/2021,340.00,6223-Internal Foster Carers-Carer Fees,TRANSFER PAYMENTS,CHILDREN SOCIAL SERVICES CLIENT,CAPITAL GRANTS
Walsall Council,http://opendatacommunities.org/id/metropolitan-district-council/walsall ,WC132-726,30.11.2021,CHILDRENS,BARNARDOS SERVICES LTD,09/11/2021,300.00,6211-External Training,INDIRECT EMPLOYEES,EXTERNAL TRAINING,CAPITAL GRANTS
Walsall Council,http://opendatacommunities.org/id/metropolitan-district-council/walsall ,WC132-727,30.11.2021,CHILDRENS CAPITAL,BAT FABRICATIONS LTD,30/11/2021,"5,000.00",7150-Site Works Contractors,CAPITAL,"NEW CONSTRUCTION,CONVERSION & RENOVATION",CAPITAL GRANTS
Walsall Council,http://opendatacommunities.org/id/metropolitan-district-council/walsall ,WC132-728,30.11.2021,CHILDRENS CAPITAL,BAT FABRICATIONS LTD,30/11/2021,"9,490.00",7150-Site Works Contractors,CAPITAL,"NEW CONSTRUCTION,CONVERSION & RENOVATION",CAPITAL GRANTS
Walsall Council,http://opendatacommunities.org/id/metropolitan-district-council/walsall ,WC132-729,30.11.2021,CHILDRENS CAPITAL,BAT FABRICATIONS LTD,30/11/2021,"-1,760.00",7150-Site Works Contractors,CAPITAL,"NEW CONSTRUCTION,CONVERSION & RENOVATION",CAPITAL GRANTS
Walsall Council,http://opendatacommunities.org/id/metropolitan-district-council/walsall ,WC132-730,30.11.2021,CHILDRENS CAPITAL,BAT FABRICATIONS LTD,30/11/2021,400.00,7150-Site Works Contractors,CAPITAL,"NEW CONSTRUCTION,CONVERSION & RENOVATION",CAPITAL GRANTS
Walsall Council,http://opendatacommunities.org/id/metropolitan-district-council/walsall ,WC132-731,30.11.2021,CHILDRENS CAPITAL,BAT FABRICATIONS LTD,30/11/2021,"1,760.00",7150-Site Works Contractors,CAPITAL,"NEW CONSTRUCTION,CONVERSION & RENOVATION",CAPITAL GRANTS
Walsall Council,http://opendatacommunities.org/id/metropolitan-district-council/walsall ,WC132-732,30.11.2021,CHILDRENS CAPITAL,BAT FABRICATIONS LTD,30/11/2021,"1,800.00",7150-Site Works Contractors,CAPITAL,"NEW CONSTRUCTION,CONVERSION & RENOVATION",CAPITAL GRANTS
Walsall Council,http://opendatacommunities.org/id/metropolitan-district-council/walsall ,WC132-733,30.11.2021,CHILDRENS CAPITAL,BAT FABRICATIONS LTD,24/11/2021,"3,660.00",7155-Site Works Contractors,CAPITAL,"NEW CONSTRUCTION,CONVERSION & RENOVATION",CAPITAL GRANTS
Walsall Council,http://opendatacommunities.org/id/metropolitan-district-council/walsall ,WC132-734,30.11.2021,CHILDRENS CAPITAL,BATHEABILITY (MIDLANDS) LTD,24/11/2021,"7,290.00",7100-Private Grants,CAPITAL,CAPITAL GRANTS,CAPITAL GRANTS
Walsall Council,http://opendatacommunities.org/id/metropolitan-district-council/walsall ,WC132-735,30.11.2021,ECONOMY & ENVIRONMENT CAPITAL,BDO LLP,12/11/2021,"-9,343.00",7200-Consultants Fees,CAPITAL,"NEW CONSTRUCTION,CONVERSION & RENOVATION",CAPITAL
Walsall Council,http://opendatacommunities.org/id/metropolitan-district-council/walsall ,WC132-736,30.11.2021,ECONOMY & ENVIRONMENT CAPITAL,BDO LLP,12/11/2021,"9,343.00",7200-Consultants Fees,CAPITAL,"NEW CONSTRUCTION,CONVERSION & RENOVATION",CAPITAL
Walsall Council,http://opendatacommunities.org/id/metropolitan-district-council/walsall ,WC132-737,30.11.2021,ECONOMY & ENVIRONMENT CAPITAL,BDO LLP,12/11/2021,"-5,967.25",7200-Consultants Fees,CAPITAL,"NEW CONSTRUCTION,CONVERSION & RENOVATION",CAPITAL
Walsall Council,http://opendatacommunities.org/id/metropolitan-district-council/walsall ,WC132-738,30.11.2021,ECONOMY & ENVIRONMENT CAPITAL,BDO LLP,12/11/2021,"5,967.25",7200-Consultants Fees,CAPITAL,"NEW CONSTRUCTION,CONVERSION & RENOVATION",CAPITAL
Walsall Council,http://opendatacommunities.org/id/metropolitan-district-council/walsall ,WC132-739,30.11.2021,ECONOMY & ENVIRONMENT CAPITAL,BDO LLP,12/11/2021,"-5,175.00",7200-Consultants Fees,CAPITAL,"NEW CONSTRUCTION,CONVERSION & RENOVATION",CAPITAL
Walsall Council,http://opendatacommunities.org/id/metropolitan-district-council/walsall ,WC132-740,30.11.2021,ECONOMY & ENVIRONMENT CAPITAL,BDO LLP,12/11/2021,"5,175.00",7200-Consultants Fees,CAPITAL,"NEW CONSTRUCTION,CONVERSION & RENOVATION",CAPITAL
Walsall Council,http://opendatacommunities.org/id/metropolitan-district-council/walsall ,WC132-741,30.11.2021,CHILDRENS,BEACON CHILDCARE LTD,01/11/2021,"9,150.00",6223-External Residential Care-Oth Agency Provision,THIRD PARTY PAYMENTS,PRIVATE CONTRACTOR,REVENUE
Walsall Council,http://opendatacommunities.org/id/metropolitan-district-council/walsall ,WC132-742,30.11.2021,CHILDRENS,BEACON CHILDCARE LTD,30/11/2021,"9,150.00",6223-External Residential Care-Oth Agency Provision,THIRD PARTY PAYMENTS,PRIVATE CONTRACTOR,REVENUE
Walsall Council,http://opendatacommunities.org/id/metropolitan-district-council/walsall ,WC132-743,30.11.2021,CHILDRENS CAPITAL,BEADEN POWERLEC LIMITED,02/11/2021,"3,995.00",7155-Site Works Contractors,CAPITAL,"NEW CONSTRUCTION,CONVERSION & RENOVATION",CAPITAL
Walsall Council,http://opendatacommunities.org/id/metropolitan-district-council/walsall ,WC132-744,30.11.2021,CHILDRENS CAPITAL,BEADEN POWERLEC LIMITED,06/11/2021,"1,982.00",7155-Site Works Contractors,CAPITAL,"NEW CONSTRUCTION,CONVERSION & RENOVATION",CAPITAL
Walsall Council,http://opendatacommunities.org/id/metropolitan-district-council/walsall ,WC132-745,30.11.2021,ADULT SOCIAL CARE,BEATFREEKS CONSULTING LTD,29/11/2021,"5,875.00",6420-Consultant Fees,SUPPLIES & SERVICES,SERVICES,REVENUE
Walsall Council,http://opendatacommunities.org/id/metropolitan-district-council/walsall ,WC132-746,30.11.2021,ADULT SOCIAL CARE,BEECHWOODCOURT LTD  T/A BEECHWOOD COLLEGE,04/11/2021,"15,022.43",6541-Residential,THIRD PARTY PAYMENTS,PRIVATE CONTRACTOR,REVENUE
Walsall Council,http://opendatacommunities.org/id/metropolitan-district-council/walsall ,WC132-747,30.11.2021,ADULT SOCIAL CARE,BEECHWOODCOURT LTD  T/A BEECHWOOD COLLEGE,04/11/2021,"15,022.43",6541-Residential,THIRD PARTY PAYMENTS,PRIVATE CONTRACTOR,REVENUE
Walsall Council,http://opendatacommunities.org/id/metropolitan-district-council/walsall ,WC132-748,30.11.2021,ADULT SOCIAL CARE,BEECHWOODCOURT LTD  T/A BEECHWOOD COLLEGE,17/11/2021,"14,537.84",6541-Residential,THIRD PARTY PAYMENTS,PRIVATE CONTRACTOR,REVENUE
Walsall Council,http://opendatacommunities.org/id/metropolitan-district-council/walsall ,WC132-749,30.11.2021,ADULT SOCIAL CARE,BELVIDERE COURT,23/11/2021,"2,419.96",6541-Nursing,THIRD PARTY PAYMENTS,PRIVATE CONTRACTOR,REVENUE
Walsall Council,http://opendatacommunities.org/id/metropolitan-district-council/walsall ,WC132-750,30.11.2021,ADULT SOCIAL CARE,BELVIDERE COURT,23/11/2021,"2,895.88",6541-Residential,THIRD PARTY PAYMENTS,PRIVATE CONTRACTOR,REVENUE
Walsall Council,http://opendatacommunities.org/id/metropolitan-district-council/walsall ,WC132-751,30.11.2021,ADULT SOCIAL CARE,BENEDON HEALTHCARE LTD,17/11/2021,"5,903.24",6541-Community Supported Living/Supported Accommodation,THIRD PARTY PAYMENTS,PRIVATE CONTRACTOR,REVENUE
Walsall Council,http://opendatacommunities.org/id/metropolitan-district-council/walsall ,WC132-752,30.11.2021,ADULT SOCIAL CARE,BENEDON HEALTHCARE LTD,17/11/2021,"1,395.84",6541-Community Supported Living/Supported Accommodation,THIRD PARTY PAYMENTS,PRIVATE CONTRACTOR,REVENUE
Walsall Council,http://opendatacommunities.org/id/metropolitan-district-council/walsall ,WC132-753,30.11.2021,ADULT SOCIAL CARE,REDACTED,03/11/2021,"2,864.72",6541-Direct Payment,THIRD PARTY PAYMENTS,PRIVATE CONTRACTOR,REVENUE
Walsall Council,http://opendatacommunities.org/id/metropolitan-district-council/walsall ,WC132-754,30.11.2021,"ECONOMY, ENVIRONMENT & COMMUNITIES",REDACTED,17/11/2021,324.00,6414-Professional Fees & Services,SUPPLIES & SERVICES,SERVICES,REVENUE
Walsall Council,http://opendatacommunities.org/id/metropolitan-district-council/walsall ,WC132-755,30.11.2021,HOLDING ACCOUNTS,BERRYMANS LACE MAWER LLP,08/11/2021,"1,482.00",2877-Insurance Payment Claims,SUPPLIES & SERVICES,INSURANCE,REVENUE
Walsall Council,http://opendatacommunities.org/id/metropolitan-district-council/walsall ,WC132-756,30.11.2021,ADULT SOCIAL CARE,REDACTED,03/11/2021,"1,931.68",6541-Direct Payment,THIRD PARTY PAYMENTS,PRIVATE CONTRACTOR,REVENUE
Walsall Council,http://opendatacommunities.org/id/metropolitan-district-council/walsall ,WC132-757,30.11.2021,"ECONOMY, ENVIRONMENT & COMMUNITIES",BESCOT STADIUM SUNDAY MARKET LTD,09/11/2021,"2,600.00",6410-Professional Services-Priv Contractor & Other Agencies,THIRD PARTY PAYMENTS,PRIVATE CONTRACTOR,REVENUE
Walsall Council,http://opendatacommunities.org/id/metropolitan-district-council/walsall ,WC132-758,30.11.2021,ADULT SOCIAL CARE,BESS CARE LIMITED,17/11/2021,257.02,6541-Domiciliary Care,THIRD PARTY PAYMENTS,PRIVATE CONTRACTOR,REVENUE
Walsall Council,http://opendatacommunities.org/id/metropolitan-district-council/walsall ,WC132-759,30.11.2021,ADULT SOCIAL CARE,BESS CARE LIMITED,17/11/2021,354.29,6541-Domiciliary Care,THIRD PARTY PAYMENTS,PRIVATE CONTRACTOR,REVENUE
Walsall Council,http://opendatacommunities.org/id/metropolitan-district-council/walsall ,WC132-760,30.11.2021,ADULT SOCIAL CARE,BESS CARE LIMITED,17/11/2021,342.69,6541-Domiciliary Care,THIRD PARTY PAYMENTS,PRIVATE CONTRACTOR,REVENUE
Walsall Council,http://opendatacommunities.org/id/metropolitan-district-council/walsall ,WC132-761,30.11.2021,ADULT SOCIAL CARE,BESS CARE LIMITED,17/11/2021,514.06,6541-Domiciliary Care,THIRD PARTY PAYMENTS,PRIVATE CONTRACTOR,REVENUE
Walsall Council,http://opendatacommunities.org/id/metropolitan-district-council/walsall ,WC132-762,30.11.2021,ADULT SOCIAL CARE,BESS CARE LIMITED,17/11/2021,253.13,6541-Domiciliary Care,THIRD PARTY PAYMENTS,PRIVATE CONTRACTOR,REVENUE
Walsall Council,http://opendatacommunities.org/id/metropolitan-district-council/walsall ,WC132-763,30.11.2021,ADULT SOCIAL CARE,BESS CARE LIMITED,17/11/2021,354.29,6541-Domiciliary Care,THIRD PARTY PAYMENTS,PRIVATE CONTRACTOR,REVENUE
Walsall Council,http://opendatacommunities.org/id/metropolitan-district-council/walsall ,WC132-764,30.11.2021,ADULT SOCIAL CARE,BESS CARE LIMITED,17/11/2021,459.51,6541-Domiciliary Care,THIRD PARTY PAYMENTS,PRIVATE CONTRACTOR,REVENUE
Walsall Council,http://opendatacommunities.org/id/metropolitan-district-council/walsall ,WC132-765,30.11.2021,ADULT SOCIAL CARE,BESS CARE LIMITED,17/11/2021,490.70,6541-Domiciliary Care,THIRD PARTY PAYMENTS,PRIVATE CONTRACTOR,REVENUE
Walsall Council,http://opendatacommunities.org/id/metropolitan-district-council/walsall ,WC132-766,30.11.2021,ADULT SOCIAL CARE,BESS CARE LIMITED,17/11/2021,260.91,6541-Domiciliary Care,THIRD PARTY PAYMENTS,PRIVATE CONTRACTOR,REVENUE
Walsall Council,http://opendatacommunities.org/id/metropolitan-district-council/walsall ,WC132-767,30.11.2021,ADULT SOCIAL CARE,BESS CARE LIMITED,17/11/2021,354.29,6541-Domiciliary Care,THIRD PARTY PAYMENTS,PRIVATE CONTRACTOR,REVENUE
Walsall Council,http://opendatacommunities.org/id/metropolitan-district-council/walsall ,WC132-768,30.11.2021,ADULT SOCIAL CARE,BESS CARE LIMITED,17/11/2021,295.98,6541-Domiciliary Care,THIRD PARTY PAYMENTS,PRIVATE CONTRACTOR,REVENUE
Walsall Council,http://opendatacommunities.org/id/metropolitan-district-council/walsall ,WC132-769,30.11.2021,ADULT SOCIAL CARE,BESS CARE LIMITED,17/11/2021,494.59,6541-Domiciliary Care,THIRD PARTY PAYMENTS,PRIVATE CONTRACTOR,REVENUE
Walsall Council,http://opendatacommunities.org/id/metropolitan-district-council/walsall ,WC132-770,30.11.2021,ADULT SOCIAL CARE,BETHPHAGE.,09/11/2021,565.75,6541-Domiciliary Care,THIRD PARTY PAYMENTS,PRIVATE CONTRACTOR,REVENUE
Walsall Council,http://opendatacommunities.org/id/metropolitan-district-council/walsall ,WC132-771,30.11.2021,ADULT SOCIAL CARE,BETHPHAGE.,09/11/2021,654.05,6541-Domiciliary Care,THIRD PARTY PAYMENTS,PRIVATE CONTRACTOR,REVENUE
Walsall Council,http://opendatacommunities.org/id/metropolitan-district-council/walsall ,WC132-772,30.11.2021,ADULT SOCIAL CARE,BETHPHAGE.,09/11/2021,654.00,6541-Domiciliary Care,THIRD PARTY PAYMENTS,PRIVATE CONTRACTOR,REVENUE
Walsall Council,http://opendatacommunities.org/id/metropolitan-district-council/walsall ,WC132-773,30.11.2021,ADULT SOCIAL CARE,BETHPHAGE.,09/11/2021,565.75,6541-Domiciliary Care,THIRD PARTY PAYMENTS,PRIVATE CONTRACTOR,REVENUE
Walsall Council,http://opendatacommunities.org/id/metropolitan-district-council/walsall ,WC132-774,30.11.2021,ADULT SOCIAL CARE,BETHPHAGE.,09/11/2021,654.05,6541-Domiciliary Care,THIRD PARTY PAYMENTS,PRIVATE CONTRACTOR,REVENUE
Walsall Council,http://opendatacommunities.org/id/metropolitan-district-council/walsall ,WC132-775,30.11.2021,ADULT SOCIAL CARE,BETHPHAGE.,09/11/2021,654.00,6541-Domiciliary Care,THIRD PARTY PAYMENTS,PRIVATE CONTRACTOR,REVENUE
Walsall Council,http://opendatacommunities.org/id/metropolitan-district-council/walsall ,WC132-776,30.11.2021,ADULT SOCIAL CARE,BETHPHAGE.,17/11/2021,580.64,6541-Community Supported Living/Supported Accommodation,THIRD PARTY PAYMENTS,PRIVATE CONTRACTOR,REVENUE
Walsall Council,http://opendatacommunities.org/id/metropolitan-district-council/walsall ,WC132-777,30.11.2021,ADULT SOCIAL CARE,BETHPHAGE.,17/11/2021,"1,608.16",6541-Community Supported Living/Supported Accommodation,THIRD PARTY PAYMENTS,PRIVATE CONTRACTOR,REVENUE
Walsall Council,http://opendatacommunities.org/id/metropolitan-district-council/walsall ,WC132-778,30.11.2021,ADULT SOCIAL CARE,BETHPHAGE.,17/11/2021,"2,661.96",6541-Community Supported Living/Supported Accommodation,THIRD PARTY PAYMENTS,PRIVATE CONTRACTOR,REVENUE
Walsall Council,http://opendatacommunities.org/id/metropolitan-district-council/walsall ,WC132-779,30.11.2021,ADULT SOCIAL CARE,BETHPHAGE.,17/11/2021,"1,667.64",6541-Community Supported Living/Supported Accommodation,THIRD PARTY PAYMENTS,PRIVATE CONTRACTOR,REVENUE
Walsall Council,http://opendatacommunities.org/id/metropolitan-district-council/walsall ,WC132-780,30.11.2021,ADULT SOCIAL CARE,BETHPHAGE.,17/11/2021,923.32,6541-Community Supported Living/Supported Accommodation,THIRD PARTY PAYMENTS,PRIVATE CONTRACTOR,REVENUE
Walsall Council,http://opendatacommunities.org/id/metropolitan-district-council/walsall ,WC132-781,30.11.2021,ADULT SOCIAL CARE,BETHPHAGE.,17/11/2021,"1,548.68",6541-Community Supported Living/Supported Accommodation,THIRD PARTY PAYMENTS,PRIVATE CONTRACTOR,REVENUE
Walsall Council,http://opendatacommunities.org/id/metropolitan-district-council/walsall ,WC132-782,30.11.2021,ADULT SOCIAL CARE,BETHPHAGE.,17/11/2021,"5,836.88",6541-Community Supported Living/Supported Accommodation,THIRD PARTY PAYMENTS,PRIVATE CONTRACTOR,REVENUE
Walsall Council,http://opendatacommunities.org/id/metropolitan-district-council/walsall ,WC132-783,30.11.2021,ADULT SOCIAL CARE,BETHPHAGE.,23/11/2021,565.75,6541-Domiciliary Care,THIRD PARTY PAYMENTS,PRIVATE CONTRACTOR,REVENUE
Walsall Council,http://opendatacommunities.org/id/metropolitan-district-council/walsall ,WC132-784,30.11.2021,ADULT SOCIAL CARE,BETHPHAGE.,23/11/2021,654.05,6541-Domiciliary Care,THIRD PARTY PAYMENTS,PRIVATE CONTRACTOR,REVENUE
Walsall Council,http://opendatacommunities.org/id/metropolitan-district-council/walsall ,WC132-785,30.11.2021,ADULT SOCIAL CARE,BETHPHAGE.,23/11/2021,654.00,6541-Domiciliary Care,THIRD PARTY PAYMENTS,PRIVATE CONTRACTOR,REVENUE
Walsall Council,http://opendatacommunities.org/id/metropolitan-district-council/walsall ,WC132-786,30.11.2021,ADULT SOCIAL CARE,BETHPHAGE.,23/11/2021,565.75,6541-Domiciliary Care,THIRD PARTY PAYMENTS,PRIVATE CONTRACTOR,REVENUE
Walsall Council,http://opendatacommunities.org/id/metropolitan-district-council/walsall ,WC132-787,30.11.2021,ADULT SOCIAL CARE,BETHPHAGE.,23/11/2021,654.05,6541-Domiciliary Care,THIRD PARTY PAYMENTS,PRIVATE CONTRACTOR,REVENUE
Walsall Council,http://opendatacommunities.org/id/metropolitan-district-council/walsall ,WC132-788,30.11.2021,ADULT SOCIAL CARE,BETHPHAGE.,23/11/2021,654.00,6541-Domiciliary Care,THIRD PARTY PAYMENTS,PRIVATE CONTRACTOR,REVENUE
Walsall Council,http://opendatacommunities.org/id/metropolitan-district-council/walsall ,WC132-789,30.11.2021,ADULT SOCIAL CARE,REDACTED,03/11/2021,903.04,6541-Direct Payment,THIRD PARTY PAYMENTS,PRIVATE CONTRACTOR,REVENUE
Walsall Council,http://opendatacommunities.org/id/metropolitan-district-council/walsall ,WC132-790,30.11.2021,RESOURCES AND TRANSFORMATION,BEYOND SYSTEMS LIMITED,11/11/2021,"7,000.00",6623-Computer Equipment,SUPPLIES & SERVICES,COMMUNICATIONS & COMPUTING,REVENUE
Walsall Council,http://opendatacommunities.org/id/metropolitan-district-council/walsall ,WC132-791,30.11.2021,RESOURCES AND TRANSFORMATION,BFA SAFETY TRAINING,23/11/2021,650.00,6625-External Training,INDIRECT EMPLOYEES,EXTERNAL TRAINING,REVENUE
Walsall Council,http://opendatacommunities.org/id/metropolitan-district-council/walsall ,WC132-792,30.11.2021,ADULT SOCIAL CARE,REDACTED,03/11/2021,"1,138.20",6541-Direct Payment,THIRD PARTY PAYMENTS,PRIVATE CONTRACTOR,REVENUE
Walsall Council,http://opendatacommunities.org/id/metropolitan-district-council/walsall ,WC132-793,30.11.2021,CHILDRENS,BIRMINGHAM CITY UNIVERSITY,26/11/2021,"8,983.70",6314-Professional Services-Priv Contractor & Other Agencies,THIRD PARTY PAYMENTS,PRIVATE CONTRACTOR,REVENUE
Walsall Council,http://opendatacommunities.org/id/metropolitan-district-council/walsall ,WC132-794,30.11.2021,"ECONOMY, ENVIRONMENT & COMMUNITIES",BLACHERE ILLUMINATION UK LTD,29/11/2021,"22,000.00","6414-Leasing, Hire & Rental of Equipment",SUPPLIES & SERVICES,EQUIPMENT FURNITURE & MATERIALS,REVENUE
Walsall Council,http://opendatacommunities.org/id/metropolitan-district-council/walsall ,WC132-795,30.11.2021,RESOURCES AND TRANSFORMATION,BLACK COUNTRY CONSORTIUM LIMITED,09/11/2021,"87,869.09",6312-Grants to Associations,SUPPLIES & SERVICES,GRANTS (EXP) & SUBSCRIPTIONS,REVENUE
Walsall Council,http://opendatacommunities.org/id/metropolitan-district-council/walsall ,WC132-796,30.11.2021,RESOURCES AND TRANSFORMATION,BLACK COUNTRY CONSORTIUM LIMITED,29/11/2021,"20,655.90",6312-Grants to Associations,SUPPLIES & SERVICES,GRANTS (EXP) & SUBSCRIPTIONS,REVENUE
Walsall Council,http://opendatacommunities.org/id/metropolitan-district-council/walsall ,WC132-797,30.11.2021,RESOURCES AND TRANSFORMATION CAPITAL,BLACK COUNTRY CONSORTIUM LIMITED,16/11/2021,"68,636.76",7300-Private Grants,CAPITAL,CAPITAL GRANTS,CAPITAL GRANTS
Walsall Council,http://opendatacommunities.org/id/metropolitan-district-council/walsall ,WC132-798,30.11.2021,RESOURCES AND TRANSFORMATION CAPITAL,BLACK COUNTRY CONSORTIUM LIMITED,16/11/2021,"1,185.85",7300-Private Grants,CAPITAL,CAPITAL GRANTS,CAPITAL GRANTS
Walsall Council,http://opendatacommunities.org/id/metropolitan-district-council/walsall ,WC132-799,30.11.2021,ADULT SOCIAL CARE,BLACK COUNTRY MANAGEMENT LTD T/A BLUEBIRD CARE WALSALL,17/11/2021,700.65,6541-Domiciliary Care,THIRD PARTY PAYMENTS,PRIVATE CONTRACTOR,CAPITAL GRANTS
Walsall Council,http://opendatacommunities.org/id/metropolitan-district-council/walsall ,WC132-800,30.11.2021,ADULT SOCIAL CARE,BLACK COUNTRY MANAGEMENT LTD T/A BLUEBIRD CARE WALSALL,17/11/2021,"1,479.15",6541-Domiciliary Care,THIRD PARTY PAYMENTS,PRIVATE CONTRACTOR,CAPITAL GRANTS
Walsall Council,http://opendatacommunities.org/id/metropolitan-district-council/walsall ,WC132-801,30.11.2021,ADULT SOCIAL CARE,BLACK COUNTRY MANAGEMENT LTD T/A BLUEBIRD CARE WALSALL,25/11/2021,"13,185.60",6541-Domiciliary Care,THIRD PARTY PAYMENTS,PRIVATE CONTRACTOR,CAPITAL GRANTS
Walsall Council,http://opendatacommunities.org/id/metropolitan-district-council/walsall ,WC132-802,30.11.2021,ADULT SOCIAL CARE,BLACK COUNTRY MANAGEMENT LTD T/A BLUEBIRD CARE WALSALL,25/11/2021,"-1,479.15",6541-Domiciliary Care,THIRD PARTY PAYMENTS,PRIVATE CONTRACTOR,CAPITAL GRANTS
Walsall Council,http://opendatacommunities.org/id/metropolitan-district-council/walsall ,WC132-803,30.11.2021,ADULT SOCIAL CARE,BLACK COUNTRY MANAGEMENT LTD T/A BLUEBIRD CARE WALSALL,25/11/2021,"-4,725.71",6541-Domiciliary Care,THIRD PARTY PAYMENTS,PRIVATE CONTRACTOR,CAPITAL GRANTS
Walsall Council,http://opendatacommunities.org/id/metropolitan-district-council/walsall ,WC132-804,30.11.2021,CHILDRENS,BLOSSOMS ON THE COMMON DAY NURSERY LTD,16/11/2021,"1,049.40",6223-Creche Facilities,SUPPLIES & SERVICES,SERVICES,CAPITAL GRANTS
Walsall Council,http://opendatacommunities.org/id/metropolitan-district-council/walsall ,WC132-805,30.11.2021,"ECONOMY, ENVIRONMENT & COMMUNITIES",BLOXWICH COMMUNITY PARTNERSHIP.,17/11/2021,"6,000.00",6430-Professional Services-Priv Contractor & Other Agencies,THIRD PARTY PAYMENTS,PRIVATE CONTRACTOR,CAPITAL GRANTS
Walsall Council,http://opendatacommunities.org/id/metropolitan-district-council/walsall ,WC132-806,30.11.2021,ADULT SOCIAL CARE,BME UNITED LTD,03/11/2021,"7,046.20",6420-Consultant Fees,SUPPLIES & SERVICES,SERVICES,CAPITAL GRANTS
